{"text_format":"1","workbook":"xlsx","n_sheets":26,"sheets":["BASE","CONTRATOS","CONVENIOS","EJECUTADOS","LIQUIDADOS","INVENTARIO DOCUMENTAL 1","INVENTARIO DOCUMENTAL 2","INVENTARIO DOCUMENTAL 3","INVENTARIO DOCUMENTAL 4","INVENTARIO DOCUMENTAL 5","INVENTARIO DOCUMENTAL 6","INVENTARIO DOCUMENTAL 7","INVENTARIO DOCUMENTAL 8","INVENTARIO DOCUMENTAL 9","INVENTARIO DOCUMENTAL 10","INVENTARIO DOCUMENTAL 11","INVENTARIO DOCUMENTAL 12","INVENTARIO DOCUMENTAL 13","INVENTARIO DOCUMENTAL 14","INVENTARIO DOCUMENTAL 15","INVENTARIO DOCUMENTAL 16","INVENTARIO DOCUMENTAL 17","INVENTARIO DOCUMENTAL 18","INVENTARIO DOCUMENTAL 19","INVENTARIO DOCUMENTAL 20","INVENTARIO DOCUMENTAL 21"],"not_rendered":{"charts":0,"images":1,"macros":1,"external_links":0,"defined_names":2,"comments":1,"pivot_tables":0},"unopened":[],"bounds":{"document_bytes":16777216,"sheet_cells":100000,"rows_first":2000,"rows_last":500,"rows_between":2000,"halvings":0,"cell_chars":16384,"cell_head_chars":4096},"cells_cut":0,"cells_raw":0,"read":"whole","date_system":"1900"}

{"sheet":"BASE","index":0,"n_rows":32,"n_cols":13,"rows_kept":32,"cut":false,"hidden":true,"merged":[[30,2,30,3],[30,4,30,8],[30,10,30,13],[31,4,31,8],[31,10,31,13],[24,12,24,13],[25,12,25,13],[27,4,27,8],[27,10,27,13],[29,4,29,8],[29,10,29,13],[23,12,23,13],[12,10,14,10],[12,11,14,11],[12,12,14,13],[15,12,15,13],[16,12,16,13],[17,12,17,13],[18,12,18,13],[19,12,19,13],[20,12,20,13],[21,12,21,13],[22,12,22,13],[12,9,14,9],[5,9,5,12],[7,0,7,5],[7,9,7,12],[8,0,8,5],[9,0,9,5],[10,9,10,12],[12,0,14,0],[12,1,14,1],[12,2,14,2],[12,3,13,4],[12,5,13,8],[0,0,3,1],[0,2,0,10],[0,11,0,13],[1,2,1,10],[1,11,1,13],[2,2,3,10],[2,11,3,13]]}
[null,null,"SISTEMA INTEGRADO DE GESTIÓN",null,null,null,null,null,null,null,null,"PCA-04-F-02"]
[null,null,"GESTIÓN DOCUMENTAL",null,null,null,null,null,null,null,null,"VERSIÓN: 4.0"]
[null,null,"FORMATO UNICO DE INVENTARIO DOCUMENTAL",null,null,null,null,null,null,null,null,"FECHA: 20/02/2015"]
[]
[]
[null,null,null,null,null,null,null,null,null,"HOJA No___1___ DE___1___"]
[]
["UNIDAD ADMINISTRATIVA: DIRECCION GENERAL",null,null,null,null,null,null,null,null,"REGISTRO DE ENTREGA"]
["OFICINA PRODUCTORA: SUBDIRECCION ADMINISTRATIVA",null,null,null,null,null,null,null,null,"AÑO ","MES","DIA","N.T."]
[{"$f":"\"OBJETO: INVENTARIO DOCUMENTAL \"&J10","v":"OBJETO: INVENTARIO DOCUMENTAL 2022"},null,null,null,null,null,null,null,null,2022]
[null,null,null,null,null,null,null,null,null,"N.T. = Numero de Transferencia"]
[]
["Número de\nOrden","Código ","CONTRATOS DE PRESTACION DE SERVICIOS","Fechas Extremas",null,"Unidades de Conservación",null,null,null,"Número\nde Folios","Soporte","Frecuencia\n de\n consulta","Notas"]
[]
[null,null,null,"Inicial","Final","Caja","Carpeta","Tomo","Otro"]
[]
[]
[]
[]
[]
[]
[]
[]
[]
[]
[]
[null,null,null,null,null," "]
[null,null,"ELABORADO POR: INGRIS OLIVEROS HERNÁNDEZ",null,"ENTREGADO POR: INGRIS OLIVEROS HERNÁNDEZ",null,null,null,null,null,"RECIBIDO POR:"]
[]
[null,null,"CARGO: SECRETARIA EJECUTIVA",null,"CARGO: SECRETARIA EJECUTIVA",null,null,null,null,null,"CARGO _________________________________"]
[null,null,"FIRMA________________________________",null,"FIRMA __________________________________",null,null,null,null,null,"FIRMA __________________________________"]
[null,null,"FECHA_____________  LUGAR___________",null,"    FECHA_______________ LUGAR ___________"]

{"sheet":"CONTRATOS","index":1,"n_rows":251,"n_cols":21,"rows_kept":251,"cut":false,"hidden":false,"merged":[]}
["NUMERO","FECHA","NATURALEZA JURÍDICA","CONTRATISTA","IDENTIFICACIÓN","OBJETO","VALOR","VALOR ADICION","PLAZO","PLAZO ADICION","RUBRO","N° Y FECHA CDP","N° Y FECHA CDP ADICION","No. REGISTRO","N° REGISTRO ADICION","SUPERVISOR","FECHA INICIO CONTRATO","FECHA TERMINACION CONTRATO","FECHA INICIO/ TERMINACION - ADICION","ANTICIPO","ESTADO CONTRATO"]
["19-6-0001-0-2022","ENERO 11/022","PRESTACIÓN SERVICIOS PROFESIONALES Y DE APOYO A LA GESTIÓN","SANDRA MILENA  DAZA IBARRA",49697795,"PRESTACION DE SERVICIOS DE UN PROFESIONAL EN DERECHO ESPECIALISTA O SU EQUIVALENCIA PARA ACOMPAÑAR A LA SUBDIRECCION GENERAL ÁREA ADMINISTRATIVA Y FINANCIERA EN TODAS  LAS ACTIVIDADES DE SU COMPETENCIA EN EL ÁREA DE DERECHO",28280000,12726000,"8 MESES","3 MESES Y 18 DIAS","A-02-02-02-008-002","6 ENERO 07/2022","600 AGOSTO 31/2022","6 ENERO 12/2022","1367 SEPTIEMBRE 05/2022","SUBDIRECTOR GENERAL ÁREA ADMINISTRATIVA Y FINANCIERA","ENERO 12/2022","SEPTIEMBRE 11/2022","SEPTIEMBRE 11/2022 - DICIEMBRE 29/2022",null,"TERMINADO"]
["19-6-0002-0-2022","ENERO 12/022","PRESTACIÓN SERVICIOS PROFESIONALES Y DE APOYO A LA GESTIÓN","LILIANA CECILIA CASTILLA QUIROZ",1065590086,"PRESTACION DE SERVICIOS PROFESIONALES DE UN ABOGADO ESPECIALIZADO EN DERECHO ADMINISTRATIVO, PUBLICO O CONTRATACIÓN ESTATAL, CON EXPERIENCIA EN CONTRATACION ESTATAL PARA ACOMPAÑAR A LA SUBDIRECCION GENERAL ÁREA ADMINISTRATIVA Y FINANCIERA EN EL DESARROLLO DE LOS PROCEDIMIENTOS LICITATORIOS, DE CONCURSO PUBLICO, DE SELECCION ABREVIADA DE MENOR CUANTIA Y DE LAS CONTRATACIONES DIRECTAS Y DE MINIMA CUANTIA QUE LE CORRESPONDA ADELANTAR A LA CORPORACION",28280000,12608167,"8 MESES","3 MESES Y 17 DIAS","A-02","5 ENERO 07/022","597 AGOSTO 31/2022","5 ENERO 12/2022","1366 SEPTIEMBRE 05/2022","SUBDIRECTOR GENERAL ÁREA ADMINISTRATIVA Y FINANCIERA","ENERO 13/2022","SEPTIEMBRE 12/2022","SEPTIEMBRE 12/2022 - DICIEMBRE 29/2022",null,"TERMINADO"]
["19-6-0003-0-2022","ENERO 11/022","PRESTACIÓN SERVICIOS PROFESIONALES Y DE APOYO A LA GESTIÓN","GILARYS GUICET OSORIO CUELLAR",1065571191,"PRESTACION DE SERVICIOS DE UN PROFESIONAL EN DERECHO CON EXPERIENCIA EN CONTRATACION ESTATAL PARA ACOMPAÑAR A LA SUBDIRECCION GENERAL ÁREA ADMINISTRATIVA Y FINANCIERA EN EL DESARROLLO DE LOS PROCEDIMIENTOS LICITATORIOS, DEL CONSURSO PUBLICO, DE SELECCIÓN ABREVIADA DE MENOR CUANTIA Y DE LAS CONTRATACIONES DIRECTAS Y DEMINIMA CUANTIA QUE LE CORRESPONDA ADELANTAR A LA CORPORACION",45248000,20361600,"8 MESES","3 MESES Y 18 DIAS","A-02","7 ENERO 7/022","598 AGOSTO 31/2022","7 ENERO 12/2022","1370 SEPTIEMBRE 06/2022","SUBDIRECTOR GENERAL ÁREA ADMINISTRATIVA Y FINANCIERA","ENERO 12/2022","SEPTIEMBRE 11/2022","SEPTIEMBRE 11/2022 - DICIEMBRE 29/2022",null,"TERMINADO"]
["19-6-0004-0-2022","ANULADO","-","-","-","-","-","-","-","-","-","-","-","-","-","-","-","-","-","-","-"]
["19-6-0005-0-2022","ENERO 12/022","PRESTACIÓN SERVICIOS PROFESIONALES","VICTOR ALFONSO VALERA GUERRA",77096869,"PRESTACION DE SERVICIOS PROFESIONALES DE UN ABOGADO ESPECIALIZADO EN DERECHO ADMINISTRATIVO, PUBLICO O CONTRATACIÓN ESTATAL, CON EXPERIENCIA EN CONTRATACION ESTATAL PARA ACOMPAÑAR A LA SUBDIRECCION GENERAL ÁREA ADMINISTRATIVA Y FINANCIERA EN EL DESARROLLO DE LOS PROCEDIMIENTOS LICITATORIOS, DE CONCURSO PUBLICO, DE SELECCION ABREVIADA DE MENOR CUANTIA Y DE LAS CONTRATACIONES DIRECTAS Y DE MINIMA CUANTIA QUE LE CORRESPONDE ADELANTAR A LA CORPORACION",33936000,14988400,"8 MESES","3 MESES Y 16 DIAS","A-02-02-02-008-002","8 ENERO 07/2022","601 AGOSTO 31/2022","9 ENERO 12/2022","1373 SEPTIEMBRE 06/2022","SUBDIRECTOR GENERAL ÁREA ADMINISTRATIVA Y FINANCIERA","ENERO 14/2022","SEPTIEMBRE 13/2022","SEPTIEMBRE 13/2022 - DICIEMBRBE 29/2022",null,"TERMINADO"]
["19-6-0006-0-2022","ENERO 11/022","PRESTACIÓN SERVICIOS PROFESIONALES","ADRIANA MARIA ALVAREZ ALVAREZ",49609368,"PRESTACIÓN DE SERVICIOS Y DE APOYO A LA GESTIÓN DE UN PROFESIONAL EN ADMNISTRACIÓN COMERCIAL Y DE SISTEMAS, ESPECIALISTA EN GERENCIA DE LA HACIENDA PUBLICA, PARA EL APOYO EN EL DESARROLLO DE LAS ACTIVIDADES DEL PROCESO DE LA COORDINACIÓN DE TALENTO HUMANO",28280000,12490333,"8 MESES","3 MESES Y 16 DIAS","A-02-02-02-008-003-001","13 ENERO 11/2022","596 AGOSTO 31/2022","8 ENERO 12/2022","1369 SEPTIEMBRE 05/2022","COORDINACIÓN GIT PARA LA GESTIÓN DEL TALENTO HUMANO","ENERO 14/2022","SEPTIEMBRE 13/2022","SEPTIEMBRE 13/2022 - DICIEMBRBE 29/2022",null,"TERMINADO"]
["19-6-0007-0-2022","ENERO 13/022","PROCESO LICITACIÓN PÚBLICA N° 007 2021 CONTRATO DE OBRA PUBLICA","UNION TEMPORAL RESTAURACION AMBIENTAL","901552839-9","IMPLEMENTACION DE ACCIONES DE RESTAURACION CON GUADUAS Y OTRAS ESPECIES NATIVAS EN ÁREAS PRIORIZADAS DE LA JURSIDICCION DE CORPOCESAR, DEPARTAMENTO DEL CESAR",1667497969,null,"10 MESES",null,3202,"679 NOVIEMBRE 5/021",null,"309 MARZO 01/2022",null,"SUBDIRECCIÓN GENERAL DEL ÁREA DE GESTIÓN AMBIENTAL","MARZO 11/2022","ENERO 11/2023",null,0.3,"TERMINADO"]
["19-6-0008-0-2022","ENERO 13/022","PRESTACIÓN SERVICIOS PROFESIONALES","ANA MILENA MAESTRE ALVAREZ",1065647958,"PRESTACION DE SERVICIOS DE UN INGENIERO INDUSTRIAL, ECONOMISTA O A FINES, PARA EL APOYO EN LA FORMULACIÓN DE PROYECTOS Y EVALUACIÓN DE PROYECTOS CON EXPERIENCIA EN GESTIÓN Y SEGUIMIENTO DE PROYECTOS PARA EL FORTALECIMIENTO OPERATIVO DE LA SUBDIRECCION GENERAL ÁREA DE PLANEACION DE CORPOCESAR",25448000,11239533.300000001,"8 MESES","3 MESES Y 16 DIAS","3203-3299","11 ENERO 11/022","580 AGOSTO 23/2022","11 ENERO 14/2022","1319 AGOSTO 25/2022","ADRIANA MARGARITA GARCIA AREVALO-SUBDIRECCIÓN GENERAL DEL ÁREA DE PLANEACIÓN","ENERO 14/2022","SEPTIEMBRE 14/2022","SEPTIEMBRE 14/2022 - DICIEMBRE 29/2022",null,"TERMINADO"]
["19-6-0009-0-2022","ENERO 13/022","PRESTACIÓN SERVICIOS PROFESIONALES","SAMIR ENRIQUE BRACHO BARCELOT",77176373,"PRESTACION DE SERVICIOS PROFESIONALES DE UN ABOGADO ESPECIALIZADO EN DERECHO ADMINISTRATIVO, PUBLICO O CONTRATACIÓN ESTATAL, CON EXPERIENCIA EN CONTRATACION ESTATAL PARA ACOMPAÑAR A LA SUBDIRECCION GENERAL ÁREA ADMINISTRATIVA Y FINANCIERA EN EL DESARROLLO DE LOS PROCEDIMIENTOS LICITATORIOS, EN CONCURSO PUBLICO, DE SELECCION ABREVIADA DE MENOR CUANTÍA Y DE LAS CONTRATACIONES DIRECTA Y DE MINIMA CUANTÍA QUE LE CORRESPONDA ADELANTAR A LA CORPORACION",33936000,14564200,"8 MESES","3 MESES Y 13 DIAS","A-02","09 ENERO 07/022","599 AGOSTO 31/2022","12 ENERO 14/2022","1368 SEPTIEMBRE 05/2022","SUBDIRECTOR GENERAL ÁREA ADMINISTRATIVA Y FINANCIERA","ENERO 17/2022","SEPTIEMBRE 16/2022","SEPTIEMBRE 17/2022\nDICIEMBRE 29/2022","-","TERMINADO"]
["19-6-0010-0-2022","ANULADO POR FECHA","-","-","-","-","-","-","-","-","-","-","-","-","-","-","-","-","-","-","-"]
["19-6-0011-0-2022","ENERO 13/022","PRESTACIÓN SERVICIOS PROFESIONALES","JOSE ALFREDO HERNANDEZ ROJAS",1065820789,"PRESTACION DE SERVICIOS PROFESIONALES DE UN ECONOMISTA Y/O ADMINISTRADOR DE EMPRESAS Y/O INGENIERO INDUSTRIAL PARA ACOMPAÑAR A LA SUBDIRECCION GENERAL ÁREA ADMINISTRATIVA Y FINANCIERA EN LA ELABORACIÓN Y/O PROYECCION DE LOS ESTUDIOS DE SECTOR Y DEMÁS TEMAS ECONÓMICOS Y FINANCIEROS DE LA GESTIÓN CONTRACTUAL QUE SE REALIZA EN LA CORPORACIÓN",22624000,9709458,"8 MESES","3 MESES Y 13 DIAS","A-02","10 ENERO 07/022","625 SEPTIEMBRE 05/2022","13 ENERO 14/2022","1406 SEPTIEMBRE 06/2022","SUBDIRECTOR GENERAL ÁREA ADMINISTRATIVA Y FINANCIERA","ENERO 17/2022","SEPTIEMBRE 16/2022","SEPTIEMBRE 17/2022\nDICIEMBRE 29/2022","-","TERMINADO"]
["19-6-0012-0-2022","ENERO 14/022","PRESTACIÓN SERVICIOS PROFESIONALES","CLAUDIA MARCELA MEJIA VEGA",49772612,"PRESTACION DE SERVICIOS PROFESIONALES DE UN CONTADOR PUBLICO CON EXPERIENCIA EN MANEJO DE INGRESOS Y EN SOFTWARE FINANCIERO CON EL FIN DE REALIZAR CON EL FIN DE REALIZAR ACOMPAÑAMIENTO EN LA SUBDIRECCION GENERAL, AREA ADMINISTRATIVA Y FINANCIERA EN LA TESORERIA DE CORPOCESAR",25448000,10921433,"8 MESES","3 MESES Y 13 DIAS","A-02-02-02-008-002","17 ENERO 11/2022","615 SEPTIEMBRE 05/2022","10 ENERO 14/2022","1446 SEPTIEMBRE 13/2022","TESORERIA","ENERO 17/2022","SEPTIEMBRE 16/2022","SEPTIEMBRE 16/2022 - DICIEMBRE 29/2022",null,"TERMINADO"]
["19-6-0013-0-2022","ENERO 14/022","PRESTACIÓN SERVICIOS PROFESIONALES","NELCY ESTHER VILLALOBOS BRITO",1140839730,"PRESTACIÓN DE SERVICIOS PROFESIONALES DE UN INGENIERO INDUSTRIAL Y/O INGENIERO AMBIENTAL, ESPECIALISTA EN SISTEMAS DE GESTIÓN Y/O GERENCIA DE LA CALIDAD, CON EXPERIENCIA, PARA EL ACOMPAÑAMIENTO A LAS ACTIVIDADES QUE DESARROLLA LA SUBDIRECCIÓN GENERAL DE ÁREA DE GESTIÓN AMBIENTAL RELACIONADAS CON EL CONTROL AL PROCESO DE EVALUACIÓN, CONTROL Y SEGUIMIENTO AMBIENTAL Y TRÁMITES AMBIENTALES",33936000,14281400,"8 MESES","3 MESES Y 12 DIAS",3299,"16 ENERO 11/022","636 SEPTIEMBRE 06/2022","23 ENERO 17/2022","1418 SEPTIEMBRE 18/2022","ADRIAN ALBERTO IBARRA USTARIZ","ENERO 19/2022","SEPTIEMBRE 18/2022","SEPTIEMBRE 18/2022 - DICIEMBRE 29/2022",null,"TERMINADO"]
["19-6-0014-0-2022","ENERO 14/022","PRESTACIÓN SERVICIOS PROFESIONALES","MARTHA YOHANNA ARAQUE BARROS",49779274,"PRESTACION DE SERVICIOS PROFESIONALES DE UN ADMINISTRADOR DE EMPRESAS Y/O INGENIERO INDUSTRIAL, ESPECIALIZADO, CON EXPERIENCIA, PARA EL ACOMPAÑAMIENTO EN LAS ACTIVIDADES QUE DESARROLLA LA SUBDIRECCION GENERAL DE ÁREA DE GESTIÓN AMBIENTAL DE TIPO ADMINISTRATIVAS, DE SUPERVISION A CONTRATOS Y CONVENIOS, DE TALENTO HUMANO A SU CARGO, REQUERIMIENTOS Y PLANES DE MEJORAMIENTO SUSCRITO CON ENTES DE CONTROL",28280000,12136833,"8 MESES","3 MESES Y 13 DIAS","3299 03","12 ENERO 11/2022","635 SEPTIEMBRE 06/2022","14 ENERO 14/2022","1417 SEPTIEMBRE 08/2022","ADRIAN ALBERTO IBARRA USTARIZ","ENERO 17/2022","SEPTIEMBRE 16/2022","SEPTIEMBRE 16/2022 - DICIEMBRE 29/2022",null,"TERMINADO"]
["19-6-0015-0-2022","ENERO 14/022","PRESTACIÓN SERVICIOS","KATIA LUZ FLOREZ MOJICA",49773184,"PRESTACION DE SERVICIOS DE UN TECNICO PROFESIONAL AUXILIAR EN CONTABILIDAD, PARA REALIZAR EL ACOMPAÑAMIENTO A LA SUBDIRECCION GENERAL ÁREA ADMINISTRRATIVA Y FINANCIERA, ESPECIFICAMENTE EN LA COORDINACIÓN DEL GIT PARA LA GESTIÓN FINANCIERA, EN EL DESARROLLO DEL PROCESO PRESUPUESTAL DE LA CORPORACION A TRAVES DEL SISTEMA FINANCIERO PCT ENTERPRISE",15840000,6798000,"8 MESES","3 MESES Y 13 DIAS","A-02-02-02-008-003-001","14 ENERO 11/2022","620 SEPTIEMBRE 05/2022","19 ENERO 14/2022","1387 SEPTIEMBRE 06/2022","ARMANDO DE JESUS VILLAZON SANCHEZ","ENERO 17/2022","SEPTIEMBRE 16/2022","SEPTIEMBRE 16/2022 - DICIEMBRE 28/2022",null,"TERMINADO"]
["19-6-0016-0-2022","ENERO 14/022","PRESTACIÓN SERVICIOS PROFESIONALES Y DE APOYO A LA GESTIÓN","OMEY ARIZA VILLEGAS",49772364,"PRESTACION DE SERVICIOS PROFESIONALES DE UN CONTADOR PUBLICO, ESPECIALIZADO, CON MANEJO DE SOFTWARE CONTABLE Y FINANCIERO, PARA APOYAR EL PROCESO CONTABLE CONFORME AL MANUAL DE POLITICAAS CONTABLES DE CORPOCESAR",33936000,null,"8 MESES",null,"A-02","15 ENERO 11/022",null,"16 ENERO 14/2022",null,"CONTADOR GENERAL","ENERO 17/2022","SEPTIEMBRE 16/2022",null,null,"LIQUIDADO"]
["19-6-0017-0-2022","ENERO 14/022","PRESTACIÓN SERVICIOS PROFESIONALES Y DE APOYO A LA GESTIÓN","LUZ ELENA PEREZ USTARIZ",1062401564,"PRESTACION DE SERVICIOS PROFESIONALES DE UN ABOGADO PARA QUE PRESTE EL ACOMPÑAMIENTO A LA OFICINA ASESOR DE DIRECCION, EN LAS ACTUACIONES JURÍDICAS NECESARIAS PARA APOYAR LA ORGANIZACIÓN INTEGRAL DE LA INSTITUCIONALIDAD",25448000,11027467,"8 MESES","3 MESES Y 14 DIAS",3299,"19 ENERO 13/022","569 AGOSTO 18/2022","15 ENERO 14/2022","1313 AGOSTO 23/2022","MARIA LAURA RIOS MAESTRE","ENERO 17/2022","SEPTIEMBRE 16/2022","SEPTIEMBRE 16/2022 - DCIEMBRE 30/2022",null,"TERMINADO"]
["19-6-0018-0-2022","ENERO 14/022","PRESTACIÓN SERVICIOS Y DE APOYO A LA GESTIÓN","DAILER FERNANDO QUIROGA TORRES",1067817453,"PRESTACION DE SERVICIOS PROFESIONALES DE UN ABOGADO PARA QUE PRESTE EL ACOMPAÑAMIENTO A LA OFICINA  DE ASESOR DE DIRECCION, EN LAS ACTUACIONES JURÍDICAS NECESARIAS PARA APOYAR LA ORGANIZACIÓN INTEGRAL DE LA INSTITUCIONALIDAD",19792000,8576533,"8 MESES","3 MESES Y 14 DIAS","3299 03","20 ENERO 13/2022","568 AGOSTO 18/2022","17 ENERO 14/2022","1312 AGOSTO 23/2022","MARIA LAURA RIOS MAESTRE","ENERO 17/2022","SEPTIEMBRE 16/2022","SEPTIEMBRE 16/2022 - DICIEMBRE 30/2022",null,"TERMINADO"]
["19-6-0019-0-2022","ENERO 17/0222","PRESTACIÓN SERVICIOS Y DE APOYO A LA GESTIÓN","IRLENA MARGARITA GUILLEN CALDERON",1065575986,"PRESTACION DE SERVICIOS PROFESIONALES DE UN INGENIERO AMBIENTAL Y SANITARIO, PARA ACOMPAÑAR A LA OFICINA JURÍDICA EN LAS ACTIVIDADES QUE EJECUTA Y DESARROLLA EN EL  MARCO DE SUS ATRIBUCIONES LEGALES Y REGLAMENTARIAS",22624000,9615200,"8 MESES","3 MESE Y 12 DIAS",3299,"24 ENERO/13 022","678 SEPTIEMBRE 14/2022","22 ENERO 17/2022","1476 SEPTIEMBRE 16/2022","EIVYS JOHANA VEGA RODRIGUEZ-JEFE OFICINA JURÍDICA","ENERO 18/2022","SEPTIEMBRE 17/2022","SEPTIEMBRE 17/2022 - DICIEMBRE 29/2022",null,"TERMINADO"]
["19-6-0020-0-2022","ENERO 17/0222","PRESTACIÓN SERVICIOS PROFESIONALES Y DE APOYO A LA GESTIÓN","JESUS ALBERTO CALDERON MARTINEZ",1062397953,"PRESTACION DE SERVICIOS DE UN PROFESIONAL EN ADMINISTRACION DE EMPRESAS O SU EQUIVALENCIA SIN EXPERIENCIA PARA REALIZAR APOYO A LA GESTIÓN EN LA COORDINACIÓN DEL GIT PARA LA GESTIÓN FINANCIERA ESPECIFICAMENTE EN LA OFICINA DE PAGADURIA, PARA LOGRAR CUMPLIR CON LAS ACTIVIDADES Y METAS DE DICHA ÁREA DE LA CORPORACION",19792000,8411600,"8 MESES","3 MESES Y 12 DIAS","A-02","28 ENERO 13/022","624 SEPTIEMBRE 05/2022","20 ENERO 17/022","1412 SEPTIEMBRE 08/2022","LIANA RAMOS MARBELLO","ENERO 18/2022","SEPTIEMBRE 16/2022","SEPTIEMBRE 17/2022 - DICIEMBRE 29/2022",null,"TERMINADO"]
["19-6-0021-0-2022","ENERO 18/0222","PRESTACIÓN SERVICIOS PROFESIONALES Y DE APOYO A LA GESTIÓN","JOHANA PAOLA PERALTA PALENCIA",1065594849,"PRESTACION DE SERVICIOS DE UN PROFESIONAL DEL DERECHO CON EXPERIENCIA, PARA APOYAR LOS TEMAS DE JUSTICIA TRANSICIONAL Y REPARACION TERRITORIAL, ORDENAMIENTO AMBIENTAL TERRITORIAL, PLANIFICACION DE LA FRONTERA AGRICOLA, SEGUIMIENTO A PLANES DE ORDENAMIENTO TERRITORIAL",28280000,11312000,"8 MESES","3 MESES Y 6 DIAS","3203 01\n3205 01","18 ENERO 13/2022","594 AGOSTO 31/2022","36 ENERO 19/2022","1371 SEPTIEMBRE 06/2022","ADRIANA MARGARITA GARCIA AREVALO-SUBDIRECCIÓN GENERAL DEL ÁREA DE PLANEACIÓN","ENERO 21/2022","SEPTIEMBRE 21/2022","SEPTIEMBRE 21/2022- DICIEMBRE 26/2022",null,"TERMINADO"]
["19-6-0022-0-2022","ENERO 17/0222","PRESTACIÓN SERVICIOS Y DE APOYO A LA GESTIÓN","JOSE LUIS PEÑARANDA TORO",1118820240,"PRESTACION DE SERVICIOS PROFESIONALES PARA BRINDAR EL ACOMPAÑAMIENTO PARA LA GESTIÓN Y CUMPLIMIENTO DE LOS PROCESOS DE TRANSPARENCIA Y ACCESO A LA INFORMACIÓN DE LA CORPORACIÓN AUTONOMA REGIONAL DEL CESAR ",25448000,10709367,"8 MESES","3 MESES Y 11 DIAS","3299 03\n3299 06","27 ENERO 13/2022","579 AGOSTO 23/2022","21 ENERO 17/2022","1419 SEPTIEMBRE 08/2022","ADRIANA MARGARITA GARCIA AREVALO-SUBDIRECCIÓN GENERAL DEL ÁREA DE PLANEACIÓN","ENERO 19/2022","SEPTIEMBRE 18/2022","SEPTIEMBRE 18/2022 - DICIEMBRE 29/2022",null,"TERMINADO"]
["19-6-0023-0-2022","ENERO 17/0222","PRESTACIÓN SERVICIOS Y DE APOYO A LA GESTIÓN","CELIA JOHANA RUBIO NAVARRO",1065644653,"PRESTACION DE SERVICIOS PROFESIONALES DE UN INGENIERO AMBIENTAL CON EXPERIENCIA COMO APOYO INGENIERIL EN LAS GESTIÓNES QUE EJECUTA EL GRUPO INTERNO DE TRABAJO PARA LA GESTIÓN DE SANEAMIENTO AMBIENTAL Y CONTROL DE VERTIMIENTOS ",22624000,9238133,"8 MESES","3 MESES Y 8 DIAS",3203,"33 ENERO 14/022","646 SEPTIEMBRE 08/2022","25 ENERO 18/0222","1448 SEPTIEMBRE 13/2022","COORDINACIÓN DEL GIT PARA LA GESTIÓN DEL SANEAMIENTO BÁSICO Y CONTROL DE VERTIMIENTOS","ENERO 19/2022","SEPTIEMBRE 18/2022","SEPTIEMBRE 18/2022 - DICIEMBE 26/2022",null,"TERMINADO"]
["19-6-0024-0-2022","ANULADO","-","-","-","-","-","-","-","-","-","-","-","-","-","-","-","-","-","-","-"]
["19-6-0025-0-2022","ENERO 17/0222","PRESTACIÓN SERVICIOS PROFESIONALES","GISELLE MARIA CALDERON QUINTERO",1065568146,"PRESTACION DE SERVICIOS PROFESIONALES DE UN ABOGADO PARA EL ACOMPAÑAMIENTO DE LA GESTIÓN QUE EJECUTA Y DESARROLLA LA OFICINA JURÍDICA DE LA CORPORACION EN EL MARCO DE SUS ATRIBUCIONES LEGALES Y REGLAMENTARIAS",19792000,8329133,"8 MESES","3 MESE Y 11 DIAS","3299 03","29 ENERO 13/2022","682 SEPTIEMBRE 14/2022","24 ENERO 17/2022","1466 SEPTIEMBRE 15/2022","EIVYS JOHANA VEGA RODRIGUEZ-JEFE OFICINA JURÍDICA","ENERO 19/2022","SEPTIEMBRE 18/2022","SEPTIEMBRE 18/2022 - DICIEMBRE 29/2022",null,"TERMINADO"]
["19-6-0026-0-2022","ENERO 18/022","PRESTACIÓN SERVICIOS PROFESIONALES","VIVIAN EMILIA ARBESU MURGAS",36554564,"PRESTACION DE SERVICIOS DE UN PROFESIONAL COMUNICADOR SOCIAL CON EXPERIENCIA Y CONOCIMIENTO EN PROCESOS DE ORGANIZACIÓN, RELACIONAMIENTO DE ACTORES, PROCESOS DE CONSULTA PREVIA Y REVISIÓN, EVALUACIÓN DE PRODUCTOS Y DOCUMENTACIÓN RELACIONADA CON COMPONENTES SOCIOECONOMICOS QUE SE PRODUZCAN EN LA FORMULACIÓN DE LOS PLANES DE ORDENACIÓN DE CUENCAS HIDROGRÁFICAS",28280000,11548000,"8 MESES","3 MESES Y 8 DIAS","3203-3299","26 ENERO 13/022","654 SEPTIEMBRE 08/2022 ","26 ENERO 18/2022","1456 SEPTIEMBRE 13/2022","LIBARDO RAÚL LASCARRO-COORDINADOR GIT CAMBIO CLIMATICO, POMCAS Y ORDENAMIENTO TERRRITORIAL","ENERO 19/2022","SEPTIEMBRE 19/2022","SEPTIEMBRE 18/2022- DICIEMBRE 27/200",null,"TERMINADO"]
["19-6-0027-0-2022","ENERO 18/022","PRESTACIÓN SERVICIOS PROFESIONALES","NELSON ENRIQUE ARGOTE MARTINEZ",77192255,"PRESTACION DE SERVICIOS PROFESIONALES DE UN ABOGADO ESPECIALISTA PARA EL APOYO DE LA GESTIÓN DE LA OFICINA JURÍDICA DE LA CORPORACIÓN EN DESARROLLO DE SUS ATRIBUCIONES Y FUNCIONES LEGALES, ESTATUTARIAS Y REGLAMENTARIAS",28280000,11901166,"8 MESES","3 MESES Y 11 DIAS",3299,"22 ENERO/13 022","688 SEPTIEMBRE 14/2022","35 ENERO 19/2022","1479 SEPTIEMBRE 16/2022","EIVYS JOHANA VEGA RODRIGUEZ-JEFE OFICINA JURÍDICA","ENERO 19/2022","SEPTIEMBRE 18/2022","SEPTIEMBRE 18/2022 - DICIEMBRE 29/2022",null,"TERMINADO"]
["19-6-0028-0-2022","ENERO 18/022","PRESTACIÓN SERVICIOS PROFESIONALES","DEIBER RICARDO SOCARRAS OCHOA",77092043,"PRESTACIÓN DE SERVICIOS DE UN TÉCNICO PARA QUE APOYE LA OFICINA DE SECRETARÍA GENERAL EN LAS ACTIVIDADES DESARROLLADAS EN EL ÁREA DE ARCHIVO EN LA CORPORACIÓN AUUTÓNOMA REGIONAL DEL CESAR",15840000,6666000,"8 MESES","3 MESES Y 11 DIAS",3299,"41 ENERO/14 022","609 SEPTIEMBRE 01/2022","34 ENERO 19/2022","1374 SEPTIEMBRE 06/2022","SECRETARÍA GENERAL JAIME ARAUJO CASTRO","ENERO 19/2022","SEPTIEMBRE 18/2022","SEPTIEMBRE 18/2022 - DICIEMBRE 29/2022",null,"TERMINADO"]
["19-6-0029-0-2022","ENERO 18/022","PRESTACIÓN SERVICIOS PROFESIONALES","KELLY JOHANNA GALVIS ROJAS",39463510,"PRESTACIÓN DE SERVICIOS PROFESIONALES DE UN INGENIERO AMBIENTAL COMO APOYO INGENIERIL EN LAS GESTIÓNES QUE EJECUTA EL GRUPO INTERNO DE TRABAJO PARA LA GESTIÓN DE SANEAMIENTO AMBIENTAL Y CONTROL DE VERTIMIENTOS DE CORPOCESAR",22624000,9520933,"8 MESES","3 MESES Y 11 DIAS","3203 01","30 ENERO 14/2022","681 SEPTIEMBRE 14/2022","27 ENERO 18/2022","1467 SEPTIEMBRE 15/2022","COORDINACIÓN DEL GIT PARA LA GESTIÓN DEL SANEAMIENTO BÁSICO Y CONTROL DE VERTIMIENTOS","ENERO 19/2022","SEPTIEMBRE 18/2022","SEPTIEMBRE 18/2022 - DICIEMBRE 29/2022",null,"TERMINADO"]
["19-6-0030-0-2022","ENERO 18/022","PRESTACIÓN SERVICIOS PROFESIONALES","MONICA MARIETH SUAREZ REDONDO",1065634539,"PRESTACION DE SERVICIOS PROFESIONALES DE UN ABOGADO ESPECIALIZADO EN DERECHO ADMINISTRATIVO PARA EL ACOMPAÑAMIENTO EN LA GESTIÓN QUE EJECUTA Y DESARROLLA LA OFICINA JURÍDICA DE LA CORPORACIÓN, EN EL MARCO DE SUS ATRIBUCIONES LEGALES Y REGLAMENTARIAS",28280000,11901163,"8 MESES","3 MESES Y 11 DIAS",3299,"21 ENERO/13 022","665 SEPTIEMBRE 14/2022",33,1461,"EIVYS JOHANA VEGA RODRIGUEZ-JEFE OFICINA JURÍDICA","ENERO 19/2022","SEPTIEMBRE 18/2022","SEPTIEMBRE 18/2022 - DICIEMBRE 29/2022",null,"TERMINADO"]
["19-6-0031-0-2022","ENERO 18/022","PRESTACIÓN SERVICIOS PROFESIONALES","ERIKA PATRICIA RAMIREZ GUTIERREZ",49717053,"PRESTACIÓN DE SERVICIOS PROFESIONALES DE UN ABOGADO ESPECIALISTA EN DERECHO ADMINISTRATIVO PARA EL APOYO DE LA GESTIÓN DE LA OFICINA JURÍDICA DE LA CORPORACIÓN EN DESARROLLO DE SUS ATRIBUCIONES Y FUNCIONES LEGALES, ESTATUTARIAS Y REGLAMENTARIAS",28280000,null,"8 MESES",null,3299,"23 ENERO/13 022",null,"32 ENERO 19/2022",null,"EIVYS JOHANA VEGA RODRIGUEZ-JEFE OFICINA JURÍDICA","ENERO 19/2022","SEPTIEMBRE 18/2022",null,null,"TERMINADO"]
["19-6-0032-0-2022","ENERO 18/022","PRESTACIÓN SERVICIOS PROFESIONALES","CARLOS ENRIQUE RODRIGUEZ SANTANA",77195715,"PRESTACIÓN DE SERVICIOS PROFESIONALES DE UN INGENIERO AMBIENTAL Y SANITARIO, CON EXPERIENCIA COMO APOYO INGENIERIL EN LAS GESTIÓNES QUE EJECUTA EL GRUPO INTERNO DE TRABAJO PARA LA GESTIÓN DE SANEAMIENTO AMBIENTAL Y CONTROL DE VERTIMIENTOS DE CORPOCESAR",22624000,9143867,"8 MESES","3 MESES Y 7 DIAS",3203,"35 ENERO/14 022","672 SEPTIEMBRE 14/2022","37 ENERO 19/2022","1474 SEPTIEMBRE 16/2022","COORDINACIÓN DEL GIT PARA LA GESTIÓN DEL SANEAMIENTO BÁSICO Y CONTROL DE VERTIMIENTOS","ENERO 20/2022","SEPTIEMBRE 19/2022","SEPTIEMBRE 19/2022 DICIEMBRE 26/2022",null,"TERMINADO"]
["19-6-0033-0-2022","ENERO 18/022","PRESTACIÓN SERVICIOS PROFESIONALES","DAIRO CAMPO OSPINO",77031421,"PRESTACIÓN DE SERVICIOS DE UN ARQUITECTO O INGENIERO CIVIL Y/O AMBIENTAL ESPECIALIZADO EN PLANEACIÓN URBANO REGIONAL CON EXPERIENCIA EN EL TEMA DE ORDENAMIENTO AMBIENTAL TERRITORIAL, PARA APOYAR A LA SUBDIRECCIÓN GENERAL ÁREA DE PLANEACIÓN ESPECIALMENTE LOS PROCESOS DE REVISIÓN, EVALUACIÓN Y SEGUIMIENTO A LOS COMPONENTES AMBIENTALES DE LOS POTs, EOTs Y PBOTs EN EL DEPARTAMENTO DEL CESAR",33936000,null,"8 MESES",null,3205,"32 ENERO/14 022",null,"30 ENERO 19/2022",null,"ADRIANA MARGARITA GARCIA AREVALO-SUBDIRECCIÓN GENERAL DEL ÁREA DE PLANEACIÓN","ENERO 20/2022","SEPTIEMBRE 19/2022",null,null,"LIQUIDADO"]
["19-6-0034-0-2022","ENERO 18/022","PRESTACIÓN SERVICIOS PROFESIONALES","MIGUEL ANGEL BOLAÑO CALDERON",1065570684,"PRESTACIÓN DE SERVICIOS PROFESIONALES DE UN ABOGADO CON EXPERIENCIA COMO APOYO JURÍDICO EN LAS GESTIÓNES QUE EJECUTA Y DESARROLLA EL GRUPO INTERNO DE TRABAJO PARA LA GESTIÓN DE SANEAMIENTO AMBIENTAL Y CONTROL DE VERTIMIENTOS",22624000,9520933,"8 MESES","3 MESES Y 11 DIAS",3203,"34 ENERO/14 022","690 SEPTIEMBRE 1472022","28 ENERO 18/2022","1465 SEPTIEMBRE 15/2022","EDUARDO ENRIQUE LOPEZ ROMERO","ENERO 19/2022","SEPTIEMBRE 18/2022","SEPTIEMBRE 18/2022 - DICIEMBRE 29/2022",null,"TERMINADO"]
["19-6-0035-0-2022","ENERO 20/022","PRESTACIÓN SERVICIOS PROFESIONALES","SULEYMA GOYENECHE LEON",49793404,"PRESTACION DE SERVICIOS DE UN PROFESIONAL EN ADMINSTRACIÓN DE EMPRESAS, ECONOMÍA, INGENIERO INDUSTRIAL, O CARRERAS AFINES, CON ESPECIALIZACIÓN EN TEMAS DE CALIDAD Y AFINES Y CON 5 AÑOS DE EXPERIENCIA PROFESIONAL EN ASESORÍA PARA LA IMPLEMENTACIÓN Y AUDITORÍA DEL SISTEMA INTEGRADO DE GESTIÓN, CON FORMACIÓN COMO AUDITOR INTERNO EN LA NTC ISO 9001:2015, CON IDONEDIDAD PARA REALIZAR AUDITORÍAS INTERNAS INTEGRALES QUE LE PERMITAN A LA OFICINA DE CONTROL INTERNO DETERMINAR LA CONFORMIDAD DEL SISTEMA; PARA CONTRIBUIR AL FORTALECIMIENTO DEL SISTEMA INTEGRADO DE GESTIÓN DE CALIDAD DE CORPOCESAR",36760000,15163500,"8 MESES","3 MESES Y 9 DIAS","3299 02","44 ENERO 14/2022","657 SEPTIEMBRE 13/2022","40 ENERO 20/2022","1467 SEPTIEMBRE 15/2022","GUSTAVO AMARIS GARCIA-JEFE DE OFICINA DE CONTROL INTERNO","ENERO 21/2022","SEPTIEMBRE 20/2022","SEPTIEMBRE 20/2022 - DICIEMBRE 29/2022",null,"TERMINADO"]
["19-6-0036-0-2022","ENERO 19/022","PRESTACIÓN SERVICIOS PROFESIONALES","ORLANDO MANUEL LOBO GARCIA",77026047,"PRESTACION DE SERVICIOS DE UN AUXILIAR PARA QUE APOYE LA OFICINA DE SECRETARIA GENERAL EN LAS ACTIVIDADES DESARROLLADAS EN EL ÁREA DE ARCHIVO EN LA CORPORACINO AUTONOMA REGIONAL DEL CESAR CORPOCESAR",11312000,4666200,"8 MESES","3 MESES Y 9 DIAS","3299 02","37 ENERO 14/2022","606 SEPTIEMBRE 01/2022","31 ENERO 19/2022","1385 SEPTIEMBRE 06/2022","SECRETARÍA GENERAL JAIME ARAUJO CASTRO","ENERO 19/2022","SEPTIEMBRE 18/2022","SEPTIEMBRE 19/2022 - DICIEMBRE 28/2022",null,"TERMINADO"]
["19-6-0037-0-2022","ENERO 19/022","PRESTACIÓN SERVICIOS PROFESIONALES","AMPARO ROCIO ALVAREZ LEON",49763856,"PRESTACION DE SERVICIOS DE UN PROFESIONAL EN ADMINISTRACION DE EMPRESAS, EN LA OFICINA DE CONTROL INTERNO, CON FORMACION COMO AUDITOR INTERNO INTEGRAL, CON IDONEIDAD DE AUDITORIAS INTERNAS Y SEGUIMIENTO A LA GESTIÓN INSTITUCIONAL PROGRAMADOS PARA LA VIGENCIA DE 2022, EN LA CORPORACION AUTONOMA REGIONAL DEL CESAR CORPOCESAR",25448000,10603333,"8 MESES","3 MESES 10 DIAS",3299,"39 ENERO 14/022","647 SEPTIEMBRE 08/2022","29 ENERO 19/2022","1449 SEPTIEMBRE 13/2022","GUSTAVO AMARIS GARCIA-JEFE DE OFICINA DE CONTROL INTERNO","ENERO 20/2022","SEPTIEMBRE 19/2022","SEPTIEMBRE 19/2022 - DICIEMBRE 29/2022",null,"TERMINADO"]
["19-6-0038-0-2022","ENERO 19/022","PRESTACIÓN SERVICIOS PROFESIONALES Y DE APOYO A LA GESTIÓN","LEIDA ROSA CASTILLA CASTILLO",49736574,"PRESTACION DE SERVICIOS DE UN CONTADOR PUBLICO, CON FORMACION DE AUDITOR INTERNO, CON IDONEIDAD DE AUDITORIAS INTERNAS FINANCIERAS DEL SISTEMA INTEGRADO DE GESTIÓN, PARA REALIZAR AUDITORIAS INTERNAS INTEGRALES QUE LE PERMITA A LA OFICINA DE CONTROL INTERNO FORTALECER EL ROL DE EVALUADOR INDEPENDIENTE, A PARTIR DE LA REALIZACION DE ACOMPAÑAMIENTO Y SEGUIMIENTO AL PROCESO DE GESTIÓN FINANCIERA DE LA CORPORACION A TRAVÉS DE UN ENFOQUE BASADO EN EL RIESGO, PARA CONTIBUIR AL MEJORAMIENTO CONTINUO DEL SISTEMA INTEGRADO DE PLANEACION Y GESTIÓN DE LA CORPORACION",25448000,10497300,"8 MESES","3 MESES Y 9 DIAS",3299,"38 ENERO 14/022","645 SEPTIEMBRE 08/2022","39 ENERO 19/2022","1458 SEPTIEMBRE 14/2022","GUSTAVO AMARIS GARCIA-JEFE DE OFICINA DE CONTROL INTERNO","ENERO 21/2022","SEPTIEMBRE 20/2022","SEPTIEMBRE 20/2022 - DICIEMBRE 29/2022",null,"LIQUIDADO"]
["19-6-0039-0-2022","ENERO 20/022","PRESTACIÓN SERVICIOS PROFESIONALES","ANAMARIA MONTERO GARCIA",1065626865,"PRESTACION DE SERVICIOS PROFESIONALES DE UN INGENIERO INDUSTRIAL ESPECIALISTA EN GERENCIA DEL TALENTO HUMANO, PARA APOYAR AL GRUPO INTERNO DE TRABAJO PARA LA GESTIÓN DEL TALENTO HUMANO EN LAS ACTIVIDADES INVOLUCRADAS EN EL PROCESO GENERANDO ACTIVIDADES QUE SATISFAGAN EL NIVEL DE COMPETENCIAS DEL TALENTO HUMANO DE LA ENTIDAD",28280000,11076333,"8 MESES","3 MESES Y 4 DIAS","3299 02","51 ENERO 18/2022","655 SEPTIEMBRE 13/2022","42 ENERO 20/2022","1552 SEPTIEMBRE 19/2022","COORDINACIÓN GIT PARA LA GESTIÓN DEL TALENTO HUMANO","ENERO 20/2022","SEPTIEMBRE 24/2022","SEPTIEMBRE 24/2022 - DICIEMBRE 29/2022",null,"TERMINADO"]
["19-6-0040-0-2022","ENERO 19/022","PRESTACIÓN SERVICIOS PROFESIONALES","JUAN DAVID ARGUMEDO MARTINEZ",1065662217,"PRESTACIÓN DE SERVICIOS PROFESIONALES DE UN INGENIERO CIVI COMO APOYO INGENIERIL EN LAS GESTIÓNES QUE EJECUTA Y DESARROLLA LA SUBDIRECCIÓN GENERAL DEL ÁREA DE GESTIÓN AMBIENTAL",19792000,7916800,"8 MESES","3 MESES Y 6 DIAS",3299,"52 ENERO/18 022","683 SEPTIEMBRE  14/2022","44 ENERO 20/2022","1580 SEPTIEMBRE 20/2022","SUBDIRECCIÓN GENERAL DEL ÁREA DE GESTIÓN AMBIENTAL","ENERO 24/2022","SEPTIEMBRE 23/2022","SEPTIEMBRE 23/2022 - DICIEMBRE 29/2022",null,"TERMINADO"]
["19-6-0041-0-2022","ENERO 19/022","PRESTACIÓN SERVICIOS Y DE APOYO A LA GESTIÓN","CARLOS EDUARDO CASTILLA AVILA",1065602535,"PRESTACIÓN DE SERVICIOS DE UN TÉCNICO O TECNOLOGO O EGRESADO DE INGENIERÍA AMBIENTAL, PARA EL ACOMPAÑAMENTO Y EL APOYO A LA GESTIÓN Y ACTIVIDADES QUE EJECUTA Y DESARROLLA LA COORDINACIÓN DEL GIT PARA LA GESTIÓN JURÍDICO-AMBIENTAL",19232000,null,"8 MESES",null,3299,"47 ENERO/18 022",null,"38 ENERO 19/2022",null,"COORDINADOR DEL GIT PARA LA GESTIÓN JURÍDICO AMBIENTAL","ENERO 21/2022","SEPTIEMBRE 20/2022",null,null,"LIQUIDADO"]
["19-6-0042-0-2022","ENERO 20/022","PRESTACIÓN SERVICIOS PROFESIONALES","LUIS CARLOS VEGA AVILA",7629584,"PRESTACION DE SERVICIOS PROFESIONALES DE UN ABOGADO PARA QUE PRESTE EL ACOMPAÑAMIENTO A LA OFICINA  DE ASESOR DE DIRECCION, EN LAS ACTUACIONES JURÍDICAS NECESARIAS PARA APOYAR LA ORGANIZACIÓN INTEGRAL DE LA INSTITUCIONALIDAD",25448000,10179000,"8 MESES","3 MESES Y 6 DIAS",3299,"40 ENERO/14 022","567 AGOSTO 17/2022","76 ENERO 24/2022","1314 AGOSTO 23/2022","MARIA LAURA RIOS MAESTRE","ENERO 25/2022","SEPTIEMBRE 24/2022","SEPTIEMBRE 24/2022-  DICIEMBRE 30/2022",null,"TERMINADO"]
["19-6-0043-0-2022","ENERO 20/022","PRESTACIÓN SERVICIOS PROFESIONALES","ALMES JOSE GRANADOS CUELLO",7570459,"PRESTACIÓN DE SERVICIOS PROFESIONALES DE UN ABOGADO ESPECIALISTA EN DERECHO ADMINISTRATIVO PARA EL APOYO DE LA GESTIÓN DE LA OFICINA JURÍDICA DE LA CORPORACIÓN EN DESARROLLO DE SUS ATRIBUCIONES Y FUNCIONES LEGALES, ESTATUTARIAS Y REGLAMENTARIAS",33936000,13998600,"8 MESES","3 MESES Y 9 DIAS",3299,"63 ENERO 18/022","659 SEPTIEMBRE 14/2022","53 ENERO 21/2022","1475 SEPTIEMBRE 16/2022","EIVYS JOHANA VEGA RODRIGUEZ-JEFE OFICINA JURÍDICA","ENERO 21/2022","SEPTIEMBRE 20/2022","SEPTIEMBRE 20/2022 - DICIEMBRE 29/2022",null,"TERMINADO"]
["19-6-0044-0-2022","ENERO 24/022","PRESTACIÓN SERVICIOS PROFESIONALES","SUSAN MILENA SOTO FERNANDEZ",1065565380,"PRESTACIÓN DE SERVICIOS PROFESIONALES DE UN ABOGADO PARA LA GESTIÓN DE LOS PROCESOS SANCIONATORIOS EN SU ETAPA INICIAL QUE DEBEN ADELANTAR POR PARTE DE LA OFICINA JURÍDICA DE LA CORPORACIÓN EN EL MARCO DE SUS ATRIBUCIONES LEGALES Y REGLAMENTARIAS",19792000,7916800,"8 MESES","3 MESES Y 6 DIAS",3299,"64 ENERO 18/022","671 SEPTIEMBRE 14/2022","52 ENERO 21/2022","1473 SEPTIEMBRE 16/2022","EIVYS JOHANA VEGA RODRIGUEZ-JEFE OFICINA JURÍDICA","ENERO 24/2022","SEPTIEMBRE 20/2022","SEPTIEMBRE 23/2022 - DICIEMBRE 29/2022",null,"TERMINADO"]
["19-6-0045-0-2022","ENERO 20/022","PRESTACIÓN SERVICIOS PROFESIONALES","MARIA ISABEL CAMARGO RODRIGUEZ",49721139,"PRESTACIÓN DE SERVICIOS PROFESIONALES DE UN INGENIERO AMBIENTAL ESPECIALIZADO COMO APOYO INGENIERIL EN LAS GESTIÓNES QUE EJECUTA Y DESARROLLA LA SUBDIRECCIÓN GENERAL DEL ÁREA DE GESTIÓN AMBIENTAL",28280000,10722833,"8 MESES","3 MESES Y 1 DIA",3299,"62 ENERO 18/022","729 SEPTIEMBRE 19/2022","50 ENERO 21/2022","1582 SEPTIEMBRE 20/2022","SUBDIRECCIÓN GENERAL DEL ÁREA DE GESTIÓN AMBIENTAL","ENERO26/2022","SEPTIEMBRE 25/2022","SEPTIEMBRE 25/2022 - DICEMBRE 26/2022",null,"TERMINADO"]
["19-6-0046-0-2022","ENERO 20/022","PRESTACIÓN SERVICIOS PROFESIONALES","ALEXANDER OVALLE MOLINA",77040462,"PRESTACION DE SERVICIOS DE UN INGENIERO AMBIENTAL, ADMINISTRADOR DE EMPRESAS, UN ECONOMISTA Y/O AFINES PARA FORTALECIMIENTO OPERATIVO EN LOS PROCESOS DE SEGUIMIENTO DE PROYECTOS, DEL PAI, PGAR/PLANEAR, REPORTE DE ICAU Y REPORTES DE INDICADORES NORMATIVOS DE LA SUBDDICCION GENERAL ÁREA DE PLANEACION DE CORPOCESAR",19792000,7669400,"8 MESES","3 MESES Y 3 DIAS","3201 02\n3299 02","36 ENERO 14/2022","621 SEPTIEMBRE 05/2022","51 ENERO 21/2022","1444 SEPTIEMBRE 09/2022","ADRIANA MARGARITA GARCIA AREVALO-SUBDIRECCIÓN GENERAL DEL ÁREA DE PLANEACIÓN","ENERO 24/2022","SEPTIEMBRE 24/2022","SEPTIEMBRE 23/2022 - DICIEMBRE 26/2022",null,"TERMINADO"]
["19-6-0047-0-2022","ENERO 20/022","PRESTACIÓN SERVICIOS PROFESIONALES Y DE APOYO A LA GESTIÓN","LUZ MARINA RODRIGUEZ GUTIERREZ",42494333,"PRESTACION DE SERVICIO PROFESIONAL EN EL ÁREA SOCIAL Y/O ECONOMICA Y/O INGENIERIAS, ESPECIALISTA EN FORMULACION O DISEÑO O EVALUACION DE PROYECTOS CONE EXPERIENCIA EN FORMULACION Y SEGUIMIENTO DE PROYECTOS PARA EL FORTALECIMIENTO OPERATIVO DE LA SUBDIRECCION GENERAL ÁREA DE PLANEACION",36760000,14550833,"8 MESES","3 MESES Y 5 DIAS",3299,"43 ENERO 14/022","608 SEPTIEMBRE 01/2022","41 ENERO 20/2022","1408 SEPTIEMBRE 07/2022","ADRIANA MARGARITA GARCIA AREVALO-SUBDIRECCIÓN GENERAL DEL ÁREA DE PLANEACIÓN","ENERO 24/2022","SEPTIEMBRE 24/2022","SEPTIEMBRE 23/ 2022 - DICIEMBRE 28/2022",null,"TERMINADO"]
["19-6-0048-0-2022","ENERO 20/022","PRESTACIÓN SERVICIOS PROFESIONALES","YOHASKY FIORELLA CABALELRON OSPINO",1065653756,"PRESTACION DE SERVICIOS DE UN PROFESIONAL EN INGENIERIA INDUSTRIAL, INGENIERIA QUIMICA, AMBIENTAL Y/O DISCIPLINAS AFINES, Y/O ADMINISTRACION DE EMPRESAS Y/O AFINES CON POSGRADO EN SISTEMAAS DE GESTIÓN Y/O CALIDAD, CON FORMACION COMO AUDITOR INTERNO EN SISTEMAS DE GESTIÓN NTC-ISO 9001:2015 PARA EL AAPOYO DE LAS ACTIVIDADES DE DISEÑO, IMPLEMENTACION, SEGUIMIENTO Y MEJORA DEL SISTEMA INTEGRADO DE GESTIÓN INSTITUCIONAL, ASI COMO AL APOYO A LA IMPLEMENTTACION DEL MODELO INTEGRADO DE PLANEACION Y GESTIÓN MIPG Y LOS PROCESOS DE ACREDITACION Y MEJORAS DE LA CORPORACION AUTONOMA REGIONAL DEL CESAR",28280000,11194167,"8 MESES","3 MESES Y 5 DIAS","3299 02","31 ENERO 14/2022","607 SEPTIEMBRE 01/2022","70 ENERO 24/2022","1416 SEPTIEMBRE 08/2022","ADRIANA MARGARITA GARCIA AREVALO-SUBDIRECCIÓN GENERAL DEL ÁREA DE PLANEACIÓN","ENERO 25/2022","SEPTIEMBRE 24/2022","SEPTIEMBRE 24/2022 - DICIEMBRE 29/2022 ",null,"LIQUIDADO"]
["19-6-0049-0-2022","ENERO 20/022","PRESTACIÓN SERVICIOS PROFESIONALES","KATHERINE RUIZ SARMIENTO",1065599365,"PRESTACIÓN DE SERVICIOS PROFESIONALES DE UN INGENIERO AMBIENTAL COMO APOYO INGENIERIL EN LAS GESTIÓNES QUE EJECUTA Y DESARROLLA EL GRUPO INTERNO DE TRABAJO PARA LA GESTIÓN JURÍDICO AMBIENTAL",19792000,8164200,"8 MESES","3 MESES Y 9 DIAS","3299 03","57 ENERO 18/2022","649 SEPTIEMBRE 08/2022","43 ENERO 20/2022","1455 SEPTIEMBRE 13/2022","COORDINADOR GIT PARA LA GESTIÓN JURÍDICO AMBIENTAL","ENERO 21/2022","SEPTIEMBRE 20/2022","SEPTIEMBRE 20/2022 - DICIEMBRE 29/2022",null,"TERMINADO"]
["19-6-0050-0-2022","ENERO 20/022","PRESTACIÓN SERVICIOS PROFESIONALES Y DE APOYO A LA GESTIÓN","JULY PAOLA FAJARDO SILVA",1020720692,"PRESTACIÓN DE SERVICIOS PROFESIONALES DE UN ABOGADO ESPECIALIZADO, CON EXPERIENCIA, PARA EL ACOMPAÑAMIENTO EN LA GESTIÓN QUE EJECUUTA Y DESARROLLA LA COORDINACIÓN DEL GIT PARA LA GESTIÓN JURÍDICO AMBIENTAL DE LA CORPORACIÓN AUTONOMA REGIONAL DEL CESAR",33936000,null,"8 MESES",null,3299,"46 ENERO 18/022",null,"45 ENERO 20/2022",null,"COORDINADOR GIT PARA LA GESTIÓN JURÍDICO AMBIENTAL","ENERO 24/2022","SEPTIEMBRE 23/2022",null,null,"TERMINADO"]
["19-6-0051-0-2022","ENERO 20/022","PRESTACIÓN SERVICIOS PROFESIONALES","PAOLA ANDREA VALVERDE CAMPOS",1065653818,"PRESTACIÓN DE SERVICIOS PROFESIONALES DE UN ABOGADO COMO APOYO JURÍDICO EN LAS GESTIÓNES QUE EJECUTA Y DESARRROLLA EL GRUPO INTERNO DE TRABAJO PARA LA GESTIÓN DE RECURSOS NATURALES, ECOSISTEMAS ESTRATEGICOS Y ÁREAS PROTEGIDAS",19792000,8164200,"8 MESES","3 MESES Y 9 DIAS",3202,"79 ENERO 18/022","726 SEPTIEMBRE 19/2022","46 ENERO 20/2022","1548 SEPTIEMBRE 19/2022","COORDINADOR GIT PARA LA GESTIÓN DE RECURSOS NATURALES, ECOSISTEMAS ESTRATÉGICOS Y ÁREAS PROTEGIDAS","ENERO 21/2022","SEPTIEMBRE 20/2022","SEPTIEMBRE 20/2022 - DICIEMBRE 29/2022",null,"LIQUIDADO"]
["19-6-0052-0-2022","ENERO 20/022","PRESTACIÓN SERVICIOS PROFESIONALES","GUSTAVO ARTURO CERCHIARO VASQUEZ",1065646972,"PRESTACION DE SERVICIOS DE UN INGENIERO GEOLOGO O GEOLOGO PARA EL ACOMPAÑAMIENTO Y APOYO A LA SUBDIRECCION GENERAL ÁREA DE PLANEACION Y LA SUBDIRECCION ÁREA GESTIÓN AMBIENTAL EN ACTIVIDADES RELACIONADAS A LA INCORPORACION DE LA GESTIÓN DEL RIESGO Y EL CAMBIO CLIMATICO EN EL ORDENAMIENTO AMBIENTAL DEL TERRITORIO, ASI COMO ACTIVIDADES RELACIONADAS CON SU PERFIL PROFESIONAL",22624000,8766800,"8 MESES","3 MESES Y 3 DIAS",3206,"42 ENERO 14/022","623 SEPTIEMBRE 05/2022","47 ENERO 20/2022","1447 SEPTIEMBRE 13/2022","ADRIANA MARGARITA GARCIA AREVALO-SUBDIRECCIÓN GENERAL DEL ÁREA DE PLANEACIÓN","ENERO 24/2022","SEPTIEMBRE 24/2022","SEPTIEMBRE 23/2022 - DICIEMBRE 26/2022",null,"TERMINADO"]
["19-6-0053-0-2022","ENERO 20/022","PRESTACIÓN SERVICIOS PROFESIONALES","ANDREA PAOLA SANCHEZ SINUCO",1063963688,"PRESTACIÓN DE SERVICIOS PROFESIONALES DE UN ABOGADO CON EXPERIENCIA COMO APOYO JURÍDICO EN LAS GESTIÓNES QUE EJECUTA Y DESARROLLA LA SUBDIRECCIÓN GENERAL ÁREA DE GESTIÓN AMBIENTAL",25448000,8906800,"8 MESES","2 MESES Y 24 DIAS",3203,"48 ENERO 18/022","750 SEPTIEMBRE 20/2022","49 ENERO 21/2022","1619 SEPTIEMBRE 23/2022","SUBDIRECCIÓN GENERAL DEL ÁREA DE GESTIÓN AMBIENTAL","FEBRERO 03/2022","OCTUBRE 02/2022","OCTUBRE 02/2022 - DICIEMBRE 26/2022",null,"TERMINADO"]
["19-6-0054-0-2022","ENERO 21/022","PRESTACIÓN SERVICIOS PROFESIONALES","MARINELA MENDOZA PEINADO",1064838753,"PRESTACIÓN DE SERVICIOS PROFESIONALES DE UN INGENIERO AMBIENTAL ESPECIALIZADO CON EXPERIENCIA COMO APOYO INGENIERIL EN LAS GESTIÓNES QUE EJECUTA Y DESARROLLA EL GRUPO INTERNO DE TRABAJO PARA LA GESTIÓN DE RECURSOS NATURALES, ECOSISTEMAS ESTRATEGICOS Y ÁREAS PROTEGIDAS",33936000,13574400,"8 MESES","3 MESES Y 6 DIAS",3202,"82 ENERO 18/022","772 SEPTIEMBRE 21/2022","69 ENERO 24/2022","1598 SEPTIEMBRE 22/2022","OSNEYDER DE JESUS QUINTERO ESCORCIA","ENERO 24/2022","SEPTIEMBRE 23/2022","SEPTIEMBRE 23/2022 - DICIEMBRE 29/2022",null,"TERMINADO"]
["19-6-0055-0-2022","ENERO 21/022","PRESTACIÓN SERVICIOS PROFESIONALES","MARWIN DAVID ARAUJO MARTINEZ",1065590570,"PRESTACIÓN DE SERRVICIOS PROFESIONALES DE UN INGENIERO DEL MEDIO AMBIENTE CON EXPERIENCIA COMO APOYO INGENIERIL EN LAS GESTIÓNES QUE EJECUTA Y DESARROLLA EL GRUPO INTERNO DE TRABAJO PARA LA  GESTIÓN DEL SEGUIMIENTO AMBIENTAL",25448000,10179200,"8 MESES","3 MESES Y 6 DIAS",3299,"56 ENERO 18/022","691 SEPTIEMBRE 15/2022","48 ENERO 21/2022","1469 SEPTIEMBRE 16/2022","COORDINADOR GIT PARA LA GESTIÓN DEL SEGUIMIENTO AMBIENTAL","ENERO 24/2022","SEPTIEMBRE 23/2022","SEPTIEMBRE 23/2022 - DICIEMBRE 29/2022",null,"TERMINADO"]
["19-6-0056-0-2022","ENERO 21/022","PRESTACIÓN SERVICIOS PROFESIONALES","LIZETH ALVARADO BELTRÁN",1065635761,"PRESTACIÓN DE SERVICIOS PROFESIONALES DE UNA INGENIERA AMBIENTAL CON EXPERIENCIA COMO APOYO INGENIERIL EN LAS GESTIÓNES QUE EJECUTA Y DESARROLLA EL GRUPO INTERNO DE TRABJO PARA LA GESTIÓN DEL SEGUIMIENTO AMBIENTAL",22624000,8955333,"8 MESES","3 MESES Y 5 DIAS",3299,"66 ENERO 18/022","727 SEPTIEMBRE 19/2022","61 ENERO 24/2022","1563 SEPTIEMBRE 20/2022","ROBERTO CARLOS PEÑA ALÍ","ENERO 25/2022","SEPTIEMBRE 24/2022","SEPTIEMBRE 24/2022 - DICIEMBRE 29/2022",null,"LIQUIDADO"]
["19-6-0057-0-2022","ENERO 21/022","PRESTACIÓN SERVICIOS PROFESIONALES","MARIA DEL PILAR MAESTRE ARIZA",1020774264,"PRESTACIÓN DE SERVICIOS PROFESIONALES DE UN ABOGADO CON EXPERIENCIA COMO APOYO JURÍDICO EN LAS GESTIÓNES QUE EJECUTA Y DESARRROLLA EL GRUPO INTERNO DE TRABAJO PARA LA GESTIÓN DEL SEGUIMIENTO AL APROVECHAMIENTO DEL RECURSO HIDRICO",22624000,8672533,"8 MESES","3 MESE Y 2 DIAS",3203,"55 ENERO 18/022","711 SEPTIEMBRE 15/2022","72 ENERO 24/2022","1551 SEPTIMBRE 19/2022","COORDINADOR GIT PARA LA GESTIÓN DEL SEGUIMIENTO AL APROVECHAMIENTO DEL RECURSO HIDRICO","ENERO 25/2022","SEPTIEMBRE 24/2022","SEPTIEMBRE 24/2022 - DICIEMBRE 26/2022",null,"TERMINADO"]
["19-6-0058-0-2022","ENERO 21/022","PRESTACIÓN SERVICIOS PROFESIONALES","MARIANO JOSE ZULETA OÑATE",77038174,"PRESTACIÓN DE SERVICIOS PROFESIONALES DE UN MÉDICO VETERINARIO ESPECIALIZADO, COMO APOYO DE ACUERDO A SU PERFIL EN LAS GESTIÓNES QUE EJECUTA Y DESARRROLLA LA SUBDIRECCIÓN GENERAL DEL ÁREA DE GESTIÓN AMBIENTAL",28280000,11194166,"8 MESES","3 MESES Y 5 DIAS",3202,"83 ENERO 18/022","761 SEPTIEMBRE 20/2022","56 ENERO 21/2022","1594 SEPTIEMBRE 22/2022","SUBDIRECCIÓN GENERAL DEL ÁREA DE GESTIÓN AMBIENTAL","ENERO 25/2022","SEPTIEMBRE 24/2022","SEPTIEMBRE 24/2022 - DICIEMBRE 29/2022",null,"TERMINADO"]
["19-6-0059-0-2022","ENERO 21/022","PRESTACIÓN SERVICIOS PROFESIONALES","VICTOR MANUEL VASQUEZ BERNATES",1065132281,"PRESTACIÓN DE SERVICIOS PROFESIONALES DE UN ABOGADO CON EXPERIENCIA COMO APOYO JURÍDICO EN LAS GESTIÓNES QUE EJECUTA Y DESARROLLA EL GRUPO INTERNO DE TRABAJO PARA LA GESTIÓN DEL SEGUIMIENTO AMBIENTAL",22624000,9049600,"8 MESES","3 MESES Y 6 DIAS",3299,"77 ENERO 18/022","743 SEPTIEMBRE 20/2022","57 ENERO 21/2022","1602 SEPTIEMBRE 22/2022","COORDINADOR GIT PARA LA GESTIÓN DEL SEGUIMIENTO AMBIENTAL","ENERO 24/2022","SEPTIEMBRE 23/2022","SEPTIEMBRE 23/2022 - DICIEMBRE 29/2022",null,"TERMINADO"]
["19-6-0060-0-2022","ENERO 20/022","PRESTACIÓN SERVICIOS PROFESIONALES","KEITHY MICHEL CABELLO LIÑAN",1065809260,"PRESTACIÓN DE SERVICIOS PROFESIONALES DE UN INGENIERO CIVIL CON EXPERIENCIA EN APOYO INGENIERIL EN LAS GESTIÓNES QUE EJECUTA Y DESARROLLA EL GRUPO INTERNO DE TRABAJO PARA LA GESTIÓN DEL SEGUIMIENTO PARA APROVECHAMIENTO DEL RECURSO HIDRICO",25448000,10073167,"8 MESES","3 MESES Y 5 DIAS",3203,"49 ENERO 18/022","666 SEPTIEMBRE 14/2022","75 ENERO 24/2022","1472 SEPTIEMBRE 16/2022","COORDINACIÓN DEL GRUPO INTERNO DE TRABAJO PARA LA GESTIÓN DEL SEGUIMIENTO DEL APROVECHAMIENTO DEL RECURSO HIDRICO","ENERO 25/2022","SEPTIEMBRE 24/2022","SEPTIEMBRE 24/2022 - DICIEMBRE 29/2022",null,"TERMINADO"]
["19-6-0061-0-2022","ENERO 21/022","PRESTACIÓN SERVICIOS PROFESIONALES","NILSON OCTAVIO TAPIA LOPEZ",10656556174,"PRESTACIÓN DE SERVICIOS PROFESIONALES DE UN ABOGADO PARA ACOMPAÑAR A LA OFICINA JURÍDICA DE LAS ACTIVIDADES QUE EJECUTA Y DESARROLLA EN EL MARCO DE SUS ATRIBUCIONES LEGALES Y REGLAMENTARIAS",19792000,7834333,"8 MESES","3 MESES Y 45 DIAS",3299,"69 ENERO 18/022","705 SEPTIEMBRE 15/2022","54 ENERO 21/2022","1600 SEPTIEMBRE 22/2022","EIVYS JOHANA VEGA RODRIGUEZ-JEFE OFICINA JURÍDICA","ENERO 25/2022","SEPTIEMBRE 23/2022","SEPTIEMBRE 23/2022 - DICIEMBRE 29/2022",null,"LIQUIDADO"]
["19-6-0062-0-2022","ENERO 21/022","PRESTACIÓN SERVICIOS PROFESIONALES","JOSEFH JADYRD RAMIREZ DAVID",15174907,"PRESTTACIÓN DE SERVICIOS PROFESIONALES DE UN INGENIERO AMBIENTAL CON EXPERIENCIA COMO APOYO INGENIERIL EN LAS GESTIÓNES QUE EJECUTA Y DESARROLLA EL GRUPO INTERNO DE TRABAJO PARA LA GESTIÓN DEL SEGUIMIENTO AL APROVECHAMIENTO DEL RECURSO HIDRICO",22624000,8955333,"8 MESES","3 MESES Y 11 DIAS","3203 01","73 ENERO 18/2022","667 SEPTIEMBRE 14/2022","73 ENERO 24/2022","1539 SEPTIEMBRE 19/2022","COORDINADOR GIT PARA LA GESTIÓN DEL SEGUIMIENTO AL APROVECHAMIENTO DEL RECURSO HIDRICO","ENERO 25/2022","SEPTIEMBRE 24/2022","SEPTIEMBRE 24/2022 - DICIEMBRE 30/2022",null,"TERMINADO"]
["19-6-0063-0-2022","ENERO 21/022","PRESTACIÓN SERVICIOS PROFESIONALES","KEINER DAVID RUEDA DAVILA",1065664206,"PRESTACIÓN DE SERVCIOS PROFESIONALES DE UN TECNOLOGO AMBIENTAL CON EXPERIENCIA COMO APOYO DE ACUERDO A SU PERFIL EN LAS GESTIÓNES QUE EJECUTA Y DESARROLLA EL GRUPO INTTERNO DE TRABAJO PARA LA GESTIÓN DEL SEGUIMENTO AMBIENTAL",18664000,7465600,"8 MESES","3 MESES Y 6 DIAS",3299,"85 ENERO 19/022","715 SEPTIEMBRE 15/2022","58 ENERO21/2022","1581 SEPTIEMBRE 20/2022","ROBERTO CARLOS PEÑA ALÍ","ENERO 24/2022","SEPTIEMBRE 23/2022","SEPTIEMBRE 23/2022 - DICEMBRE 29/2022",null,"TERMINADO"]
["19-6-0064-0-2022","ENERO 21/022","PRESTACIÓN SERVICIOS PROFESIONALES","HERMES MIGUEL ARAMENDIZ CANALES",77147285,"PRESTACIÓN DE SERVICIOS PROFESIONALES DE UN ABOGADO ESPECIALIZADO COMO APOYO JURÍDICO EN LAS GESTIÓNES QUE EJECUTA Y DESARROLLA EL GRUPO INTERNO DE TRABAJO PARA LA GESTIÓN DE PML, RESPEL Y COP",33936000,13433000,"8 MESES","3 MESES Y 5 DIAS",3201,"81 ENERO 18/022","733 SEPTIEMBRE 19/2022","65 ENERO 24/2022","1556 SEPTIEMBRE 20/2022","COORDINACIÓN GIT PARA LA GESTIÓN DE PML, RESPEL Y COP","ENERO 25/2022","SEPTIEMBRE 24/2022","SEPTIEMBRE 24/2022 - DICIEMBRE 29/2022",null,"TERMINADO"]
["19-6-0065-0-2022","ENERO 21/022","PRESTACIÓN SERVICIOS PROFESIONALES","HAROLD HENRY MELO PINTO",77178066,"PRESTACIÓN DE SERVICIOS DE UN AUXILIAR PARA QUE APOYE LAS ACTIVIDADES QUE EJECUTA Y DESARROLLA LA COORDINACIÓN GIT PARA LA GESTIÓN DE RECURSOS NATURALES, ECOSISTEMAS ESTRATEGICOS Y ÁREAS PROTEGIDAS, DE LA CORPORACIÓN",11312000,4383400,"8 MESES","3 MESES Y 3 DIAS",3202,"93 ENERO 19/022","745 SEPTIEMBRE 20/2022","62 SENERO 24/2022","1589 SEPTIEMBRE 21/2022","SUBDIRECCIÓN GENERAL DEL ÁREA DE GESTIÓN AMBIENTAL","ENERO 24/2022","SEPTIEMBRE 23/2022","SEPTIEMBRE 23/02022- DICIEMBRE 26/2022",null,"TERMINADO"]
["19-6-0066-0-2022","ENERO 24/022","PRESTACIÓN SERVICIOS PROFESIONALES","OSCAR ARMANDO TOLOZA FRAGOZO",77091128,"PRESTACIÓN DE SERVICIOS PROFESIONALES DE UN INGENIERO AMBIENTAL CON EXPERIENCIA COMO APOYO INGENIERIL EN LAS GESTIÓNES QUE EJECUTA Y DESARROLLA EL GRUPO INTERNO DE TRABAJO PARA LA GESTIÓN DEL SEGUIMIENTO AMBIENTAL",25448000,9755067,"8 MESES","3MESES Y 2 DIAS",3299,"53 ENERO 18/022","712 SEPTIEMBRE 15/2022","68 EEN 24/2022","1609 SEPTIEMBRE 22/2022","COORDINACIÓN GIT PARA LA GESTIÓN DEL SEGUIMIENTO AMBIENTAL","ENERO 25/2022","SEPTIEMBRE 24/2022","SEPTIEMBRE 24/2022 - DICIEMBRE 26/2022",null,"TERMINADO"]
["19-6-0067-0-2022","ENERO 21/022","PRESTACIÓN SERVICIOS PROFESIONALES","TALIA MARIA BARROSO HERNANDEZ",1065824903,"PRESTACION DE SERVICIOS PROFESIONALES DE UN INGENIERO AMBIENTAL COMO APOYO INGENIERIL EN LAS GESTIÓNES QUE EJECUTA Y DESARROLLA EL GRUPO INTERNO DE TRABAJO PARA LA GESTIÓN DE PML, RESPEL Y COP",19792000,7834333,"8 MESES","3 MESES Y 5 DIAS","3201 05","76 ENERO 18/2022","728 SEPTIEMBRE 19/2022","55 ENERO 21/2022","1588 SEPTIEMBRE 21/2022","COORDINACIÓN GIT PARA LA GESTIÓN DE PML, RESPEL Y COP","ENERO 25/2022","SEPTIEMBRE 24/2022","SEPTIEMBRE 24/2022 - DICIEMBRE 29/2022",null,"TERMINADO"]
["19-6-0068-0-2022","ENERO 22/022","PRESTACIÓN SERVICIOS PROFESIONALES","LUIS EDUARDO BUELVAS HERNANDEZ",1063948323,"PRESTACIÓN DE SERVICIOS PROFESIONALES DE UN INGENIERO AMBIENTAL ESPECIALIZADO COMO APOYO INGENIERIL EN LAS GESTIÓNES QUE EJECUTA Y DESARROLLA LA SUBDIRECCIÓN GENERAL DEL ÁREA DE GESTIÓN AMBIENTAL",28280000,null,"8 MESES",null,"3203-3299","61 ENERO 18/022",null,"64 ENERO 24/2022",null,"SUBDIRECCIÓN GENERAL DEL ÁREA DE GESTIÓN AMBIENTAL","ENERO 25/2022","SEPTIEMBRE 24/2022",null,null,"LIQUIDADO"]
["19-6-0069-0-2022","ENERO 22/022","PRESTACIÓN SERVICIOS PROFESIONALES","KELYS YOHANA DAZA MARTINEZ",57452760,"PRESTACIÓN DE SERVICIOS PROFESIONALES DE UN INGENIERO CIVIL CON EXPERIENCIA EN APOYO INGENIERIL EN LAS GESTIÓNES QUE EJECUTA Y DESARROLLA LA SUBDIRECCIÓN GENERAL DEL ÁREA DE GESTIÓN AMBIENTAL",25448000,9755067,"8 MESES","3 MESES Y 2 DIAS",3299,"74 ENERO 18/022","755 SEPTIEMBRE 20/2022","74 ENERO 24/2022","1590 SEPTIEMBRE 21/2022","ADRIAN ALBERTO IBARRA USTARIZ","ENERO 25/2022","SEPTIEMBRE 24/2022","SEPTIEMBRE 24/2022 - DICIEMBRE 26/2022",null,"TERMINADO"]
["19-6-0070-0-2022","ENERO 22/022","PRESTACIÓN SERVICIOS PROFESIONALES","FABIAN LEONARDO RUIZ VELASQUEZ",1100953097,"PRESTACIÓN DE SERVICIOS PROFESIONALES DE UN INGENIERO AMBIENTAL ESPECIALIZADO CON EXPERIENCIA COMO APOYO INGENIERIL EN LAS GESTIÓNES QUE EJECUTA Y DESARROLLA LA SUBDIRECCIÓN GENERAL DEL ÁREA DE GESTIÓN AMBIENTAL",33936000,13150200,"8 MESES","3 MESES Y 3 DIAS","3202-3299","84 ENERO 19/022","730 SEPTIEMBRE 19/2022","66 ENERO 24/2022","1586 SEPTIEMBRE 21/2022","SUBDIRECCIÓN GENERAL DEL ÁREA DE GESTIÓN AMBIENTAL","ENERO 27/2022","SEPTIEMBRE 26/2022","SEPTIEMBRE 26/2022  - DICIEMBRE 29/2022",null,"TERMINADO"]
["19-6-0071-0-2022","ENERO 25/022","PRESTACIÓN SERVICIOS PROFESIONALES","YUNIBETH GONZALEZ ROSADO",1065630719,"PRESTACIÓN DE SERVICIOS PROFESIONALES DE UN INGENIERO DE MINAS CON EXPERIENCIA COMO APOYO INGENIERIL EN LAS GESTIÓNES QUE EJECUTA Y DESARROLLA EL GRUPO INTERNO DE TRABAJO PARA LA GESTIÓN DEL SEGUIMIENTO AMBIENTAL",22624000,11312000,"8 MESES","4 MESES",3299,"68 ENERO 18/022","768 SEPTIEMBRE 21/2022","71 ENERO 24/2022","1603 SEPTIEMBRE 22/2022","COORDINADOR GIT PARA LA GESTIÓN DEL SEGUIMIENTO AMBIENTAL","ENERO 25/2022","SEPTIEMBRE 24/2022","SEPTIEMBRE 24/2022 - ENERO 4/20233",null,"TERMINADO"]
["19-6-0072-0-2022","ENERO 22/022","PRESTACIÓN SERVICIOS PROFESIONALES Y DE APOYO A LA GESTIÓN","CARLOS EDUARDO PACHECO LONDOÑO",1067721600,"PRESTACIÓN DE SERVICIOS DE UN TECNICO O TECNOLOGO O EGRGESADO DE INGENIERÍA AMBIENTAL PARA EL ACOMPAÑAMIENTO Y EL APOYO A LA GESTIÓN Y ACTIVIDADES QUE EJECUTA Y DESARROLLA LA COORDINACIÓN DEL GIT PARA LA GESTIÓN JURÍDICO AMBIENTAL",19232000,7532533,"8 MESES","3 MESES Y 4 DIAS","3299 03","91 ENERO 19/2022","648 SEPTIEMBRE 08/2022","60 ENERO 24/2022","1451 SEPTIEMBRE 13/2022","COORDINADOR GIT PARA LA GESTIÓN JURÍDICO AMBIENTAL","ENERO 26/2022","SEPTIEMBRE 25/2022","SEPTIEMBRE 25/2022 - DICIEMBRE 29/2022",null,"TERMINADO"]
["19-6-0073-0-2022","ANULADO","-","-","-","-","-","-","-","-","-","-","-","-","-","-","-","-","-","-","-"]
["19-6-0074-0-2022","ENERO 22/022","PRESTACIÓN SERVICIOS PROFESIONALES","TORRES ABOGADOS Y ASOCIADOS SAS","900847330-6","PRESTACIÓN DE SERVICIOS PROFESIONALES PARA LA DEFENSA JURÍDICA DE LOS INTERESES CORPOCESAR EN LOS PROCESOS ORDINARIOS CONTENCIOSO ADMINISTRATIVO, EN LOS EJECUTIVOS Y EN LOS DEMÁS LITIGIOS QUE SE TRAMITEN EN LA JURISDICCIÓN CONTENCIOSA ADMINISTRATIVA EN LOS QUE ESTÉ INVOLUCRADO COMO PARTE DEMANDANTE O DEMANDADA LA CORPORACIÓN; Y ASESORÍA JURÍDICA EN ASUNTOS DE DERECHO ADMINISTRATIVO, FINANCIERO, PRESUPUESTAL Y LAS ACTUACIONES ADMINISTRATIVAS SANCIONATORIAS EN LA ACTIVIDAD CONTRACTUAL; DENTRO DEL CONTEXTO DE LA POLITICA DE PREVENCIÓN DEL DAÑO",72000000,null,"8 MESES",null,3299,"65 ENERO 18/022",null,"67 ENERO 24/2022",null,"EIVYS JOHANA VEGA RODRIGUEZ-JEFE OFICINA JURÍDICA","ENERO 24/2022","SEPTIEMBRE 23/2022",null,null,"TERMINADO"]
["19-6-0075-0-2022","ENERO 22/022","PRESTACIÓN SERVICIOS PROFESIONALES","DELWIN JOSE MUÑOZ MENDOZA",12645651,"PRESTACIÓN DE SERVICIOS PROFESIONALES DE UN INGENIERO DE MINAS CON EXPERIENCIA COMO APOYO INGENIERIL EN LAS GESTIÓNES QUE EJECUTA Y DESARROLLA LA SUBDIRECCIÓN GENERAL DEL ÁREA DE GESTIÓN AMBIENTAL",25448000,9118866,"8 MESES","2 MESES Y 26 DIAS",3299,"54 ENERO 18/022","754 SEPTIEMBRE 20/2022","80 ENERO 24/2022","1631 SEPTIEMBRE 23/2022","ADRIAN ALBERTO IBARRA USTARIZ","FEBRERO 01/2022","SEPTIEMBRE 30/2022","SEPTIEMBRE 30/2022 - DICIEMBRE 26/2022",null,"TERMINADO"]
["19-6-0076-0-2022","ENERO 22/022","PRESTACIÓN SERVICIOS PROFESIONALES","LUIS ARMANDO GARNICA",77009132,"PRESTACIÓN DE SERVICIOS DE APOYO A LA GESTIÓN DE UN TÉCNICO LABORAL POR COMPETENCIAS EN ASISTENTE ADMINISTRATIVO PARA QUE APOYE LA GESTIÓN QUE DESARROLLA LA OFICINA DE ALMACEN DE LA CORPORACIÓN AUTONOMA REGIONAL DEL CESAR",13984000,5127466,"8 MESES","2 MESES Y 28 DIAS","A-02","78 ENERO 18/022","763 SEOTIEMBRE 21/2022","82 ENERO 24/2022","1629 SEPTIEMBRE 23/2022","JEFE DE ALMACEN DE LA CORPORACIÓN AUTONOMA REGIONAL DEL CESAR","FEBRERO 02/2022","OCTUBRE 01/2022","OCTUBRE 01/2022 - DICIEMBRE 29/2022",null,"TERMINADO"]
["19-6-0077-0-2022","ENERO 22/022","PRESTACIÓN SERVICIOS PROFESIONALES","FRANCISCO ALBERTO CORZO OROZCO",1065657560,"PRESTACIÓN DE SERVICIOS PROFESIONALES DE UN INGENIERO DE MINAS CON EXPERIENCIA COMO APOYO INGENIERIL EN LAS GESTIÓNES QUE EJECUTA Y DESARROLLA EL GRUPO INTERNO DE TRABAJO PARA LA GESTIÓN DEL SEGUIMIENTO AMBIENTAL",22624000,8578266,"8 MESES","3 MESES Y 1 DIA",3299,"92 ENERO 19/022","770 SEPTIEMBRE 21/2022",79,1632,"ROBERTO CARLOS PEÑA ALÍ","ENERO 26/2022","SEPTIEMBRE 25/2022","SEPTIEMBRE 25/2022 - DICIEMBRE 26/2022",null,"CEDIDO CONTRATO "]
["19-6-0078-0-2022","ENERO 22/022","PRESTACIÓN SERVICIOS PROFESIONALES","TATIANA MARGARITA ROJAS ZULETA",49724346,"PRESTACIÓN DE SERVCIOS PROFESIONALES DE UN INGENIERO AMBIENTAL ESPECIALIZADO CON EXPERIENCIA COMO APOYO INGENIERIL EN LAS GESTIÓNES QUE EJECUTA Y DESARROLLA EL GRUPO INTERNO DE TRABAJO PARA LA GESTIÓN DE RECURSOS NATURALES, ECOSISTEMAS ESTRATEGICOS Y ÁREAS PROTEGIDAS",28280000,10958500,"8 MESES","3 MESES Y 3 DIAS",3202,"118 ENERO 20/022","759 SEPTIEMBRE 20/2022","59 ENERO 24/2022","1596 SEPTIEMBRE 22/2022","COORDINADOR GIT PARA LA GESTIÓN DE RECURSOS NATURALES, ECOSISTEMAS ESTRATÉGICOS Y ÁREAS PROTEGIDAS","ENERO 25/2022","SEPTIEMBRE 23/2022","SEPTIEMBRE 23/2022 - DICIEMBRE 27/2022",null,"LIQUIDADO"]
["19-6-0079-0-2022","ENERO 24/022","PRESTACIÓN SERVICIOS PROFESIONALES","JAMES JOSE ALVAREZ MONTAÑO",1062397867,"PRESTACIÓN DE SERVICIOS PROFESIONALES DE UN TÉCNICO EN ADMINISTRACIÓN DE RECURSOS NATURALES CON EXPERIENCIA COMO APOYO DE ACUERDO A SU PERFIL EN LAS GESTIÓNES QUE EJECUTA Y DESARROLLA EL GRUPO INTERNO DE TRABAJO PARA LA GESTIÓN DEL SEGUIMIENTO AMBIENTAL",15840000,6006000,"8 MESES","3 MESES Y 1 DIA",3299,"95 ENERO 19/022","717 SEPTIEMBRE 15/2022","77 ENERO 24/2022","1610 SEPTIEMBRE 22/2022","COORDINADOR GIT PARA LA GESTIÓN DEL SEGUIMIENTO AMBIENTAL","ENERO 26/2022","SEPTIEMBRE 25/2022","SEPTIEMBRE 25/2022 - DICIEMBRE 26/2022",null,"TERMINADO"]
["19-6-0080-0-2022","ENERO 24/022","PRESTACIÓN SERVICIOS PROFESIONALES","OSNAIDER ENRIQUE LINDO MORALES",1065632371,"PRESTACIÓN DE SERVICIOS PROFESIONALES DE UN INGENIERO AMBIENTAL CON EXPERIENCIA COMO APOYO INGENIERIL EN LAS GESTIÓNES QUE EJECUTA Y DESARROLLA EL GRUPO INTERNO DE TRABAJO PARA LA GESTIÓN DEL SEGUIMIENTO AL APROVECHAMIENTO DEL RECURSO HIDRICO",22624000,8672533,"8 MESES","3 MESE Y 2 DIAS",3203,"72 ENERO 18/022","769 SEPTIEMBRE 21/2022","78 ENERO 24/2022","1630 SEPTIEMBRE 23/2022","ESTEFANI PAOLA RONDON VELASQUEZ","ENERO 25/2022","SEPTIEMBRE 24/2022","SEPTIEMBRE 24/2022 - DICIEMBRE 26/2022",null,"TERMINADO"]
["19-6-0081-0-2022","ENERO 24/022","PRESTACIÓN SERVICIOS PROFESIONALES","CRISTRIAN XAVIER LOPEZ HERAZO",1090459881,"PRESTACIÓN DE SERVICIOS PROFESIONALES DE UN INGENIERO CIVIL CON EXPERIENCIA COMO APOYO INGENIERIL EN LAS GESTIÓNES QUE EJECUTA Y DESARROLLA EL GRUPO INTERNO DE TGRABAJO PARA LA GESTIÓN DEL SEGUIMIENTO AL APROVECHAMIENTO DEL RECURSO HIDRICO",25448000,9967133,"8 MESES","3 MESES Y 4 DIAS",3203,"71 ENERO 18/022","735 SEPTIEMBRE 19/2022","81 ENERO 24/2022","1607 SEPTIEMBRE 22/2022","COORDINADOR GIT PARA LA GESTIÓN DEL SEGUIMIENTO AL APROVECHAMIENTO DEL RECURSO HIDRICO","ENERO 26/2022","SEPTIEMBRE 25/2022","SEPTIEMBRE 25/2022 - DICIEMBRE 29/2022",null,"TERMINADO"]
["19-6-0082-0-2022","ENERO 22/022","PRESTACIÓN SERVICIOS PROFESIONALES","LUZ DARY BOTELLO SOCARRAS",49608625,"PRESTACIÓN DE SERVICIOS PROFESIONALES DE UN ABOGADO ESPECIALIZADO CON EXPERIENCIA COMO APOYO JURÍDICO EN LAS GESTIÓNES QUE EJECUTA Y DESARROLLA EL GRUPO INTERNO DE TRABAJO PARA LA GESTIÓN DE RECURSOS NATURALES, ECOSISTEMAS ESTRATÉGICOS Y ÁREAS PROTEGIDAS",33936000,null,"8 MESES",null,3202,"98 ENERO 19/022",null,"63 ENERO 24/2022",null,"COORDINADOR GIT PARA LA GESTIÓN DE RECURSOS NATURALES, ECOSISTEMAS ESTRATÉGICOS Y ÁREAS PROTEGIDAS","ENERO 25/2022","SEPTIEMBRE 23/2022",null,null,"TERMINADO"]
["19-6-0083-0-2022","ENERO 24/022","PRESTACIÓN SERVICIOS AUXILIAR DE APOYO","EDUARDO JOSE DE LA HOZ CASTRO",1065631716,"PRESTACIÓN DE SERVICIOS DE UN AUXILIAR PARA QUE APOYE LA GESTIÓN Y ACTIVIDADES QUE EJECUTA Y DESARROLLA LA COORDINACIÓN (GIT) PARA LA GESTIÓN DEL SEGUIMIENTO AL APROVECHAMIENTO DEL RECURSO HIDRICO, EN LAS LABORES DE GESTIÓN DOCUMENTAL, ARCHIVO Y MANEJO DE LOS DOCUMENTOS Y EXPEDIENTES QUE CONTIENEN LOS INSTRUMENTOS DE CONTROL, CONSECUSIÓN DE INFORMACIÓN Y RELACIONAMIENTO DOCUMENTAL CON LAS DEMÁS DEPENDENCIAS ",19232000,7532533,"8 MESES","3 MESES Y 4 DIAS",3203,"108 ENERO 20/022","710 SEPTIEMBRE 15/2022","95 ENERO 25/2022","1550 SEPTIEMBRE 19/2022","COORDINADOR GIT PARA LA GESTIÓN DEL SEGUIMIENTO AL APROVECHAMIENTO DEL RECURSO HIDRICO","ENERO 26/2022","SEPTIEMBRE 25/2022","SEPTIEMBRE 25/2022 - DICIEMBRE 29/2022",null,"TERMINADO"]
["19-6-0084-0-2022","ENERO 24/022","PRESTACIÓN SERVICIOS PROFESIONALES","ADRIANA PATRICIA BENITEZ CAMARGO",49715649,"PRESTACIÓN DE SERVICIOS PROFESIONALES DE UN INGENIERO AMBIENTAL ESPECIALIZADO COMO APOYO INGENIERIL EN LAS GESTIÓNES QUE EJECUTA Y DESARROLLA EL GRUPO INTERNO DE TRABAJO PARA LA GESTIÓN DEL SEGUIMIENTO AL APROVECHAMIENTO DEL RECURSO HIDRICO",28280000,11076333,"8 MESES","3 MESES Y 4 DIAS",3203,"50 ENERO 18/022","732 SEPTIEMBRE 19/2022","97 ENERO 25/2022","1554 SEPTIEMBRE 20/2022","COORDINADOR GIT PARA LA GESTIÓN DEL SEGUIMIENTO AL APROVECHAMIENTO DEL RECURSO HIDRICO","ENERO 26/2022","SEPTIEMBRE 25/2022","SEPTIEMBRE 25/2022 - DICIEMBRE 29/2022",null,"TERMINADO"]
["19-6-0085-0-2022","ENERO 24/022","PRESTACIÓN SERVICIOS PROFESIONALES","DARIO JOSE MENDOZA LOPEZ",1065660117,"PRESTACIÓN DE SERVICIOS PROFESIONALES DE UN ABOGADO PARA EL APOYO A LA SUBDIRECCIÓN GENERAL ÁREA ADMINISTRATIVA Y FINANCIERA, COORDINACIÓN DEL GIT PARA LA GESTIÓN FINANCIERA, ESPECIFICAMENTE EN LA TESORERIA EN LAS ACTVIDADES RELACIONADAS CON LA REALIZACIÓN DEL COBRO PERSUASIVO, CONCILIACIÓN DE SALDOS, Y ACUERDOS DE PAGO CON LOS DEUDORES DE LA CORPORACIÓN AUTONOMA REGIONAL DEL CESAR CORPOCESAR",22624000,8955333,"8 MESES","3 MESES Y 5 DIAS",3299,"111 ENERO 20/022","663 SEPTIEMBRE 14/2022","96 ENERO 25/2022","1478 SEPTIEMBRE 16/2022","TESORERIA","ENERO 25/2022","SEPTIEMBRE 24/2022","SEPTIEMBRE 24/2022 - DICIEMBRE 29/2022",null,"TERMINADO"]
["19-6-0086-0-2022","ENERO 25/022","PRESTACIÓN SERVICIOS PROFESIONALES","VICTORIA ARTEAGA LACOUTURE",49761127,"PRESTACIÓN DE SERVICIOS PROFESIONALES DE UN ABOGADO PARA EL APOYO A LA COORDINACIÓN DEL GIT PARA LA GESTIÓN FINANCIERA, EN LAS ACTIVIDADES RELACIONADAS CON LA REALIZACIÓN DEL COBRO PERSUASIVO, CONCILIACIÓN DE SALDOS Y ACUERDOS DE PAGO CON LOS DEUDORES DE LA CORPORACIÓN AUTONOMA REGIONAL DEL CESAR CORPOCESAR",25448000,9861100,"8 MESES","3 MESES Y 3 DIAS",3299,"112 ENERO 20/022","722 SEPTIEMBRE 15/2022","94 ENERO 25/2022","1553 SEPTIEMBRE 20/2022","ARMANDO DE JESUS VILLAZON SANCHEZ","ENERO 27/2022","SEPTIEMBRE 26/2022","SEPTIEMBRE 26/2022 - DICIEMBRE 29/2022",null,"TERMINADO"]
["19-6-0087-0-2022","ENERO 26/022","PRESTACIÓN SERVICIOS PROFESIONALES","DAYANA CAMPO SANTANA",1065623480,"PRESTACIÓN DE SERVICIOS PROFESIONALES DE UN INGENIERO AMBIENTAL COMO APOYO INGENIERIL EN LAS GESTIÓNES QUE EJECUTA Y DESARROLLA EL GRUPO INTERNO DE TRABAJO PARA LA GESTIÓN DE PML, RESPEL Y COP",19792000,9566133,"8 MESES","3 MESES Y 26 DIAS",3201,"106 ENERO 20/022","774 SEPTIEMBRE 21/2022","102 ENERO 26/2022","1650 SEPTIEMBRE 27/2022","COORDINADOR GIT PARA LA GESTIÓN DEL PML, RESPEL Y COP","FEBRERO 01/2022","SEPTIEMBRE 30/2022","SEPTIEMBRE 30/2022 - ENERO 25/2023",null,"TERMINADO"]
["19-6-0088-0-2022","ENERO 25/022","PRESTACIÓN SERVICIOS PROFESIONALES","JOSE SABINO TEJEDA SANTIAGO",6688994,"PRESTACIÓN DE SERVICIOS PROFESIONALES DE UN INGENIERO AMBIENTAL CON EXPERIENCIA, COMO APOYO INGENIERIL EN LAS GESTIÓNES QUE EJECUTA Y DESARROLLA EL GRUPO INTERNO DE TRABAJO PARA LA GESTIÓN EN LA SECCIONAL DE CHIMICHAGUA",25448000,8906800,"8 MESES","2 MESES Y 24 DIAS","3203-3299","103 ENERO 20/022","771 SEPTIEMBRE 21/2022","103 ENERO 26/2022","1618 SEPTIEMBRE 23/2022","COORDINADOR SECCIONAL CHIMICHAGUA","FEBRERO 03/2022","OCTUBRE 02/2022","OCTUBRE 02/2022 - DICIEMBRE 26/2022",null,"TERMINADO"]
["19-6-0089-0-2022","ENERO 24/022","PRESTACIÓN SERVICIOS PROFESIONALES","JOSE JORGE BROCHERO HERRERA",1119838781,"PRESTACIÓN DE SERVICIOS PROFESIONALES DE UN INGENIERO DE MINAS CON EXPERIENCIA COMO APOYO INGENIERIL EN LAS GESTIÓNES QUE EJECUTA Y DESARROLLA EL GRUPO INTERNO DE TRABAJO PARA LA GESTIÓN DEL SEGUIMIENTO AMBIENTAL",25448000,9118867,"8 MESES","2 MESES Y 26 DIAS",3299,"110 ENERO 20/022","714 SEPTIEMBRE 15/2022","92 ENERO 25/2022","1559 SEPTIEMBRE 20/2022","ROBERTO CARLOS PEÑA ALÍ","ENERO 31/2022","SEPTIEMBRE 30/2022","SEPTIEMBRE 30/2022 - DICIEMBRE 26/2022",null,"TERMINADO"]
["19-6-0090-0-2022","ENERO 25/022","PRESTACIÓN SERVICIOS PROFESIONALES","JANIS KARINA TARIFFA BRAVO",1065838696,"PRESTACIÓN DE SERVICIOS DE UN EGRESADO DEL PROGRAMA DE DERECHO PARA APOYAR A LA OFICINA JURÍDICA EN LAS ACTIVIDADES QUE EJECUTA Y DESARROLLA EN EL MARCO DE SUS ATRIBUCIONES LEGALES Y REGLAMENTARIAS",19232000,7372266,"8 MESES","3 MESES Y 2 DIAS",3299,"105 ENERO 20/022","664 SEPTIEMBRE 14/2022","93 ENERO 25/2022","1540 SEPTIEMBRE 19/2022","EIVYS JOHANA VEGA RODRIGUEZ-JEFE OFICINA JURÍDICA","ENERO 28/2022","SEPTIEMBRE 27/2022","SEPTIEMBRE 27/2022 - DICIEMBRE 29/2022",null,"TERMINADO"]
["19-6-0091-0-2022","ENERO 25/022","PRESTACIÓN SERVICIOS PROFESIONALES","JOSE ENRIQUE JIMENEZ OROZCO",1037591303,"PRESTACION DE SERVICIOS PROFESIONALES DE UN ABOGADO ESPECIALIZADO CON EXPERIENCIA EN ASUNTOS ADMINISTRATIVOS Y DSCIPLINARIOS PARA QUE APOYE A LA SECRETARIA GENERAL EN LA EJECUCION Y DESARROLLE LAS ACTIVIDADES PROPIAS DE ESTA DEPENDENCIA",28280000,10487167,"8 MESES","2 MESES Y 29 DIAS","3299 02","45 ENERO 14/2022","626 SEPTIEMBRE 05/2022","121 ENERO 26/2022","1415 SEPTIEMBRE 08/2022","SECRETARÍA GENERAL JAIME ARAUJO CASTRO","FEBRERO 01/2022","SEPTIEMBRE 30/2022","SEPTIEMBRE 30/2022 - DICIEMBRE 29/2022",null,"TERMINADO"]
["19-6-0092-0-2022","ENERO 26/022","PRESTACIÓN SERVICIOS PROFESIONALES","JACKELINE M GONZALEZ PADILLA",49719101,"PRESTACIÓN DE SERVICIOS PROFESIONALES DE UN INGENIERO INDUSTRIAL CON ESPECIALIZACIÓN Y/O EXPERIENCIA PARA EL APOYO AL GRUPO INTERNO DE TRABAJO PARA LA GESTIÓN DE PML, RESPEL Y COP, COMO SOPORTE DE ACUERDO CON SU PERFIL INGENIERIL, EN LAS ACTIVIDADES DE SEGUIMIENTO, CONTROL, VIGILANCIA Y EVALUACIÓN AMBIENTAL, Y ACOMPAÑAMIENTO EN LA OPTIMIZACIÓN Y VERIFICACIÓN DE PROCEDIMIENTOS",33936000,16968000,"8 MESES","4 MESES",3201,"80 ENERO 18/022","723 SEPTIEMBRE 16/2022","86 ENERO 25/2022","1611 SEPTIEMBRE 22/2022","COORDINADOR DEL GIT PARA LA GESTIÓN DE PML, RESPEL Y COP","ENERO 27/2022","SEPTIEMBRE 26/2022","SEPTIEMBRE 26/2022 - ENERO 26/2023",null,"TERMINADO"]
["19-6-0093-0-2022","ENERO 25/022","PRESTACIÓN SERVICIOS PROFESIONALES","MARBEL VILARDY BADILLO",1094280119,"PRESTACION DE SERVICIOS PROFESIONALES DE UN INGENIERO QUIMICO COMO APOYO INGENIERIL EN LAS GESTIÓNES QUE EJECUTA Y DESARROLLA EL GRUPO INTERNO DE TRABAJO DEL LABORATORIO AMBIENTAL",19792000,7669400,"8 MESES","3 MESES Y 3 DIAS","3299 01","107 ENERO 20/2022","602 SEPTIEMBRE 01/2022","117 ENERO 26/2022","1442 SEPTIEMBRE 09/2022","CARLOS ALBERTO OSORIO MOLINA","ENERO 27/2022","SEPTIEMBRE 26/2022","SEPTIEMBRE 26/2022 - DICIEMBRE 29/2022",null,"TERMINADO"]
["19-6-0094-0-2022","ENERO 26/022","PRESTACIÓN SERVICIOS PROFESIONALES","ENNY JOHANNA TORRES CARRILLO",22479920,"PRESTACION DE SERVICIOS DE UN PROFESIONAL EN INGENIERIA INDUSTRIAL, CIVIL, AMBIENTAL Y/O DISCIPLINAS A FINES, CON ESPECIALIZACION EN GESTIÓN AMBIENTAL, CON CONOCIMIENTO Y EXPERIENCIA EN EL SECTOR AMBIENTAL PARA LA ASISTENCIA Y APOYO TECNICO EN LA FORMULACION, EVALUACION Y SEGUIMIENTO DE PROYECTOS EN EL MARCO DEL FORTALECIMIENTO DE LA SUBDIRECCION ÁREA DE PLANEACION DE LA CORPORACION AUTONOMA REGIONAL DEL CESAR",33936000,12160400,"8 MESES","2 MESES Y 26 DIAS","3203 01\n3299 02","117 ENERO 20/2022","595 AGOSTO 31/2022","115 ENERO 26/2022","1372 SEPTIEMBRE 06/2022","ADRIANA MARGARITA GARCIA AREVALO-SUBDIRECCIÓN GENERAL DEL ÁREA DE PLANEACIÓN","FEBRERO 01/2022","SEPTIEMBRE 30/2022","SEPTIEMBRE 30/2022 - DICIEMBRE 26/2022",null,"TERMINADO"]
["19-6-0095-0-2022","ENERO 25/022","PRESTACIÓN SERVICIOS PROFESIONALES","LEYDI ANDREA CORTEZ CARDENAS",1118121653,"PRESTACIÓN DE SERVICIOS PROFESIONALES DE UN INGENIERO FORESTAL CON EXPERIENCIA COMO APOYO INGENIERIL EN LAS GESTIÓNES QUE EJECUTA Y DESARROLLA LA SUBDIRECCIÓN GENERAL DEL ÁREA DE GESTIÓN AMBIENTAL",25448000,9118866,"8 MESES","2 MESES Y 26 DIAS",3202,"90 ENERO 19/022","720 SEPTIEMBRE 15/2022","118 ENERO 26/2022","1608 SEPTIEMBRE 22/2022","SUBDIRECCIÓN GENERAL DEL ÁREA DE GESTIÓN AMBIENTAL","FEBRERO 01/2022","SEPTIEMBRE 30/2022","SEPTIEMBRE 30/2022 - DICIEMBRE 26/2022",null,"TERMINADO"]
["19-6-0096-0-2022","ENERO 25/022","PRESTACIÓN SERVICIOS PROFESIONALES","EDER ALFREDO MADARIAGA NUÑEZ",1065618058,"PRESTACIÓN DE SERVICIOS PROFESIONALES DE UN INGENIERO AMBIENTAL CON EXPERIENCIA COMO APOYO INGENIERIL EN LAS GESTIÓNES QUE EJECUTA Y DESARROLLA EL GRUPO INTERNO DE TRABAJO PARA LA GESTIÓN DEL SEGUIMIENTO AMBIENTAL",22624000,8578266,"8 MESES","3 MESES Y 1 DIA",3299,"104 ENERO 20/022","708 SEPTIEMBRE 15/2022","116 ENERO 26/2022","1606 SEPTIEMBRE 22/2022","ROBERTO CARLOS PEÑA ALÍ","ENERO 26/2022","SEPTIEMBRE 25/2022","SEPTIEMBRE 25/2022 - DICIEMBRE 26/2022",null,"TERMINADO"]
["19-6-0097-0-2022","ENERO 25/022","PRESTACIÓN SERVICIOS PROFESIONALES","ESTEFANIA JIMENEZ MIRANDA",1007814695,"PRESTACIÓN DE SERVICIOS PROFESIONALES DE UN TECNICO Y/O AUXILIAR DE APOYO LAS LABORES DE GESTIÓN DOCUMENTAL ARCHIVO Y MANEJO DE LOS DOCUMENTOS Y EXPEDIENTES QUE CONTIENEN LOS INSTRUMENTOS DE CONTROL, CONSECUCIÓN DE INFORMACIÓN Y RELACIONAMIENTO DOCUMENTAL DE GESTIÓNES QUE EJECUTA Y DESARROLLAEL GRUPO INTERNO DE TRABAJO PARA LA GESTIÓN DEL PML, RESPEL Y COP",15840000,5874000,"8 MESES","2 MESES Y 29 DIAS",3201,"67 ENERO 18/022","731 SEPTIEMBRE 19/2022","114 ENERO 26/2022","1613 SEPTIEMBRE 22/2022","JORGE HUMBERTO JIMENEZ DURAN","ENERO 31/2022","SEPTIEMBRE 30/2022","SEPTIEMBRE 30/2022 - DICIEMBRE 29/2022",null,"TERMINADO"]
["19-6-0098-0-2022","ENERO 25/022","PRESTACIÓN SERVICIOS PROFESIONALES","GISSETH CAROLINA URREGO VELEZ",1152436232,"PRESTACIÓN DE SERVICIOS PROFESIONALES DE UN INGENIERO QUIMICO CON EXPERIENCIA, COMO APOYO INGENIERIL EN LAS GESTIÓNES QUE EJECUTA Y DESARROLLA EL GRUPO INTERNO DE TRABAJO DEL LABORATORIO AMBIENTAL",25448000,12723999,"8 MESES","4 MESES","3299 01","113 ENERO 20/2022","892 NOVIEMBRE 03/2022","83 ENERO 24/2022","1982 NOVIEMBRE 11/2022","COORDINADOR DEL GIT DEL LABORATORIO AMBIENTAL","FEBRERO 01/2022","SEPTIEMBRE 30/2022","SEPTIEMBRE 30/2022 - ENERO 30/2022",null,"TERMINADO"]
["19-6-0099-0-2022","ENERO 25/022","PRESTACIÓN SERVICIOS PROFESIONALES","SORIVONNE OROZCO GONZALEZ",22581119,"PRESTACIÓN DE SERVICIOS DE UN PROFESIONAL DEL ÁREA DE LA SALUD ESPECIALIZADO EN SALUD OCUPACIONAL CON MINIMO DOS AÑOS DE EXPERIENCIA PROFESIONAL RELACIONADA, CON RESOLUCIÓN VIGENTE Y CURSO VIRTUAL DE 50 HORAS PARA LA ADMINISTRACIÓN, COORDINACIÓN, ACTUALIZACIÓN E IMPLEMENTACIÓN DEL SISTEMA DE GESTIÓN DE LA SEGURIDAD Y SALUD EN EL TRABAJO EN LA CORPORACIÓN AUTONOMA REGIONAL DEL CESAR CORPOCESAR Y DEMÁS ACTIVIDADES NECESARIAS PARA LA IMPLEMENTACIÓN DEL SISTEMA, DE ACUERDO AL DECRETO UNICO REGLAMENTARIO DEL SECTOR TRABAJO 1072 DE 2015 Y DEMAS NORMAS QUE LO MODIFIQUEN O ADICIONEN",33936000,null,"8 MESES",null,3299,"60 ENERO 18/022",null,"90 ENERO 25/2022",null,"DARWIN ERSLIN MELENDEZ CASTAÑO","ENERO 26/2022","SEPTIEMBRE 25/2022",null,null,"TERMINADO"]
["19-6-0100-0-2022","ENERO 25/022","PRESTACIÓN SERVICIOS PROFESIONALES","VICTOR JULIO QUINTERO BARBOSA",13278492,"PRESTACIÓN DE SERVICIOS PROFESIONALES DE UN INGENIERO AGROINDUSTRIAL COMO APOYO INGENIERIL EN LAS GESTIÓNES QUE EJECUTA Y DESARROLLA EL GRUPO INTERNO DE TRABAJO PARA LA GESTIÓN EN LA SECCIONAL DE CURUMANI",19792000,null,"8 MESES",null,3299,"102 ENERO 20/022",null,"85 ENERO 25/2022",null,"COORDINADOR DEL GRUPO INTERNO DE TRABAJO PARA LA GESTIÓN EN LA SECCIONAL CURUMANI","ENERO 31/2022","SEPTIEMBRE 30/2022",null,null,"LIQUIDADO"]
["19-6-0101-0-2022","ENERO 24/022","PRESTACIÓN SERVICIOS PROFESIONALES","YANIRIS PATRICIA IBARRA GOMEZ",40936670,"PRESTACIÓN DE SERVICIOS PROFESIONALES DE UN INGENIERO DEL MEDIO AMBIENTE COMO APOYO INGENIERIL EN LAS GESTIÓNES QUE EJECUTA Y DESARROLLA EL GRUPO INTERNO DE TRABJO PARA LA GESTIÓN DE PML, RESPEL Y COP",19792000,7669400,"8 MESES","3 MESES Y 3 DIAS",3201,"88 ENERO 19/022","737 SEPTIEMBRE 19/2022","84 ENERO 25/2022","1584 SEPTIEMBRE 21/2022","COORDINADOR DEL GIT PARA LA GESTIÓN DE PML, RESPEL Y COP","ENERO 27/2022","SEPTIEMBRE 26/2022","SEPTIEMBRE 26/2022 - DICIEMBRE 29/2022",null,"LIQUIDADO"]
["19-6-0102-0-2022","ENERO 25/022","PRESTACIÓN SERVICIOS PROFESIONALES","KARINA PAOLA MARTINEZ CAÑIZARES",1098614223,"PRESTACIÓN DE SREVICIOS PROFESIONALES DE UN INGENIERO AMBIENTAL ESPECIALIZADO, COMO APOYO EN LAS ACTIVIDADES Y GESTIÓNES QUE EJECUTA Y DESARROLLA EL GRUPO INTERNO DE TRABAJO PARA LA GESTIÓN EN LA SECCIONAL DE LA JAGUA DE IBIRICO",28280000,10133666,"8 MESES","2 MESES Y 26 DIAS",3299,"119 ENERO 20/022","738 SEPTIEMBRE 19/2022","87 ENERO 25/2022","1636 SEPTIEMBRE 23/2022","SUBDIRECCIÓN GENERAL DEL ÁREA DE GESTIÓN AMBIENTAL","FEBRERO 01/2022","SEPTIEMBRE 30/2022","SEPTIEMBRE 30/2022 - DICIEMBRE 26/2022",null,"TERMINADO"]
["19-6-0103-0-2022","ENERO 24/022","PRESTACIÓN SERVICIOS PROFESIONALES","JUAN CARLOS JR ROJAS MINORCA",1065834654,"PRESTACIÓN DE SERVICIOS PROFESIONALES DE UN INGENIERO CIVIL CON EXPERIENCIA COMO APOYO INGENIERIL EN LAS GESTIÓNES QUE EJECUTA Y DESARROLLA LA SUBDIRECCIÓN GENERAL DEL ÁREA DE GESTIÓN AMBIENTAL",22624000,8861067,"8 MESES","3 MESES Y 4 DIAS","3299 03","86 ENERO 19/2022","718 SEPTIEMBRE 15/2022","89 ENERO 25/2022","1555 SEPTIEMBRE 20/2022","SUBDIRECCIÓN GENERAL DEL ÁREA DE GESTIÓN AMBIENTAL","ENERO 26/2022","SEPTIEMBRE 25/2022","SEPTIEMBRE 26/2022 - DICIEMBRE 29/2022",null,"LIQUIDADO"]
["19-6-0104-0-2022","ENERO 25/022","PRESTACIÓN DE SERVICIOS DE APOYO A LA COOORDINACIÓN GIT PARA LA GESTIÓN DE RECURSOS NATURALES, ECOSISTEMAS ESTRATEGICOS Y ÁREAS PROTEGIDAS","JORGE ARMANDO RINCONES FERNANDEZ",1065815832,"PRESTACIÓN DE SERVICIOS PROFESIONALES DE INGENIERO AMBIENTAL CON EXPERIENCIA COMO APOYO INGENIERIL EN LAS GESTIÓNES QUE EJECUTA Y DESARROLLA EL GRUPO INTERNO DE TRABAJO PARA LA GESTIÓN DE RECURSOS NATURALES, ECOSISTEMAS ESTRATEGICOS Y ÁREAS PROTEGIDAS",22624000,8861066,"8 MESES","3 MESES Y 4 DIAS","3201-3202","89 ENERO 19/022","753 SEPTIEMBRE 20/2022","91 ENERO 25/2022","1597 SEPTIEMBRE 22/2022","COORDINACIÓN GIT PARA LA GESTIÓN DE RECURSOS NATURALES, ECOSISTEMAS ESTRATEGICOS Y ÁREAS PROTEGIDAS","ENERO 26/2022","SEPTIEMBRE 25/2022","SEPTIEMBRE 25/2022 - DICIEMBRE 29/2022",null,"LIQUIDADO"]
["19-6-0105-0-2022","ENERO 25/022","PRESTACIÓN SERVICIOS PROFESIONALES A LA COORDINACIÓN GIT, RECURSOS NATURALES, ECOSISTEMAS ESTRATEGICOS Y ÁREAS PROTEGIDAS","MARIA FERNANDA ARAUJO YAGUNA",56099477,"PRESTACIÓN DE SERVICIOS PROFESIONALES DE UN BIOLOGO CON EXPERIENCIA COMO APOYO DE ACUERDO A SU PERFIL EN LAS GESTIÓNES QUE EJECUTA Y DESAROLLA EL GRUPO INTERNO DE TRABAJO PARA LA GESTIÓN DE RECURSOS NATURALES, ECOSISTEMAS ESTRATEGICOS Y ÁREAS PROTEGIDAS",22624000,8861066,"8 MESES","3 MESES Y 4 DIAS",3201,"86 ENERO 19/022","744 SEPTIEMBRE 20/2022","88 ENERO 25/2022","1599 SEPTIEMBRE 22/2022","COORDINACIÓN GIT PARA LA GESTIÓN DE RECURSOS NATURALES, ECOSISTEMAS ESTRATEGICOS Y ÁREAS PROTEGIDAS","ENERO 26/2022","SEPTIEMBRE 25/2022","SEPTIEMBRE 25/2022 - DICIEMBRE 29/2022",null,"TERMINADO"]
["19-6-0106-0-2022","ENERO 26/022","PRESTACIÓN SERVICIOS PROFESIONALES","YERCELIS MARIA ROMERO MORENO",1065659647,"PRESTACIÓN DE SERVICIOS PROFESIONALES DE UNA LICENCIADA EN CIENCIAS NATURALES COMO APOYO DE ACUERDO A SU PERFIL EN LAS GESTIÓNES QUE EJECUTA Y DESARROLLA EL GRUPO INTERNO DE TRABAJO PARA LA EDUCACIÓN AMBIENTAL INTEGRAL Y LA PARTICIPACIÓN CIUDADANA",19792000,7504467,"8 MESES","3 MESES Y 1 DIA",3208,"106 ENERO 26/022","767 SEPTIEMBRE 21/2022","106 ENERO 26/2022","1616 SEPTIEMBRE 22/2022","ISMAEL EMILIO ESCORCIA ATENCIO","ENERO 27/2022","SEPTIEMBRE 25/2022","SEPTIEMBRE 25/2022 - DICIEMBRE 26/2022",null,"TERMINADO"]
["19-6-0107-0-2022","ENERO 26/022","PRESTACIÓN SERVICIOS PROFESIONALES","WILMAR ENRIQUE LOPEZ BELEÑO",18969559,"PRESTACIÓN DE SERVICIOS PROFESIONALES DE UN ABOGADO ESPECIALIZADO PARA EL APOYO DE LA GESTIÓN QUE EJECUTA Y DESARROLLA LA OFICINA JURÍDICA DE LA CORPORACIÓN EN EL MARCO DE SUS ATRIBUCIONES LEGALES Y REGLAMENTARIAS",35632000,12916600,"8 MESES","2 MESES Y 27 DIAS",3299,"136 ENERO 21/022","658 SEPTIEMBRE 14/2022","153 ENERO 28/2022","1667 SEPTIEMBRE 29/2022","EIVYS JOHANA VEGA RODRIGUEZ-JEFE OFICINA JURÍDICA","FEBRERO 03/2022","OCTUBRE 02/2022","OCTUBRE 02/2022 - DICIEMBRE 30/2022",null,"TERMINADO"]
["19-6-0108-0-2022","ENERO 25/022","INTERVENTORÍA","UNION TEMPORAL ACCIONES DE RESTAURACION","901552849-2","INTERVENTORIA TECNICA, ADMINISTRATIVA, FINANCIERA, JURÍDICA Y AMBIENTAL PARA EL CONTRATO CUYO OBJETO ES: \"IMPLEMENTACIÓN DE ACCIONES DE RESTAURACIÓN CON GUADUAS Y OTRAS ESPECIES NATIVAS EN ÁREAS PRIORIZADAS DE LA JURISDCCIÓN DE CORPOCESAR, DEPARTAMENTO DEL CESAR\"",130804800,"-","10 MESES","-",3202,"680 NOVIEMBRE 05/021","-",308,"-","ANDREA CAROLINA VILLERO GONZALEZ","MARZO 11/2022","ENERO 10/2023","-",19662577.539999999,"TERMINADO"]
["19-6-0109-0-2022","ENERO 25/022","PRESTACIÓN SERVICIOS PROFESIONALES","JOSE ENRIQUE MUNIVE CHURIO",77016349,"PRESTACIÓN DE SERVICIOS PROFESIONALES DE UN ABOGADO ESPECIALIZADO COMO APOYO JURÍDICO EN LAS GESTIÓNES QUE EJECUTA Y DESARROLLA EL GRUPO INTERNO DE TRABAJO PARA LA GESTIÓN DEL SEGUIMIENTO AL APROVECHAMIENTO DEL RECURSO HIDRICO",28280000,10487167,"8 MESES","2 MESES Y 29 DIAS",3203,"99 ENERO 19/022","779 SEPTIEMBRE 22/2022","98 ENERO 25/2022","1639 SEPTIEMBRE 6/2022","COORDINADOR GIT PARA LA GESTIÓN DEL SEGUIMIENTO AL APROVECHAMIENTO DEL RECURSO HIDRICO","ENERO 28/2022","SEPTIEMBRE 27/2022","SEPTIEMBRE 27/2022- DICIEMBE 26/2022",null,"TERMINADO"]
["19-6-0110-0-2022","ENERO 25/022","PRESTACIÓN SERVICIOS PROFESIONALES","KATHERINE MORA ROSADO",39464393,"PRESTACION DE SERVICIOS PROFESIONALES DE UN ABOGADO, ESPECIALIZADO COMO APOYO JURÍDICO EN LAS GESTIÓNES QUE EJECUTA Y DESRAROLLA EL GRUPO INTERNO DE TRABAJO PARA LA GESTIÓN EN LA SECCIONAL DE AGUACHICA",28828000,10133666,"8 MESES","2 MESES Y 26 DIAS","3299 03","132 ENERO 21/2022","775 SEPTIEMBRE 21/2022","112 ENERO 26/2022","1640 SEPTIEMBRE 26/2022","COORDINADOR GIT SECCIONAL AGUACHICA","FEBRERO 01/2022","SEPTIEMBRE 30/2022","SEPTIEMBRE 30/2022 - DICIEMBRE 26/2022",null,"TERMINADO"]
["19-6-0111-0-2022","ENERO 26/022","PRESTACIÓN SERVICIOS PROFESIONALES","CARLOS IVAN OVALLE PUMAREJO",1065576390,"PRESTACIÓN DE SERVICIOS PROFESIONALES DE UN INGENIERO DE MINAS ESPECIALIZADO COMO APOYO INGENIERIL EN LAS GESTIÓNES QUE EJECUTA Y DESARROLLA EL GRUPO INTERNO DE TRABAJO PARA LAS GESTIÓNES DEL SEGUIMIENTO AMBIENTAL",28280000,10958500,"8 MESES","3 MESES Y 3 DIAS","3299 03","100 ENERO 20/2022","736 SEPTIEMBRE 19/2022","99 ENERO 25/2022","1565 EPTIEMBRE 20/2022","ROBERTO CARLOS PEÑA ALÍ","ENERO 27/2022","SEPTIEMBRE 26/2022","SEPTIEMBRE 26/2022 - DICIEMBRE 29/2022",null,"TERMINADO"]
["19-6-0112-0-2022","ENERO 25/022","PRESTACIÓN SERVICIOS","PCT LTDA-GERMAN ALBERTO LINARES ROMERO","830016890-1","SOPORTE TECNICO Y MANTENIMIENTO A DISTANCIA DE LOS MODULOS WEB Y ESCRITORIO DEL SISTEMA DE INFORMACIÓN ADMINISTRATIVO Y FINANCIERO PCT-ENTERPRISE VIGENCIA 2022 PARA LA FACTURACIÓN Y MANEJO DE CARTERA DE LA TASA POR UTILIZACIÓN DE AGUA (TUA), TASA RETRIBUTIVA, TASA POR APROVECHAMIENTO FORESTAL, EVALUACIÓN, SEGUIMIENTO AMBIENTAL Y DEMÁS GESTIÓNES AMBIENTALES Y FINANCIERAS",102387600,null,"11 MESES",null,3203,"147 ENERO 21/022",null,"108 ENERO 26/2022",null,"MAURICIO GARCES ORDOÑEZ","FEBRERO 01/2022","DICIEMBRE 31/2022",null,null,"TERMINADO"]
["19-6-0113-0-2022","ENERO 26/022","PRESTACIÓN SERVICIOS PROFESIONALES","IVAN DANIEL MARTINEZ BOLIVAR",1026565473,"PRESTACION DE SERVICIOS PROFESIONALES DE UN ABOGADO ESPECIALISTA PARA EL ACOMPAÑAMIENTO EN LA GESTIÓN QUE EJECUTA Y DESARROLLA LA COORDINACIÓN DEL GIT PARA LA GESTIÓN JURÍDICO AMBIENTAL DE LA CORPORACION AUTONOMA REGIONAL DEL CESAR",28280000,10133667,"8 MESES","2 MESES Y26 DIAS",3299,"139 ENERO/21 022","653 SEPTIEMBRE 08/2022","148 ENERO 28/022","1459 SEPTIEMBRE 14/2022","JULIO ALBERTO OLIVELLA FERNANDEZ","FEBRERO 04/2022","OCTUBRE 03/2022","OCTUBRE 03/2022-DICIEMBRE 29/2022",null,"TERMINADO"]
["19-6-0114-0-2022","ENERO 26/022","PRESTACIÓN SERVICIOS PROFESIONALES","AUGUSTO CARLOS GUERRA ANGARITA",1065602305,"PRESTACIÓN DE SERVICIOS PROFESIONALES DE UN INGENIERO DE MINAS CON EXPERIENCIA COMO APOYO INGENIERIL EN LAS GESTIÓNES QUE EJECUTA Y DESARROLLA EL GRUPO INTERNO DE TRABAJO PARA LA GESTIÓN DEL SEGUIMIENTO AMBIENTAL",22624000,8484000,"8 MESES","3 MESES",3299,"109 ENERO 20/022","734 SEPTIEMBRE 19/2022","105 ENERO 26/2022","1615 SEPTIEMBRE 22/2022","COORDINADOR DEL GRUPO INTERNO DE TRABAJO PARA LA GESTIÓN DEL SEGUIMIENTO AMBIENTAL","ENERO 27/2022","SEPTIEMBRE 26/2022","SEPTIEMBRE 26/2022 - DICIEMBRE 26/2022",null,"LIQUIDADO"]
["19-6-0115-0-2022","ENERO 26/022","PRESTACIÓN SERVICIOS PROFESIONALES","MAYRA DIANME ZULETA RAMIREZ",49719512,"PRESTACIÓN DE SERVICIOS PROFESIONALES DE UN ABOGADO COMO APOYO JURÍDICO EN LAS GESTIÓNES QUE EJECUTA Y DESARRROLLA EL GRUPO INTERNO DE TRABAJO PARA LA GESTIÓN DEL SEGUIMIENTO AMBIENTAL",19792000,7092133,"8 MESES","2 MESES Y 26 DIAS",3299,"70 ENERO 18/022","716 SEPTIEMBRE 15/2022","107 ENERO 26/2022","1585 SEPTIEMBRE 21/2022","COORDINADOR DEL GIT PARA LA GESTIÓN DEL SEGUIMIENTO AMBIENTAL","ENERO 31/2022","SEPTIEMBRE 30/2022","SEPTIEMBRE 30/2022 - DICIEMBRE 26/2022",null,"TERMINADO"]
["19-6-0116-0-2022","ENERO 27/022","PRESTACIÓN SERVICIOS PROFESIONALES","EDUARDO JAVIER LOPEZ MERCADO",1065823347,"PRESTACIÓN DE SERVICIOS PROFESIONALES DE UN ABOGADO PARA LA GESTIÓN DE LOS PROCESOS SANCIONATORIOS EN SU ETAPA INICIAL QUE DEBEN ADELANTAR POR PARTE DE LA OFICINA JURÍDICA DE LA CORPORACIÓN EN EL MARCO DE SUS ATRIBUCIONES LEGALES Y REGLAMENTARIAS",19792000,7092133,"8 MESES","2 MESES Y 26 DIAS",3299,"141 ENERO 21/022","680 SEPTIEMBRE 14/2022","163 ENERO 28/2022","1547 SEPTIEMBRE 19/2022","EIVYS JOHANA VEGA RODRIGUEZ-JEFE OFICINA JURÍDICA","FEBRERO 04/2022","OCTUBRE 03/2022","OCTUBRE 03/2022 - DICIEMBRE 29/2022",null,"TERMINADO"]
["19-6-0117-0-2022","ENERO 27/022","PRESTACIÓN SERVICIOS PROFESIONALES","JOSE RICARDO CAMARGO RODRIGUEZ",77174526,"PRESTACIÓN DE SERVICIOS PROFESIONALES DE UN CONTADOR PUBLICO CON EXPERIENCIA PARA EL APOYO EN EL PROCESO CONTABLE DE CORPOCESAR",25448000,9118866,"8 MESES","2 MESES Y 26 DIAS","A-02","122 ENERO 21/022","757 SEPTIEMBRE 20/2022","166 ENERO 28/2022","1621 SEPTIEMBRE 23/2022","PROFESIONAL ESPECIALIZADO CONTADOR GENERAL","FEBRERO 04/2022","OCTUBRE 03/2022","OCTUBRE 03/2022 - DICIEMBRE 29/2022",null,"LIQUIDADO"]
["19-6-0118-0-2022","ENERO 27/022","PRESTACIÓN SERVICIOS PROFESIONALES","CARMEN CECILIA FUENTES GONZALEZ",1065629736,"PRESTACION DE SERVICIOS PROFESIONALES DE UN COMUNICADOR SOCIAL PARA APOYAR A LA OFICINA DE PRENSA EN EL MANEJO DE LAS COMUNICACIONES INTERNAS, EN EL DESARROLLO DE ESTRATEGIAS Y SU DIVULGACION AL INTERIRO DE LA CORPORACION, CON EL FIN DE LOGRAR UNA INFORMACION EFECTIVA ENTRE QUIENES ALLI LABORAN, COADYUVANDO A UNA MAYOR PARTICIPACION DE DIRECTIVOS, COORDINADORES, PERSONAL DE PLANTA Y CONTRATISTAS EN LAS ACTIVIDADES QUE DESARROLLE LA CORPORACION EN MATERIA DE EDUCACION AMBIENTAL Y OTROS TEMAS MEDIO AMBIENTALES QUE CORRESPONDAN, SEGUN LA NORMA",19792000,9813533,"8 MESES","3 MESES Y 29 DIAS",3299,"100 ENERO 20/022","876 OCTUBRE 2022","611 SEPTIEMBRE 01/022","2073 NOVIEMBRE 18/2022","SECRETARÍA GENERAL JAIME ARAUJO CASTRO","FEBRERO 04/2022","OCTUBRE 03/2022","OCTUBRE 03/2022 - 31 ENERO 2023",null,"TERMINADO"]
["19-6-0119-0-2022","ENERO 26/022","PRESTACIÓN SERVICIOS PROFESIONALES","JOSE RAFAEL CALDERON MORALES",77022906,"PRESTACIÓN DE SERVICIOS PROFESIONALES DE UN ABOGADO CON EXPERIENCIA COMO APOYO JURÍDICO EN LAS GESTIÓNES QUE EJECUTA Y DESARROLLA LA SUBDIRECCIÓN GENERAL DEL ÁREA DE GESTIÓN AMBIENTAL",22624000,null,"8 MESES",null,"3202-3299","87 ENERO 19/022",null,"113 ENERO 26/2022",null,"ADRIAN ALBERTO IBARRA USTARIZ","FEBRERO 01/2022","SEPTIEMBRE 30/2022",null,null,"LIQUIDADO"]
["19-6-0120-0-2022","ENERO 26/022","PRESTACIÓN SERVICIOS PROFESIONALES","LAURA ANDREA TORRES PACHECO",1065653182,"PRESTACIÓN DE SERVICIOS PROFESIONALES DE UNA LICENCIADA EN CIENCIAS NATURALES Y/O EDUCACIÓN AMBIENTAL ESPECIALIZADO COMO APOYO DE ACUERDO A SU PERFIL EN LAS GESTIÓNES QUE EJECUTA Y DESARROLLA EL GRUPO INTERNO DE TRABAJO PARA LA EDUCACIÓN AMBIENTAL INTEGRAL Y LA PARTICIPACIÓN CIUDADANA",28280000,14140000,"8 MESES","4 MESES",3208,"140 ENERO 21/022","760 SEPTIEMBRE 20/2022","111 ENERO 26/2022","1604 SEPTIEMBRE 22/2022","ISMAEL EMILIO ESCORCIA ATENCIO","FEBRERO 01/2022","SEPTIEMBRE 30/2022","SEPTIEMBRE 30/2022 - ENERO 30/2023",null,"TERMINADO"]
["19-6-0121-0-2022","ENERO 26/022","PRESTACIÓN SERVICIOS PROFESIONALES","JAMES FERLEY CASTAÑEDA TORRES",1096954311,"PRESTACIÓN DE SERVICIOS PROFESIONALES DE UN INGENIERO FORESTAL COMO APOYO INGENIERIL EN LAS GESTIÓNES QUE EJECUTA Y DESARROLLA LA SUBDIRECCIÓN GENERAL DEL ÁREA DE GESTIÓN AMBIENTAL",19792000,7009667,"8 MESES","2 MESES Y 25 DIAS",3299,"75 ENERO 18/022","721 SEPTIEMBRE 15/2022","109 ENERO 26/2022","1564 SEPTIEMBRE 20/2022","SUBDIRECCIÓN GENERAL DEL ÁREA DE GESTIÓN AMBIENTAL","FEBRERO 02/2022","OCTUBRE 01/2022","OCTUBRE 01/2022 - DICIEMBRE 26/2022",null,"TERMINADO"]
["19-6-0122-0-2022","ENERO 26/022","PRESTACIÓN SERVICIOS PROFESIONALES","CARLOS ANDRES AÑEZ MAESTRE",12647676,"PRESTACION DE SERVICIOS PROFESIONALES DE UN ABOGADO, CON EXPERIENCIA COMO APOYO JURÍDICO EN LAS GESTIÓNES QUE EJECUTA Y DESARROLLA LA SUBDIRECCION GENERAL DEL ÁREA DE GESTIÓN AMBIENTAL",25448000,9012833,"8 MESES","2 MESES Y 25 DIAS",3299,"94 ENERO 19/022","747 SEPTIEMBRE 20/2022","110 ENERO 26/2022","1617 SEPTIEMBRE23/2022","SUBDIRECCIÓN GENERAL DEL ÁREA DE GESTIÓN AMBIENTAL","FEBRERO 02/2022","OCTUBRE 01/2022","OCTUBRE 01/2022 - DICIEMBRE 26/2022",null,"TERMINADO"]
["19-6-0123-0-2022","ENERO 26/022","PRESTACIÓN SERVICIOS","SOLREDES SAS-JOSE FILEMON PALACIOS GONZALEZ","830045204-0","SOPORTE TECNICO Y MANTENIMIENTO A DISTANCIA DEL SISTEMA DE GESTIÓN DE RECURSOS HUMANOS Y NOMINA (SIAN) PARA LA VIGENCIA 2022",28000000,null,"11 MESES",null,3299,"146 ENERO 21/022",null,"122 ENERO 26/2022",null,"MAURICIO GARCES ORDOÑEZ","FEBRERO 01/2022","DICIEMBRE 31/2022",null,null,"TERMINADO"]
["19-6-0124-0-2022","ENERO 26/022","PRESTACIÓN SERVICIOS PROFESIONALES","NATALIA PEÑATE MEJIA",1065844658,"PRESTACION DE SERVICIOS PROFESIONALES DE UN INGENIERO AMBIENTAL COMO APOYO INGENIERIL EN LAS GESTIÓNES QUE EJECUTA Y DESARROLLA EL GRUPO INTERNO DE TRABAJO DE GESTIÓN AMBIENTAL EN TERRITORIOS Y COMUNIDADES ETNICAS",19792000,9896000,"8 MESES","4 MESES","3299 04",null,null,null,null,"COORDINADOR DEL GIT PARA LA GESTIÓN AMBIENTAL EN TERRITORIOS Y COMUNIDADES ETNICAS","FEBRERO 02/2022","OCTUBRE 01/2022",null,null,"SUSPENDIDO"]
["19-6-0125-0-2022","ENERO 27/022","PRESTACIÓN SERVICIOS PROFESIONALES","KATIA INES MANJARRES GRANADOS",49772778,"PRESTACION DE SERVICIOS DE UN ADMINISTRADOR DE EMPRESAS Y/O CONTADOR PUBLICO PARA APOYAR A LA SUBDIRECCION GENERAL, ÁREA ADMINISTRATIVA Y FINANCIERA EN LAS ACTIVIDADES QUE ADELANTA LA TESORERIA",22624000,8389743,"8 MESES","2 MESES 29 DIAS",3299,"162 ENERO 25/022","706 SEPTIEMBRE 15/022",130,1546,"LEYDIS DAYAN MONTERO ESCAÑO","FEBRERO 01/2022","SEPTIEMBRE 30/2022","OCTUBRE 01/2022-DICIEMBRE 29/2022","-","LIQUIDADO"]
["19-6-0126-0-2022","ENERO 27/022","PRESTACIÓN SERVICIOS PROFESIONALES","ARTURO JOSE SERJE YANCY",1065601253,"PRESTACION DE SERVICIOS DE UN PROFESIONAL EN ADMINSTRACIÓN DE EMPRESAS, O SU EQUVALENCIA SIN EXPERIENCIA PARA REALIZAR APOYO EN LA GESTIÓN EN LA COOORDINACION DEL GIT PARA LA GESTIÓN FINANCIERA, PARA LOGRAR CUMPLIR CON LAS ACTIVIDADES Y METAS DE DICHA ÁREA DE LA CORPORACION",19792000,"-","8 MESES","-",3299,"161 ENERO 25/022","-",124,"-","ARMANDO DE JESUS VILLAZON SANCHEZ","FEBRERO 04/2022","OCTUBRE 03/2022","-","-","TERMINADO"]
["19-6-0127-0-2022","ENERO 27/022","PRESTACIÓN SERVICIOS PROFESIONALES","ERNESTO RAFAEL ARZUAGA MORENO",1065659792,"PRESTACION DE SERVICIOS PROFESIONALES DE UN ABOGADO QUE PRESTE ACOMPAÑAMIENTO A LA SECRETARIA GENERAL, EN LAS ACTIVIDADES JURÍDICAS NECESARIAS PARA APOYAR LAS ACTIVIDADES INSTITUCIONALES DE ESTA DEPENDENCIA",19792000,7174600,"8 MESES","2 MESES 27 DIAS",3299,"120 ENERO 20/022","610 SEPTIEMBRE 01/022",125,1411,"SECRETARÍA GENERAL JAIME ARAUJO CASTRO","FEBRERO 02/2022","OCTUBRE 01/2022","OCTUBRE 02/2022-DICIEMBRE 28/2022","-","TERMINADO"]
["19-6-0128-0-2022","ENERO 27/022","PRESTACIÓN SERVICIOS PROFESIONALES Y DE APOYO A LA GESTIÓN","RUBEN DARIO BERMUIDEZ CLAVIJO",1065607669,"PRESTACION DE SERVICIOS DE UN TECNICO, TECNOLOGO O EGRESADO DE INGENIERIA AMBIENTAL PARA APOYAR A LA COORDINACIÓN GIT DE CAMBIO CLIMATICO, POMCAS Y ORDENAMIENTO TERRITORIAL PARA ACOMPAÑAR LOS PROCESOS DE SEGUIMIENTO Y ACOMPAÑAMIENTO A LOS PROCESOS TECNICOS Y ADMINISTRATIVOS QUE SE DERIVEN DE LA FORMULACION DE POMCAS PLANES DE MANEJO AMBIENTAL DE HUMEDALES, PLANES DE MANEJO DE MICROCUENCAS, PLAN DE ORDENAMIENTO RECURSO HIDRICO",19232000,6811333,"8 MESES","2 MESES 25 DIAS",3203,"151 ENERO 24/022","684 SEPTIEMBRE 14/022",129,1541,"LIBARDO RAÚL LASCARRO-COORDINADOR GIT CAMBIO CLIMATICO, POMCAS Y ORDENAMIENTO TERRRITORIAL","FEBRERO 02/2022","OCTUBRE 01/2022","OCTUBRE 02/2022-DICIEMBRE 26/2022","-","LIQUIDADO"]
["19-6-0129-0-2022","ENERO 27/022","PRESTACIÓN SERVICIOS PROFESIONALES","YARELIS ROCIO OLIVELLA GOMEZ",49794275,"PRESTACION DE SERVICIOS PROFESIONALES DE UN ABOGADO ESPECIALIZADO EN DERECHO CONSTITUCIONAL PARA EL ACOMPAÑAMIENTO Y LA GESTIÓN QUE EJECUTA Y DESARROLLA LA OFICINA JURÍDICA DE LA CORPORACION, EN EL MARCO DE SUS ATRIBUCIONES LEGALES Y REGLAMENTARIAS",21210000,"-","6 MESES","-",3299,"163 ENERO 25/022","-",133,"-","EIVYS JOHANA VEGA RODRIGUEZ-JEFE OFICINA JURÍDICA","FEBRERO 01/2022","JULIO 30/2022","-","-","TERMINADO"]
["19-6-0130-0-2022","ENERO 27/022","PRESTACIÓN SERVICIOS PROFESIONALES","WILSON ENRIQUE PEREZ PADILLA",77105141,"PRESTACION DE SERVICIOS PROFESIONALES DE UN INGENIERO DEL MEDIO AMBIENTE CON EXPERIENCIA, COMO APOYO EN LAS ACTIVIDADES Y GESTIÓNES QUE EJECUTA Y DESARROLLA EL GRUPO INTERNO DE TRABAJO PARA LA GESTIÓN EN LA SECCIONAL DE LA JAGUA DE IBIRICO",22624000,8012667,"8 MESES","2 MESES 25 DIAS",3299,"130 ENERO 21/022","795 SEPTIEMBRE 30/022",126,1699,"SUBDIRECCIÓN GENERAL DEL ÁREA DE GESTIÓN AMBIENTAL","FEBRERO 02/2022","OCTUBRE 01/2022","OCTUBRE 02/2022-DICIEMBRE 26/2022","-","LIQUIDADO"]
["19-6-0131-0-2022","ENERO 27/022","PRESTACIÓN SERVICIOS PROFESIONALES Y DE APOYO A LA GESTIÓN","JOSE DAVID VIDAL CACERES",1065574663,"PRESTACION DE SERVICIOS PROFESIONALES DE UN ABOGADO ESPECIALIZADO, CON EXPERIENCIA, PARA EL ACOMPAÑAMIENTO EN LA GESTIÓN QUE EJECUTA Y DESARROLLA LA COORDINACIÓN DEL GIT PARA LA GESTIÓN JURÍDICO AMBIENTAL DE LA CORPORACION AUTONOMA REGIONAL DEL CESAR",22624000,7824133,"8 MESES","2 MESES 24 DIAS",3299,"144 ENERO 21/022","656 SEPTIEMBRE 13/022",165,1463,"COORDINADOR DEL GIT PARA LA GESTIÓN JURÍDICO AMBIENTAL","FEBRERO 07/2022","OCTUBRE 06/2022","OCTUBRE 07/2022-DICIEMBRE 29/2022","-","LIQUIDADO POR MUTUO ACUERDO EL 30 DE NOVIEMBRE DE 2022"]
["19-6-0132-0-2022","ENERO 27/022","PRESTACIÓN SERVICIOS PROFESIONALES","JOSE JULIO MEJIA LOPEZ",1122814916,"PRESTACION DE SERVICIOS PROFESIONALES DE UN INGENIERO DE MINAS CON EXPERIENCIA COMO APOYO INGENIERIL EN LAS GESTIÓNES QUE EJECUTA Y DESARROLLA LA SUBDIRECCION GENERAL DEL ÁREA DE GESTIÓN AMBIENTAL",22624000,8106933,"8 MESES","2 MESES 26 DIAS",3299,"131 ENERO 21/022","719 SEPTIEMBRE 15/022",164,1591,"SUBDIRECCIÓN GENERAL DEL ÁREA DE GESTIÓN AMBIENTAL","FEBRERO 04/2022","OCTUBRE 03/2022","OCTUBRE 04/2022-DICIEMBRE 29/2022","-","LIQUIDADO"]
["19-6-0133-0-2022","ENERO 27/022","PRESTACIÓN SERVICIOS PROFESIONALES","JESUS ALBERTO ORTIZ RODRIGUEZ",1065816645,"PRESTACION DE SERVICIOS PROFESIONALES DE UN ABOGADO COMO APOYO JURÍDICO EN LAS GESTIÓNES QUE EJECUTA Y DESARROLLA EL GRUPO INTERNO DE TRABAJO PARA LA GESTIÓN AMBIENTAL INTEGRAL Y LA PARTICIPACION CIUDADANA",19792000,6844733,"8 MESES","2 MESES Y 23 DIAS","3208 01","127 ENERO 21/2022","791 SEPTIEMBRE 29/2022",159,1702,"ISMAEL EMILIO ESCORCIA ATENCIO","FEBRERO 04/2022","OCTUBRE 03/2022","OCTUBRE 03/2022 - DICIEMBRE 26/2022",null,"TERMINADO"]
["19-6-0134-0-2022","ENERO 27/022","PRESTACIÓN SERVICIOS PROFESIONALES","RAFAEL MAURICIO ROCHA JACOME",77094511,"PRESTACION DE SERVICIOS PROFESIONALES DE UN MICROBIOLOGO COMO APOYO DE ACUERDO A SU PERFIL EN LAS GESTIÓNES QUE EJECUTA Y DESARROLLA EL GRUPO INTERNO DE TRABAJO DEL LABORATORIO AMBIENTAL",19792000,6514866,"8 MESES","2 MESES 19 DIAS",3299,"129 ENERO 21/022","603 SEPTIEMBRE 09/022",160,1443,"COORDINADOR DEL GIT DEL LABORATORIO AMBIENTAL","FEBRERO 08/2022","OCTUBRE 07/2022","OCTUBRE 08/2022-DICIEMBRE 26/2022","-","TERMINADO"]
["19-6-0135-0-2022","ENERO 27/022","PRESTACIÓN SERVICIOS PROFESIONALES","EDUARDO SANTOS CONTRERAS",77174552,"PRESTACION DE SERVICIOS PROFESIONALES DE UN CONTADOR PUBLICO ESPECIALISTA EN HACIENDA PUBLICA, PARA DESARROLLAR ACTIVIDADES DE IMPLEMENTACION DE LA GESTIÓN ESTRATEGIA PARA EL RECAUDO DE CARTERA DE LAS DIFERENTES FUENTES DE INGRESO DE LA CORPORACION AUTONOMA REGIONAL DEL CESAR CORPOCESAR, A TRAVES DE LA ACTUALIZACION, REVISION, VERIFICACION, ELABORACION CONTROL Y SEGUIMIENTO A LOS PROCESOS DE LIQUIDACION Y RECAUDO QUE REALIZA LA INSTITUCION",33936000,"-","8 MESES","-",3299,"154 ENERO 24/022","-",156,"-","ARMANDO DE JESUS VILLAZON SANCHEZ","FEBRERO 04/2022","OCTUBRE 03/2022","-","-","TERMINADO"]
["19-6-0136-0-2022","ENERO 27/022","PRESTACIÓN SERVICIOS PROFESIONALES","MARIA CAMILA SALCEDO DUARTE",1007252221,"PRESTACION DE SERVICIOS PROFESIONALES DE UN TECNICO EN EL ÁREA AMBIENTAL DE ACUERDO A SU PERFIL EN LAS GESTIÓNES QUE EJECUTA Y DESARROLLA LA SUBDIRECCION GENERAL DEL ÁREA DE GESTIÓN AMBIENTAL",14136000,5065400,"8 MESES","2 MESES 26 DIAS",3299,"143 ENERO 21/022","749 SEPTIEMBRE 20/022",154,1634,"SUBDIRECCIÓN GENERAL DEL ÁREA DE GESTIÓN AMBIENTAL","FEBRERO 04/2022","OCTUBRE 03/2022","OCTUBRE 04/2022-DICIEMBRE 29/2022","-","TERMINADO"]
["19-6-0137-0-2022","ENERO 27/022","PRESTACIÓN SERVICIOS","ALVARO JAVIER MARTINEZ MENDOZA",1064803092,"PRESTACION DE SERVICIOS DE UN TECNICO AMBIENTAL COMO APOYO EN LAS ACTIVIDADES QUE EJECUTA Y DESARROLLA EL GRUPO INTERNO DE TRABAJO PARA LA GESTIÓN DE RECURSOS NATURALES, ECOSISTEMAS ESTRATEGICOS Y ÁREAS PROTEGIDAS",14136000,4535300,"8 MESES","2 MESES 17 DIAS",3299,"142 ENERO 21/022","766 SEPTIEMBRE 21/022",155,1637,"COORDINACIÓN DE RECURSOS NATURALES","FEBRERO 10/2022","OCTUBRE 09/2022","OCTUBRE 10/2022-DICIEMBRE 26/2022","-","TERMINADO"]
["19-6-0138-0-2022","FEBRERO 04/022","PRESTACIÓN SERVICIOS PROFESIONALES","KATERIN KARINA OÑATE DIAZ",1013606724,"PRESTACION DE SERVICIOS DE UN PROFESIONAL EN COMERCIO INTERNACIONAL, PARA QUE ACOMPAÑE A LA SUBDIRECTORA GENERAL AÁREA DE PLANEACIÓN EN EL DESARROLLO DE TODAS LAS ACTIVIDADES DE SU COMPETENCIA",19792000,7009668,"8 MESES","2 MESES 25 DIAS",3299,"157 ENERO 24/022","622 SEPTIEMBRE 05/022",169,1445,"ADRIANA MARGARITA GARCIA AREVALO-SUBDIRECCIÓN GENERAL DEL ÁREA DE PLANEACIÓN","FEBRERO 04/2022","OCTUBRE 04/2022","OCTUBRE 05/2022-DICIEMBRE 28/2022","-","TERMINADO"]
["19-6-0139-0-2022","ENERO 28/022","PRESTACIÓN SERVICIOS PROFESIONALES","JOSE ALFREDO OVALLE PALACIO",80870991,"PRESTACION DE SERVICIOS PROFESIONALES DE UN ADMINISTRADOR DE EMPRESAS PARA REALIZAR ACOMPAÑAMIENTO A LAS ACTIVIDADES QUE ADELANTA LA TESORERIA DE LA CORPORACION AUTONOMA REGIONAL DEL CESAR CORPOCESAR",22624000,8106933,"8 MESES","2 MESES 26 DIAS",3299,"155 ENERO 24/022","677 SEPTIEMBRE 14/022",155,1605,"TESORERIA","FEBRERO 04/2022","OCTUBRE 03/2022","OCTUBRE 04/2022-DICIEMBRE 29/2022","-","TERMINADO"]
["19-6-0140-0-2022","ENERO 27/022","PRESTACIÓN SERVICIOS PROFESIONALES","JESUS DAVID BARRRANCO LOPERENA",1065661518,"PRESTACION DE SERVICIOS DE UN ABOGADO, CON EXPERIENCIA, COMO APOYO JURÍDICO EN LAS GESTIÓNES QUE EJECUTA Y DESARROLLA LA SUBDIRECCION GENERAL DEL ÁREA DE GESTIÓN AMBIENTAL",25448000,8800766,"8 MESES","2 MESES 23 DIAS",3203,"126 ENERO 21/022","752 SEPTIEMBRE 20/022",158,1633,"SUBDIRECCIÓN GENERAL DEL ÁREA DE GESTIÓN AMBIENTAL","FEBRERO 04/2022","OCTUBRE 03/2022","OCTUBRE 04/2022-DICIEMBRE 26/2022","-","TERMINADO"]
["19-6-0141-0-2022","ENERO 27/022","PRESTACIÓN SERVICIOS PROFESIONALES","IVAN ALBERTO HERNANDEZ CORDOBA",77106480,"PRESTACION DE SERVICIOS PROFESIONALES DE UN TECNOLOGO O TECNICO AMBIENTAL Y SANITARIO, CON EXPERIENCIA COMO APOYO INGENIERIL EN LAS GESTIÓNES QUE EJECUTA EL GRUPO INTERNO DE TRABAJO PARA LA GESTIÓN DE SANEAMIENTO AMBIENTAL Y CONTROL DE VERTIMIENTOS DE CORPOCESAR",14136000,5065400,"8 MESES","2 MESES 26 DIAS",3299,"123 ENERO 21/022","756 SEPTIEMBRE 20/022",157,1641,"COORDINACIÓN DEL GIT PARA LA GESTIÓN DEL SANEAMIENTO BÁSICO Y CONTROL DE VERTIMIENTOS","FEBRERO 04/2022","OCTUBRE 03/2022","OCTUBRE 04/2022-DICIEMBRE 29/2022","-","TERMINADO"]
["19-6-0142-0-2022","ENERO 26/022","PRESTACIÓN SERVICIOS PROFESIONALES","ALVARO ANDRES LOPEZ PEÑA",1065569318,"PRESTACION DE SERVICIOS DE UN PROFESIONAL EN CIENCIAS POLITICAS Y GOBIERNO COMO APOYO DE ACUERDO A SU PERFIL EN LAS GESTIÓNES QUE EJECUTA Y DESARROLLA EL GRUPO INTERNO DE TRABAJO PARA LA EDUCACION AMBIENTAL INTEGRAL Y LA PARTICIPACION CIUDADANA",33936000,11312000,"8 MESES","2 MESES 20 DIAS",3208,"160 ENERO 25/022","788 SEPTIEMBRE 28/022",161,1701,"ISMAEL EMILIO ESCORCIA ATENCIO","FEBRERO 04/2022","OCTUBRE 03/2022","OCTUBRE 04/2022-DICIEMBRE 23/2022","-","TERMINADO"]
["19-6-0143-0-2022","ENERO 27/022","PRESTACIÓN SERVICIOS PROFESIONALES","JAILIN FERNANDA ATUESTA SALAS",1065822215,"PRESTACION DE SERVICIOS PROFESIONALES DE UN INGENIERO AMBIENTAL CON EXPERIENCIA COMO APOYO INGENIERIL EN LAS GESTIÓNES QUE EJECUTA EL GRUPO INTERNO DE TRABAJO PARA LA GESTIÓN DE SANEAMIENTO AMBIENTAL Y CONTROL DE VERTIMIENTOS ",19792000,6844733,"8 MESES","2 MESES 23 DIAS",3203,"150 ENERO 24/022","758 SEPTIEMBRE 20/022",162,1595,"COORDINACIÓN DEL GIT PARA LA GESTIÓN DEL SANEAMIENTO BÁSICO Y CONTROL DE VERTIMIENTOS","FEBRERO 04/2022","OCTUBRE 03/2022","OCTUBRE 04/2022-DICIEMBRE 20/2022","-","TERMINADO"]
["19-6-0144-0-2022","ENERO 28/022","PRESTACIÓN SERVICIOS PROFESIONALES","ANGELICA DEL CARMEN PINEDA AMARIS",1065609862,"PRESTACION DE SERVICIOS PROFESIONALES DE UN INGENIERO AMBIENTAL Y SANITARIO, PARA ACOMPAÑAR A LA OFICINA JURÍDICA EN LAS ACTIVIDADES QUE EJECUTA Y DESARROLLA EN EL  MARCO DE SUS ATRIBUCIONES LEGALES Y REGLAMENTARIAS",19792000,7339514,"8 MESES","2 MESES 26 DIAS",3299,"138 ENERO 21/022","661 SEPTIEMBRE 14/022",139,1477,"EIVYS JOHANA VEGA RODRIGUEZ-JEFE OFICINA JURÍDICA","ENERO 31/2022","SEPTIEMBRE 30/2022","OCTUBRE 01/2022-DICIEMBRE 29/2022","-","LIQUIDADO"]
["19-6-0145-0-2022","ENERO 27/022","PRESTACIÓN SERVICIOS PROFESIONALES","TULIO EDUARDO MAESTRE ARIAS",77094921,"PRESTACION DE SERVICIOS PROFESIONALES DE UN CONTADOR PUBLICO CON EXPERIENCIA PARA EL APOYO EN EL PROCESO CONTABLE DE CORPOCESAR",25448000,9330933,"8 MESES","2 MESES 28 DIAS","A-02-02-02-008-002","145 ENERO 21/022","619 SEPTIEMBRE 05/022",131,1462,"PROFESIONAL ESPECIALIZADO CON FUNCIONES DE CONTADOR CODIGO 2028 GRADO 16","FEBRERO 02/2022","OCTUBRE 01/2022","OCTUBRE 02/2022-DICIEMBRE 30/2022","-","TERMINADO"]
["19-6-0146-0-2022","ENERO 27/022","PRESTACIÓN SERVICIOS PROFESIONALES","ERIKA MARIA AGUANCHA ANGARITA",1065836959,"PRESTACION DE SERVICIOS PROFESIONALES DE UN ABOGADO PARA EL ACOMPAÑAMIENTO DE LA GESTIÓN QUE EJECUTA Y DESARROLLA LA OFICINA JURÍDICA DE LA CORPORACION EN EL MARCO DE SUS ATRIBUCIONES LEGALES Y REGLAMENTARIAS",19792000,"-","8 MESES","-",3299,"134 ENERO 21/022","-",132,"-","EIVYS JOHANA VEGA RODRIGUEZ-JEFE OFICINA JURÍDICA","FEBRERO 04/2022","OCTUBRE 03/2022","-","-","TERMINADO"]
["19-6-0147-0-2022","ENERO 27/022","PRESTACIÓN SERVICIOS PROFESIONALES","BIBIANA ISABEL TRIANA ACEVEDO",37898548,"PRESTACION DE SERVICIOS PROFESIONALES DE UN INGENIERO AMBIENTAL CON EXPERIENCIA COMO APOYO INGENIERIL EN LAS GESTIÓNES QUE EJECUTA Y DESARROLLA EL GRUPO INTERNO DE TRABAJO PARA LA GESTIÓN DEL SEGUIMIENTO AL APROVECHAMIENTO DEL RECURSO HIDRICO",22624000,7824133,"8 MESES","2 MESES 23 DIAS",3203,"124 ENERO 21/022","694 SEPTIEMBRE 15/022",167,1593,"COORDINADOR DEL GIT PARA LA GESTIÓN DEL SEGUIMIENTO AL APROVECHAMIENTO DEL RECURSO HIDRICO","FEBRERO 04/2022","OCTUBRE 03/2022","OCTUBRE 04/2022-DICIEMBRE 20/2022","-","TERMINADO"]
["19-6-0148-0-2022","ENERO 27/022","PRESTACIÓN SERVICIOS PROFESIONALES","MARIA ELISA VALERA MOJICA",1065569098,"PRESTACION DE SERVICIOS PROFESIONALES DE UN ABOGADO PARA EL APOYO A LAS COORDINACIÓNES DEL GIT PARA LA GESTIÓN FINANCIERA, EN LAS ACTIVIDADES RELACIONADAS CON LA REALIZACION DEL COBRO PERSUASIVO, CONCILIACION DE SALDOS Y ACUERDOS DE PAGO CON LOS DEUDORES DE LA CORPORACION AUTONOMA REGIONAL DEL CESAR CORPOCESAR ",25448000,"-","8 MESES","-",3299,"156 ENERO 24/022","-",147,"-","ARMANDO DE JESUS VILLAZON SANCHEZ","FEBRERO 04/2022","OCTUBRE 03/2022","-","-","TERMINADO"]
["19-6-0149-0-2022","ENERO 25/022","PRESTACIÓN SERVICIOS PROFESIONALES","JAIRENN SAHIAN REYES OBREGON",1065901282,"PRESTACION DE SERVICIOS DE UN TECNICO O TECNOLOGO O EGRESADO DE INGENIERIA AMBIENTAL O INGENIERIA AMBIENTAL Y SANITARIA COMO APOYO A LAS GESTIÓNES QUE EJECUTA Y DESARROLLLA EL GRUPO INTERNO DE TRABAJO PARA LA GESTIÓN EN LA SECCIONAL DE AGUACHICA",14424000,null,"6 MESES",null,3299,"116 ENERO 20/022",null,162,null,"COORDINADOR DEL GIT PARA LA GESTIÓN EN LA SECCIONAL AGUACHICA","ENERO 31/2022","JULIO 28/2022",null,null,"TERMINADO"]
["19-6-0150-0-2022","ENERO 27/022","PRESTACIÓN SERVICIOS PROFESIONALES","RAFAEL RICARDO RIOS QUINTERO",91524504,"PRESTACION DE SERVICIOS PROFESIONALES DE UN BIOLOGO COMO APOYO DE ACUERDO A SU PERFIL EN LAS GESTIÓNES QUE EJECUTA Y DESARROLLA LA SUBDIRECCION DEL ÁREA DE GESTIÓN AMBIENTAL",19792000,6927200,"8 MESES","2 MESES 24 DIAS",3202,"133 ENERO 21/022","786 SEPTIEMBRE 27/022",127,1662,"SUBDIRECCIÓN GENERAL DEL ÁREA DE GESTIÓN AMBIENTAL","FEBRERO 03/2022","OCTUBRE 02/2022","OCTUBRE 03/2022-DICIEMBRE 27/2022","-","TERMINADO"]
["19-6-0151-0-2022","ENERO 31/022","PRESTACIÓN SERVICIOS","LUZ MILA BONILLA GUTIERREZ",26995553,"PRESTACION DE SERVICIOS DE UNA TECNICA EN MERCADEO COMO APOYO DE ACUERDO A SU PERFIL EN LAS GESTIÓNES QUE EJECUTA Y DESARROLLA EL GRUPO INTERNO DE TRABAJO PARA LA EDUCACION AMBIENTAL INTEGRAL Y LA PARTICIPACION CIUDADANA",15840000,"-","8 MESES","-",3208,"164 ENERO 25/022","-",128,"-","SUBDIRECCIÓN GENERAL DEL ÁREA DE GESTIÓN AMBIENTAL","ENERO 31/2022","SEPTIEMBRE 30/2022","-","-","TERMINADO"]
["19-6-0152-0-2022","ENERO 27/022","PRESTACIÓN SERVICIOS PROFESIONALES","ELBERT JOSE BRITO ARAUJO",1065595243,"PRESTACION DE SERVICIOS DE UN PROFESIONAL DEL DERECHO PARA APOYO A LA GESTIÓN EN EL MARCO DE LAS FUNCIONES DE CORPOCESAR",22624000,"-","8 MESES","-",3203,"148 ENERO 21/022","-",141,"-","COORDINACIÓN GIT CAMBIO CLIMATICO, POMCA Y ORDENAMIENTO TERRITORIAL","FEBRERO 03/2022","SEPTIEMBRE 27/2022","-","-","LIQUIDADO"]
["19-6-0153-0-2022","ENERO 28/022","PRESTACIÓN SERVICIOS PROFESIONALES","LILIAN SILVANA MURCIA LOBO",37863181,"PRESTACION DE SERVICIOS PROFESIONALES DE UN ABOGADO COMO APOYO A LA SUBDIRECCION GENERAL DEL ÁREA ADMINISTRATIVA Y FINANCIERA EN EL DESARROLLO DE TODOS LOS PROCEDIMIENTOS DE COMPETENCIAS QUE LO REQUIERA",19792000,7257067,"8 MESES","2 MESES 28 DIAS","A-02-02-02-008-002","159 ENERO 25/022","637 SEPTIEMBRE 06/022",142,1460,"SUBDIRECTOR GENERAL ÁREA ADMINISTRATIVA Y FINANCIERA","FEBRERO 02/2022","OCTUBRE 01/2022","OCTUBRE 02/2022-DICIEMBRE 29/2022","-","TERMINADO"]
["19-6-0154-0-2022","FEBRERO 02/022","PRESTACIÓN SERVICIOS PROFESIONALES","MIGUEL DAVID BRUGES CADENA",77090231,"PESTACION DE SERVICIOS DE UN INGENIERO AMBIENTAL COMO APOYO INGENIERIL EN LAS GESTIÓNES QUE EJECUTA Y DESARROLLA EL GRUPO INTERNO DE TRABAJO PARA LA GESTIÓN EN LA SECCIONAL DE CHIMICHAGUA",19792000,7009666,"8 MESES","2 MESES 25 DIAS",3299,"134 ENERO 27/022","751 SEPTIEMBRE 20/022",134,1649,"COORDINADOR SECCIONAL AGUACHICA","FEBRERO 02/2022","OCTUBRE 01/2022","OCTUBRE 02/2022-DICIEMBRE 26/2022","-","LIQUIDADO"]
["19-6-0155-0-2022","ENERO 28/022","PRESTACIÓN SERVICIOS","HERNAN TORRRES MARTINEZ",8722754,"PRESTACION DE SERVICIOS DE UN EGRESADO DEL PROGRAMA DE INGENIERIA INDUSTRIAL PARA EL APOYO Y LA GESTIÓN QUE EJECUTA Y DESARROLLA LA OFICINA JURÍDICA DE LA CORPORACION",19232000,7131866,"8 MESES","2 MESES 29 DIAS",3299,"128 ENERO 21/022","685 SEPTIEEMBRE 14/022",137,1579,"EIVYS JOHANA VEGA RODRIGUEZ-JEFE OFICINA JURÍDICA","FEBRERO 01/2022","OCTUBRE 01/2022","OCTUBRE 02/2022-DICIEMBRE 28/2022","-","TERMINADO"]
["19-6-0156-0-2022","ENERO 28/022","PRESTACIÓN SERVICIOS PROFESIONALES","LINDA DANIELA CASTILLA BRITO",1140887444,"PRESTACION DE SERRVICIOS PROFESIONALES DE UN INGENIERO CIVIL COMO APOYO INGENIERIL EN LAS GESTIÓNES QUE EJECUTA Y DESARROLLA LA SUBDIRECCION GENERAL DEL ÁREA DE GESTIÓN AMBIENTAL",19792000,7009667,"8 MESES","2 MESES 25 DIAS",3299,"149 ENERO 24/022","746 SEPTIEMBRE 20/022",140,1601,"SUBDIRECCIÓN GENERAL DEL ÁREA DE GESTIÓN AMBIENTAL","FEBRERO 02/2022","OCTUBRE 01/2022","OCTUBRE 02/2022-DICIEMBRE 26/2022","-","TERMINADO"]
["19-6-0157-0-2022","FEBRERO 01/022","PRESTACIÓN SERVICIOS PROFESIONALES","CARLOS MIGUEL PEINADO MENDOZA",1064800884,"PRESTACION DE SERVICIOS PROFESIONALES DE UN ABOGADO PARA EL ACOMPAÑAMIENTO DE LA GESTIÓN QUE EJECUTA Y DESARROLLA LA OFICINA JURÍDICA DE LA CORPORACION EN EL MARCO DE SUS ATRIBUCIONES LEGALES Y REGLAMENTARIAS",19792000,7339533,"8 MESES","2 MESES 29 DIAS",3299,"137 ENERO 21/022","679 SEPTIEMBRE 14/022",120,1471,"EIVYS JOHANA VEGA RODRIGUEZ-JEFE OFICINA JURÍDICA","FEBRERO 01/2022","SEPTIEMBRE 30/2022","OCTUBRE 01/2022-DICIEMBRE 29/2022","-","TERMINADO"]
["19-6-0158-0-2022","ENERO 26/022","PRESTACIÓN SERVICIOS PROFESIONALES","LUIS ARMANDO LORA SARMIENTO",1065828783,"PRESTACION DE SERVICIOS DE UN EGRESADO DEL PROGRAMA DE DERECHO PARA APOYAR A LA OFICINA JURÍDICA EN LAS ACTIVIDADES QUE EJECUTA Y DESARROLLA EN EL MARCO DE SUS ATRIBUCIONES LEGALES Y REGLAMENTARIAS",19232000,7131866,"8 MESES","2 MESES 29 DIAS",3299,"135 ENERO 21/022","662 SEPTIEMBRE 14/022",119,1470,"EIVYS JOHANA VEGA RODRIGUEZ-JEFE OFICINA JURÍDICA","FEBRERO 01/2022","SEPTIEMBRE 30/2022","OCTUBRE 01/2022-DICIEMBRE 29/2022","-","TERMINADO"]
["19-6-0159-0-2022","ENERO 28/022","PRESTACIÓN SERVICIOS PROFESIONALES","WENDY LIZETTE GONZALEZ VELASQUEZ",1101691638,"PRESTACION DE SERVICIOS PROFESIONALES DE UN INGENIERO AMBIENTAL COMO APOYO INGENIERIL EN LAS GESTIÓNES QUE EJECUTA Y DESARROLLA LA SUBDIRECCION GENERAL DEL ÁREA DE GESTIÓN AMBIENTAL",19792000,"-","8 MESES","-",3299,"170 ENERO 25/022","-",174,"-","SUBDIRECCIÓN GENERAL DEL ÁREA DE GESTIÓN AMBIENTAL","FEBRERO 02/2022","OCTUBRE 01/2022","-","-","TERMINADO"]
["19-6-0160-0-2022","ENERO 28/022","PRESTACIÓN SERVICIOS","JOSE ARTURO PABA VASQUEZ",77103285,"PRESTACION DE SERVICIOS DE UN TECNOLOGO EN ANALISIS Y PROGRAMACION DE SISTEMAS PARA EL SOPORTE TECNICO E INFORMATICO DE PRIMER NIVEL EN SITIO A LOS FUNCIONARIOS DE LA CORPORACION AUTONOMA REGIONAL DEL CESAR Y APOYO A LAS ACTIVIDADES GENERADAS DE PROYECTOS DE LA POLITICA DE GOBIERNO DIGITAL, POLITICA DE SEGURIDAD DIGITAL, GESTIÓN DEL CONOCIMIENTO Y DE INNOVACION",16968000,"-","8 MESES","-",3299,"169 ENERO 25/022","-",145,"-","ADRIANA MARGARITA GARCIA AREVALO-SUBDIRECCIÓN GENERAL DEL ÁREA DE PLANEACIÓN","FEBRERO 09/2022","OCTUBRE 08/2022","-","-","LIQUIDADO"]
["19-6-0161-0-2022","ENERO 28/022","PRESTACIÓN SERVICIOS PROFESIONALES","ELKIN JOSE VILLALOBOS OROZCO",72357273,"PRESTACION DE SERVICIOS PROFESIONALES DE UN ABOGADO COMO APOYO JURÍDICO EN LAS GESTIÓNES QUE EJECUTA Y DESARROLLA EL GRUPO INTERNO DE TRABAJO PARA LA GESTIÓN DEL SEGUIMIENTO AL APROVECHAMIENTO DEL RECURSO HIDRICO",22624000,"-","8 MESES","-",3203,"172 ENERO 26/022","-",144,"-","COORDINADOR GIT PARA LA GESTIÓN DEL SEGUIMIENTO AL APROVECHAMIENTO DEL RECURSO HIDRICO","FEBRERO 10/2022","OCTUBRE 09/2022","-","-","TERMINADO POR MUTUO ACUERDO 29-07-22"]
["19-6-0162-0-2022","ENERO 28/022","PRESTACIÓN SERVICIOS","CARLOS MARIO MENDOZA PALMEZANO",77093889,"PRESTACION DE SERVICIOS DE UN PROFESIONAL EN INGENIERIA DE SISTEMAS PARA LA ADMINISTRACION, GESTIÓN, SEGUIMIENTO A LA DISPONIBILIDAD Y SOPORTE AL PORTAL WEB INSTITUCIONAL ACORDE A REQUERIMIENTOS CORPORATIVOS Y OBLIGATORIOS DE LA LEY PARA DAR CUMPLIMIENTO ENTRE OTRAS, A LA POLITICA DE TRANSPARENCIA, ACCESO A LA INFORMACION PUBLICA Y LUCHA CONTRA LA CORRUPCION",25448000,"-","8 MESES","-",3299,"166 ENERO 25/022","-",151,"-","ADRIANA MARGARITA GARCIA AREVALO-SUBDIRECCIÓN GENERAL DEL ÁREA DE PLANEACIÓN","FEBRERO 04/2022","OCTUBRE 04/2022","-","-","TERMINADO"]
["19-6-0163-0-2022","ENERO 28/022","PRESTACIÓN SERVICIOS AUXILIAR DE APOYO","JHON JAMES CASTILLA ROCHA",77191608,"PRESTACION DE SERVICIOS DE UN TECNICO AMBIENTAL COMO APOYO EN LAS GESTIÓNES QUE EJECUTA Y DESARROLLA EL GRUPO INTERNO DE TRABAJO PARA LA GESTIÓN DEL SEGUIMIENTO AL APROVECHAMIENTO DEL RECURSO HIDRICO",14136000,4712000,"8 MESES","2 MESES 20 DIAS",3203,"165 ENERO 25/022","713 SEPTIEMBRE 15/022",170,1614,"COORDINADOR GIT PARA LA GESTIÓN DEL SEGUIMIENTO AL APROVECHAMIENTO DEL RECURSO HIDRICO","FEBRERO 07/2022","OCTUBRE 06/2022","OCTUBRE 07/2022-DICIEMBRE 26/2022","-","TERMINADO"]
["19-6-0164-0-2022","ENERO 28/022","PRESTACIÓN SERVICIOS PROFESIONALES","ADRIANA MARCELA GUERRA VILLA",1065624501,"PRESTACION DE SERVICIOS PROFESIONALES DE UN PSICOLOGO PARA APOYAR A LA SUBDIRECCION GENERAL ÁREA ADMINISTRATIVA Y FINANCIERA EN LOS PROCESOS PSICOSOCIALES QUE SE DEBEN ADELANTAR EN PRO DEL BIENESTAR DEL TALENTO HUMANO DE LA CORPORACION Y DEL SISTEMA DE GESTIÓN DE SEGURIDAD Y SALUD EN EL TRABAJO",25448000,null,"8 MESES",null,3299,"161 ENERO 26/022",null,136,null,"COORDINACIÓN GIT PARA LA GESTIÓN DEL TALENTO HUMANO","FEBRERO 01/2022","SEPTIEMBRE 30/2022",null,null,"LIQUIDADO"]
["19-6-0165-0-2022","ENERO 28/022","PRESTACIÓN SERVICIOS PROFESIONALES","ELLIUTH MARCELA CAAMAÑO FONSECA",1065600912,"PRESTACION DE SERVICIOS PROFESIONALES DE UN ABOGADO COMO APOYO JURÍDICO EN LAS GESTIÓNES QUE EJECUTA Y DESARROLLA EL GRUPO INTERNO DE TRABAJO PARA LA GESTIÓN DEL SEGUIMIENTO AL APROVECHAMIENTO DEL RECURSO HIDRICO",19792000,6927200,"8 MESES","2 MESES 24 DIAS",3203,"167 ENERO 25/022","709 SEPTIEMBRE 15/022",138,1549,"ESTEFANI PAOLA RONDON VELASQUEZ","FEBRERO 03/2022","OCTUBRE 02/2022","OCTUBRE 03/2022-DICIEMBRE 27/2022","-","TERMINADO"]
["19-6-0166-0-2022","ENERO 28/022","PRESTACIÓN SERVICIOS DE APOYO A LA GESTIÓN","LAURIE GISSETTE FUENTES GUILLOT",1065839485,"PRESTACION DE SERVICIOS DE UN TECNICO O TECNOLOGO Y/O PROFESIONAL EN PRODUCCION AUDIOVISUAL Y/O DISEÑO GRAFICO PARA APOYAR LA OFICINA DE SECRETARIA GENERAL EN LAS ACTIVIDADES DESARROLLADAS EN EL ÁREA DE COMUNICACIÓN DE LA CORPORACION AUTONOMA REGIONAL DEL CESAR",18664000,6610167,"8 MESES","2 MESES 25 DIAS",3204,"121 ENERO 21/022","612 SEPTIEMBRE 01/022","172 ENERO 28/022",1409,"SECRETARÍA GENERAL JAIME ARAUJO CASTRO","FEBRERO 04/2022","OCTUBRE 03/2022","OCTUBRE 04/2022-DICIEMBRE 29/2022","-","LIQUIDADO"]
["19-6-0167-0-2022","ENERO 28/022","PRESTACIÓN SERVICIOS PROFESIONALES","JOSE GUILLERMO YAMIN CASTRO",1065606388,"PRESTACION DE SERVICIOS PROFESIONALES DE UN AUXILIAR JURÍDICO (TERMINACION DE ASIGNATURAS) QUE PRESTE EL ACOMPAÑAMIENTO EN LAS ACTUACIONES JURÍDICAS, APOYANDO LAS GESTIÓNES QUE EJECUTA Y DESARROLLA EL GRUPO INTERNO DE TRABAJO PARA LA GESTIÓN DEL SEGUIMIENTO AMBIENTAL",19232000,6891467,"8 MESES","2 MESES 26 DIAS",3299,"176 ENERO 27/022","604 SEPTIEMBRE 01/022",146,1414,"COORDINADOR DEL GIT PARA LA GESTIÓN DEL SEGUIMIENTO AMBIENTAL","FEBRERO 01/2022","SEPTIEMBRE 30/2022","OCTUBRE 01/2022-DICIEMBRE 26/2022","-","TERMINADO"]
["19-6-0168-0-2022","ENERO 28/022","PRESTACIÓN SERVICIOS PROFESIONALES","DIEGO RAUL ARRREDONDO DAZA",77187891,"PRESTACION DE SERVICIOS PROFESIONALES DE UN INGENIERO CIVIL Y/O ARQUITECTO PARA EL APOYO A LA SUBDIRECCION ADMINISTRATIVA Y FINANCIERA EN LA ESTRUCTURACION, ELABORACION DE SEGUIMIENTOS DE PROYECTOS DE ACUERDO A SU ASIGNACION Y/O PERFIL",22624000,7541320,"8 MESES","2 MESES 20 DIAS",3299,"174 ENERO 27/022","642 SEPTIEMBRE 07/022",173,1468,"SUBDIRECTOR GENERAL ÁREA ADMINISTRATIVA Y FINANCIERA","FEBRERO 07/2022","OCTUBRE 06/2022","OCTUBRE 07/2022-DICIEMBRE 26/2022","-","TERMINADO"]
["19-6-0169-0-2022","ENERO 28/022","PRESTACIÓN SERVICIOS PROFESIONALES","LEVEL EDUARDO VERGARA BENITEZ",92559125,"PRESTACION DE SERVICIOS PROFESIONALES DE UN ABOGADO QUE PRESTEN ACOMPAÑAMIENTO A LA SECRETARIA GENERAL, PROYECTANDO Y REVISANDO LOS DERECHOS DE PETICION Y DEMAS ASUNTIOS JURÍDICOS QUE INVOLUCREN LAS ACTIVIDADES INSTITUCIONALES DE ESTA DEPENDENCIA",19792000,"-","8 MESES","-",3299,"175 ENERO 27/022","-",149,"-","SECRETARÍA GENERAL JAIME ARAUJO CASTRO","FEBRERO 04/2022","OCTUBRE 03/2022","-","-","TERMINADO"]
["19-6-0170-0-2022","ENERO 28/022","PRESTACIÓN SERVICIOS PROFESIONALES","FUNDACION SIN DIFERENCIAS-FUNSIND","901204535-3","PRESTACIÓN DE SERVICIOS PROFESIONALES PARA EL APOYO EN EL SEGUIMIENTO A LA IMPLEMENTACION DEL MODELO INTEGRADO DE PLANEACION Y DE GESTIÓN-MIPG EN SU VERSION 2 AL SISTEMA INTEGRADO DE GESTIÓN DE CALIDAD",70000000,"-","7 MESES","-",3299,"177 ENERO 27/022","-",152,"-","ADRIANA MARGARITA GARCIA AREVALO-SUBDIRECCIÓN GENERAL DEL ÁREA DE PLANEACIÓN","FEBRERO 09/2022","SEPTIEMBRE 09/2022","-","-","TERMINADO"]
["19-6-0171-0-2022","ENERO 31/022","PRESTACIÓN SERVICIOS PROFESIONALES","MAIRA ALEJANDRA SUAREZ ALBOR",1065625771,"PRESTACION DE SERVICIOS PROFESINALES DE UN ABOGADO PARA EL ACOMPAÑAMIENTO DE LA GESTIÓN QUE EJECUTA Y DESARRROLLA LA OFICINA JURÍDICA DE LA CORPORACION EN EL MARCO DE SUS ATRIBUCIONES LEGALES Y REGLAMENTARIAS",19792000,7092133,"8 MESES","2 MESES 26 DIAS",3299,"179 ENERO 27/022","670 SEPTIEMBRE 14/022",150,1583,"EIVYS JOHANA VEGA RODRIGUEZ-JEFE OFICINA JURÍDICA","FEBRERO 04/2022","OCTUBRE 03/2022","OCTUBRE 04/2022-DICIEMBRE 29/2022","-","TERMINADO"]
["19-6-0172-0-2022","ABRIL 05/022","PRESTACIÓN SERVICIOS","EL PILON S.A.","824000056-1","PRESTACION DE SERVICIOS DE UN DIARIO LOCAL PARA LA COORDINACIÓN Y EJECUCION DE CAMPAÑAS DIVULGATIVAS QUE CONTRIBUYAN A LA SENSIBILIZACION Y CONCIENTIZACION DEL MEDIO AMBIENTE Y AVISOS INSTITUCIONALES LEGALES",23000000,"-","10  MESES","-",3204,"234 FEBRERO 28/022","-",470,"-","SECRETARÍA GENERAL JAIME ARAUJO CASTRO","ABRIL 08/2022","DICIEMBRE 31/2022","-","-","TERMINADO"]
["19-6-0173-0-2022","ABRIL 05/022","PRESTACIÓN SERVICIOS","MILTON RAFAEL AVENDAÑO ESCOBAR/AGENCIA Y ACADEMIA MILTON AVENDAÑO","77009052-4","PRESTACION DE SERVICIOS PARA EL ACOMPAÑAMIENTO MUSICAL, MONTAJE COREOGRAFICO; MANTENIMIENTO DE VESTUARIO Y DEMÁS NECESIDADES PARA LA DANZA DEL PILON DE LA CORPORACION AUTONOMA REGIONAL DEL CESAR EN SU PARTICIPACION DEL 55 FESTIVAL DE LA LEYENDA VALLENATA",12000000,"-","8 MESES","-","A-02","284 MARZO 28/022","-",471,"-","SUBDIRECTOR GENERAL ÁREA ADMINISTRATIVA Y FINANCIERA","ABRIL 07/2022","ABRIL 27/2022","-","-","LIQUIDADO"]
["19-6-0174-0-2022","ABRIL 18/022","PRESTACIÓN SERVICIOS","INNOVACION ATL SAS","900567925-6","CONTRATACION PARA LAS ACTIVIDADES DE  LOGISTICAS EN LA PRESENTACION PUBLICA DE LA RENDICION DE CUENTAS DE LA CORPORACION AUTONOMA REGIONAL DEL CESAR CORPOCESAR DURANTE LA VIGENCIA 2021",10000000,"-","15 DIAS","-",3208,"283 MARZO 23/022","-",501,"-","SECRETARÍA GENERAL JAIME ARAUJO CASTRO","ABRIL 20/2022","MAYO 04/2022","-","-","TERMINADO"]
["19-6-0175-0-2022","MAYO 11/022","PRESTACIÓN SERVICIOS","DONALDO VILORIA JIMENEZ-ASESORIAS Y SERVICIOS CONTINENTAL","12722247-4","SERVICIOS DE ALQUILER ARRENDAMIENTO IN SITU DE DISPOSITIVOS MULTIFUNCIONALES DE ALTO RENDIMIENTO PARA ATENDER LA DEMANA DE IMPRESIÓN, FOTOCOPIADO Y ESCANEO DENTRO DE LAS INSTALACIONES DE LA CORPORACION AUTONOMA REGIONAL DEL CESAR (CORPOCESAR) CON EL FIN DE APOYAR LAS ACTIVIDADES MISIONALES DE LA ENTIDAD EN TODAS SUS DEPENDENCIAS",49500000,null,"8 MESES",null,3299,"274 MARZO 18/022",null,694,null,"MAURICIO GARCES ORDOÑEZ","MAYO 19/2022","DICIEMBRE 31/2022",null,null,"EJECUCION"]
["19-6-0176-0-2022","MAYO 20/022","SUMINISTROS","ISABEL CRISTINA CAMPO-DISTRIBUCIONES Y SUMINISTROS VALLEDUPAR",49730487,"SUMINISTROS DE ELEMENTOS DE OFICINA, UTILES Y PAPELERIA PARA LA CORPORACION AUTONOMA REGIONAL DEL CESAR",76993650,"-","7 MESES","-","A-02-02-01-003-002","303 ABRIL 04/022","-",715,"-","SUBDIRECTOR GENERAL ÁREA ADMINISTRATIVA Y FINANCIERA","MAYO 26/2022","DICIEMBRE 25/2022","-","-","LIQUIDADO"]
["19-6-0177-0-2022","JUNIO 10/022","PRESTACIÓN SERVICIOS","JAMES ALBEIRO MONTOYA RAMIREZ-REP LEGAL AUTOCHEVROLET","16216035-4","MANTENIMIENTO PREVENTIVO Y CORRECTIVO DE DOS VEHICULOS TIPO CAMIONETA DE PROPIEDAD DE LA CORPORACION AUTONOMA REGIONAL DEL CESAR CORPOCESAR",27964000,"-","8 MESES","-","A-02","398 MAYO 26/022","-",803,"-","SUBDIRECTOR GENERAL ÁREA ADMINISTRATIVA Y FINANCIERA","JUNIO 13/2022","DICIEMBRE 12/2022","-","-","LIQUIDADO"]
["19-6-0178-0-2022","JUNIO 10/022","SELECCIÓN MINIMA CUANTIA","CARLOS DANIEL QUINTERO OBREGON-ESTACION DE SERVICIO LA ESMERALDA No.3",77027088,"SUMINISTRO DE GASOLINA CORRIENTE A LOS VEHICULOS Y MOTOCICLETA DE PROPIEDAD DE LA CORPORACION AUTONOMA REGIONAL DEL CESAR, EL ADECUADO FUNCIONAMIENTO Y CUMPLIMIENTO A LAS ACTIVIDADES ASIGNADAS A LOS FUNCIONARIOS EN EL CUMPLIMIENTO DE LAS COMISIONES ENCOMENDADAS PARA LA SEDE CENTRAL DE LA CORPORACION AUTONOMA REGIONAL DEL CESAR CORPOCESAR",15000000,"-","6 MESES","-","A-02","396 MAYO 26/022","-",824,"-","SUBDIRECTOR GENERAL ÁREA ADMINISTRATIVA Y FINANCIERA","JUNIO 15/2022","DICIEMBRE 13/2022","-","-","LIQUIDADO"]
["19-6-0179-0-2022","JUNIO 13/022","CONTRATO DE CONSULTORIA","UNION TEMPORAL 2022","901603142-4","ACTUALIZAR E IMPLEMENTAR EL PLAN MAESTRO DEPARTAMENTAL DE RESIDUOS Y/O DESECHOS PELIGROSOS-RESPEL DEL ÁREA DE LA JURISDICCION DE CORPOCESAR EN EL MARCO DE LA POLITICA AMBIENTAL DE RESPEL Y ACORDE A LA DIRECTIVA MINISTERIAL DE 2019",89999462,"-","3 MESES","-",3201,"240 MARZO 01/022","-",869,"-","COORDINADOR DEL GIT PARA LA GESTIÓN DE PML, RESPEL Y COP","JUNIO 17/2022","SEPTIEMBRE 16/2022","-","-","LIQUIDADO"]
["19-6-0180-0-2022","JUNIO 14/022","PRESTACIÓN SERVICIOS","VALLENATOS ASOCIADOS LTDA","800065343-2","PRESTACION DE SERVICIOS PARA LA ORGANIZACIÓN, ADMINISTRACION Y EJECUCION DEL PLAN DE MEDIOS EN LOS FORMATOS TELEVISIVOS, RADIALES, ESCRITOS Y WEB CON EL PROPOSITO DE DIFUNDIR LOS DIFERENTES PROGRAMAS PLASMADOS DENTRO DEL PLAN DE ACCION, ASI COMO LAS DISTINTAS ACTUACIONES DE LA CORPORACION AUTONOMA REGIONAL DEL CESAR 2022",250000000,null,"8 MESES",null,3204,"354 MAYO 06/022",null,"874 JUNIO 14/2022",null,"MARIA LAURA RIOS MAESTRE","JUNIO 22/2022","DICIEMBRE 31/2022",null,null,"TERMINADO"]
["19-6-0181-0-2022","JUNIO 28/022","CONTRATO DE OBRA","CONSORCIO RIO ANIME. RL ANDRES PEREA SANCHEZ","901604748-1","IMPLEMENTACION DE MEDIDAS ESTRUCTURALES Y NO ESTRUCTURALES PARA EL CONTROL DE LA EROSION E INUNDACION EN LA CORRIENTE SUPERFICIAL ANIME, EN LOS MUNICIPIOS DE CHIRIGUANA Y CURUMANI DEPARTAMENTO DEL CESAR-FASE II",23743156217,null,"8 MESES",null,3205,"361 MAYO 12/022",null,"949  JULIO 01/2022",null,"SUBDIRECCIÓN GENERAL DEL ÁREA DE GESTIÓN AMBIENTAL","JULIO 18/2022","FEBRERO 17/2023",null,null,"EJECUCION"]
["19-6-0182-0-2022","JUNIO 28/022","PRESTACIÓN SERVICIOS","ANA BEATRIZ MIELES DAZA REP LEGAL ALIANZA CREATIVA PLUS LTDA","900307510-9","SUMINISTRO E INSTALACION DE ADHESIVOS Y SEÑALIZACIONES, CON FONDO EN VINILO ESMERILADO, VOLANTES IMPRESOS, SELLOS DE CAUCHO Y SELLOS SECOS METALICOS, PARA LAS OFICINAS Y SEDES DE LA CORPORACION AUTONOMA REGIONAL DEL CESAR CORPOCESAR",7292200,null,"8 MESES",null,"A-02","395 MAYO 26/022",null,"944 JUNIO 28/2022",null,"SUBDIRECTOR GENERAL ÁREA ADMINISTRATIVA Y FINANCIERA","JUNIO 29/2022","JULIO 28/2022",null,null,"TERMINADO"]
["19-6-0183-0-2022","JULIO 06/022","PRESTACIÓN SERVICIOS","REFRIFAMA SAS","900997781-7","MANTENIMIENTO PREVENTIVO Y CORRECTIVO DE LOS SISTEMAS DE AIRE ACONDICIONADO DE LA SEDE PRINCIPAL Y SECCIONALES DE LA CORPORACION AUTONOMA REGIONAL DEL CESAR",28000000,null,"8 MESES",null,"A-02","388 MAYO 23/022",null,"1007 JULIO 06/2022",null,"AUXILIAR ADMINISTRATIVO DE ALMACEN","JULIO 12/2022","DICIEMBRE 31/2022",null,null,"LIQUIDADO"]
["19-6-0184-0-2022","JULIO 08/022","CONTRATO DE INTERVENTORIA","CONSORCIO INTER OBRAS ANIME","901609582-9","INTERVENTORIA TECNICA, ADMINISTRATIVA, FINANCIERA, JURÍDICA Y AMBIENTAL PARA EL CONTRATO CUYO OBJETO ES: \"IMPLEMENTACIÓN DE MEDIDAS ESTRUCTURALES PARA EL CONTROL DE LA EROSION E INUNDACION EN LA CORRIENTE SUPERFICIAL ANIME EN LOS MUNICIPIOS DE CHIRIGUANA Y CURUMANI, DEPARTAMENTO DEL CESAR FASE II",1424531150,null,"8 MESES",null,3205,"375 MAYO 18/022",null,"1922 JULIO 13/2022",null,"SUBDIRECCIÓN GENERAL DEL ÁREA DE GESTIÓN AMBIENTAL","JULIO 18/2022","MARZO 17/2023",null,null,"EJECUCION"]
["19-6-0185-0-2022","JULIO 05/022","PRESTACIÓN SERVICIOS","VIPERS LTDA","800209088-9","PRESTACION DEL SERVICIO DE VIGILANCIA PRIVADA EN LAS SEDES DE CORPOCESAR",27994980,null,"8 MESES",null,"3299 03","439 JUNIO 16/2022",null,"1004 JULIO 05/2022",null,"SUBDIRECTOR GENERAL ÁREA ADMINISTRATIVA Y FINANCIERA","JULIO 05/2022","JULIO 16/2022",null,null,"LIQUIDADO"]
["19-6-0186-0-2022","JULIO 14/022","PRESTACIÓN SERVICIOS","UNION TEMPORAL READCOL LTDA Y SEGURIDAD COMUNERA LTDA","901611139-5","LA CORPORACION REQUIERE PARA LA PRESTACION DEL SERVICIO DE VIGILANCIA PRIVADA, QUE ESTA SEA CON ARMAS, LAS 24 HORAS DEL DIA, DE LUNES A DOMINGO (INCLUIDO LOS FESTIVOS), EN LAS SIGUIENTES SEDES: VALLLEDUPAR: PROYECTO BIOCLIMATICO, SALIDA A LA PAZ CESAR, VALLEDUPAR: CENTRO DE ATENCION, VALORACION Y REHABILITACION DE FAUNA SILVESTRE (CAVFS), VIA A VALENCIA DE JESUS, CHIMICHAGUA: CALLE 7 ENTRE LAS CARRRERAS 3 Y 4, Y AGUACHICA: CALLE 8 No. 36-57. \nSISTEMA DE MONITOREO: LA JAGUA-CALLE 5 No. 5-87, Y CURUMANI: CALLE 7 16-73",417057744,"-","8 MESES","-","3203-3206-3299","393 MAYO 26/022","-",1060,"-","SUBDIRECTOR GENERAL ÁREA ADMINISTRATIVA Y FINANCIERA","JULIO 18/2022","DICIEMBRE 31/2022","-","-","EJECUCION"]
["19-6-0187-0-2022","JULIO 14/022","CONTRATO DE OBRA","UNION TEMPORAL BERACA SERRANIA","901611702-2","IMPLEMENTACION DE ACCIONES DE RESTAURACION EN ÁREAS DE INTERES ESTRATEGICO EN LA SERRANIA DEL PERIJA EN EL DEPARTAMENTO DEL CESAR FASE II",6677036893,null,"8 MESES",null,3202,"373 MAYO 18/022",null,"1085 JULIO 21/2022",null,"ADRIAN ALBERTO IBARRA USTARIZ","AGOSTO 11/2022","MARZO 10/2023",null,null,"EJECUCION"]
["19-6-0188-0-2022","JULIO 18/022","PRESTACION DE SERVICIOS PROFESIONALES","BLANCO & DEGIOVANNI ABOGADOS Y CONSULTORES SAS","901447396-9","PRESTACION DE SERVICIOS PROFESIONALES PARA LA ACTUALIZACION DE LOS ESTATUTOS Y DE MANUAL DE CONTRATACION Y SUPERVISION E INTERVENTORIA DE LA CORPORACION AUTONOMA REGIONAL DEL CESAR CORPOCESAR, INCLUYENDO LA SOCIALIZACION DEL MISMO",100000000,"-","8 MESES","-",3299,"493 JULIO 12/022","-",1068,"-","SECRETARIO GENERAL Y SUBDIRECTORA ÁREA ADMINISTRATIVA Y FINANCIERA","JULIO 22/2022","NOVIEMBRE 21/2022","-","-","TERMINADO"]
["19-6-0189-0-2022","JULIO 18/022","PRESTACIÓN SERVICIOS","TRANSPORTES CARVAJAL LTDA","900005005-4","CONTRATAR LA PRESTACION DEL SERVICIO DE TRANSPORTE TERRESTRE ESPECIAL Y DE CARGA DENTRO Y FUERA DEL DEPARTAMENTO DEL CESAR PARA MOVILIZAR LAS PERSONAS DE CORPOCESAR Y ELEMENTOS INCAUTADOS DENTRO DE LAS COMPETENCIAS DERIVADAS DE LA LEY 373 DE 2009",749399994,null,"8 MESES",null,"3299 03","394 MAYO 26/2022",null,1066,null,"SUBDIRECTOR GENERAL ÁREA ADMINISTRATIVA Y FINANCIERA","JULIO 18/2022","DICIEMBRE 18/2022",null,null,"EJECUCION"]
["19-6-0190-0-2022","JULIO 14/022","PRESTACION DE SERVICIOS PROFESIONALES","ICONTEC","860012336-1","PRESTACION DE SERVICIOS DE UN ORGANISMO EVALUADOR DE CONFORMIDAD, DEBIDAMENTE ACREDITADO CON ALTO GRADO DE EXPERIENCIA, CONOCIMIENTOS E IDONEIDAD EN AUDITORIAS DE CERTIFICACION/SEGUIMIENTO DE SISTEMAS DE GESTIÓN DE ALTA CALIDAD CON EL FIN DE REALIZAR AUDITORIA EXTERNA DE SEGUIMIENTO DE CERTIFICACION DEL SISTEMA INTEGRADO DE GESTIÓN DE CALIDAD ISO 9000:2015 DE LA CORPORACION AUTONOMA REGIONAL DEL CESAR CORPOCESAR",5200000,null,"8 MESES",null,3299,"498 JULIO 14/022",null,1091,null,"ADRIANA MARGARITA GARCIA AREVALO-SUBDIRECCIÓN GENERAL DEL ÁREA DE PLANEACIÓN","JULIO 25/2022","OCTUBRE 21/2022",null,null,"TERMINADO"]
["19-6-0191-0-2022","JULIO 29/022","CONTRATO DE INTERVENTORIA","CONSORCIO INTERVENTORIA PERIJA","901616356-1","INTERVENTORIA TECNICA, ADMINISTRATIVA, FINANCIERA Y AMBIENTAL PARA EL CONTRATO CUYO OBJETO ES IMPLEMENTACION DE ACCIONES DE RESTAURACION EN ÁREAS DE INTERES ESTRATEGICO EN LA SERRANIA DEL PERIJA EN EL DEPARTAMENTO DEL CESAR FASE II",381490200,null,"8 MESES",null,"3202 09","374 MAYO 18/2022",null,1233,null,"SUBDIRECCIÓN GENERAL DEL ÁREA DE GESTIÓN AMBIENTAL","JULIO 29/2022","JULIO 03/2023",null,null,"EJECUCION"]
["19-6-0192-0-2022","JULIO 07/022","CONTRATO DE COMPRA VENTA","J&M ELECTRONIC SAS","900297726-8","ADQUISICION, INSTALACION Y PUESTA EN FUNCIONAMIENTO DE UNA UPS DE 10 KVA BIFASICA CON SU BANCO DE BATERIAS Y TABLERO ELECTRONICO CON SUS PROTECCIONES EN EL CENTRO DE CABLEADO DE LA GARITA Y EL MANTENIMIENTO PREVENTIVO A LA UPS DE 20 KVA DEL CENTRO DE CABLEADO PRINCIPAL DE CORPOCESAR",28000000,null,"8 MESES",null,3299,"479 JULIO 07/022",null,1207,null,"MAURICIO GARCES ORDOÑEZ","AGOSTO 05/2022","AGOSTO 25/2022",null,null,"LIQUIDADO"]
["19-6-0193-0-2022","AGOSTO 05/022","PRESTACION DE SERVICIOS PROFESIONALES","ROSA CAROLINA DE BRIGARD CUELLO",1065582758,"PRESTACION DE SERVICIOS PROFESIONALES DE UN MICROBIOLOGO COMO APOYO DE ACUERDO A SU PERFIL EN LAS GESTIÓNES QUE EJECUTA Y DESARROLLA EL GRUPO INTERNO DE TRABAJO DEL LABORATORIO AMBIENTAL EN LA VIGENCIA DE 2022",13197333,null,"8 MESES",null,3299,"530 JULIO 28/022",null,1221,null,"COORDINADOR DEL GIT DEL LABORATORIO AMBIENTAL","AGOSTO 12/2022","DICIEMBRE 31/2022",null,null,"TERMINADO"]
["19-6-0194-0-2022","AGOSTO 18/022","PRESTACIÓN SERVICIOS","GLEIDYS ELIANA RAMIREZ ARRIETA",1065623884,"PRESTACION DE SERVICIOS PROFESIONALES DE UN TECNICO EN ADMINISTRACION PUBLICA O SU EQUIVALENTE, PARA EL ACOMPAÑAMIENTO Y EL APOYO A LA GESTIÓN QUE EJECUTA Y DESARROLLA LA COORDINACIÓN DEL GIT PARA LA GESTIÓN JURÍDICO AMBIENTAL",7657000,null,"4 MESES Y 10 DIAS",null,3299,"555 AGOSTO 11/022",null,1276,null,"COORDINADOR DEL GIT PARA LA GESTIÓN JURÍDICO AMBIENTAL","AGOSTO 19/2022","DICIEMBRE 28/2022",null,null,"TERMINADO"]
["19-6-0195-0-2022","AGOSTO 30/022","CONTRATO DE CONSULTORIA","K2 INGENIERIA SAS","804007055-3","VIGENCIA FUTURA PARA LA OPERACIÓN, IMPLEMENTACION Y ADMINISTRACION DE LA RED DE MONITOREO DE LOS RECURSOS NATURALES EN EL ÁREA DE JURISDICCION DE CORPOCESAR",1915777969,null,"8 MESES",null,"3201 06\n3201 06","366 MAYO 16/2022",null,1348,null,"COORDINADOR DEL GIT DEL LABORATORIO AMBIENTAL","AGOSTO 30/2022","DICIEMBRE 31/2022",null,null,"EJECUCION"]
["19-6-0196-0-2022","AGOSTO 30/022","PRESTACIÓN SERVICIOS","DMO GESTIÓN SAS","901547632-1","OPTIMIZACION DE LOS ARCHIVOS INSTITUCIONALES MEDIANTE LA REORGANIZACION, ELABORACION DE UN PLAN DE FUMIGACION Y EJECUCION Y LA DOTACION DE ARCHIVO RODANTE PARA LA CORPORACION AUTONOMA REGIONAL DEL CESAR CORPOCESAR",100000000,null,"8 MESES",null,"3299 02","466 JUNIO 28/2022",null,1346,null,"SECRETARÍA GENERAL JAIME ARAUJO CASTRO","AGOSTO 30/2022","DICIEMBRE 31/2022",null,null,"TERMINADO"]
["19-6-0197-0-2022","SEPTIEMBRE 01/2022","PRESTACIÓN SERVICIOS","CORPORACION PROSPERAR","806009990-1","REALIZAR LA FORMULACION DEL PLAN DE ORDENAMIENTO DEL RECURSO HIDRICO DEL RIO PEREIRA, DE CONFORMIDAD A LO ESTABLECIDO EN LA GUIA TECNICA EXPEDIDA POR MINAMBIENTE",640000000,"-","8 MESES","-","3203 01","463 JUNIO 28/2022","-","1457 SEPTIEMBRE 13/022","-","LIBARDO RAÚL LASCARRO-COORDINADOR GIT CAMBIO CLIMATICO, POMCAS Y ORDENAMIENTO TERRRITORIAL","OCTUBRE 18/2022","ABRIL 18/2023","-",191143200,"EJECUCION"]
["19-6-0198-0-2022","SEPTIEMBRE 06/022","PRESTACIÓN SERVICIOS","FUNDACION PARA EL DESARROLLO EMPRESARIAL-CAPACITAR","900255307-5","CONTRATAR LA PRESTACION DEL SERVICIO DE APOYO LOGISTICO Y PLATAFORMA TECNOLOGICA CON EL FIN DE DESARROLLAR DE MANERA CONJUNTA PROCESOS DE EDUCACION AMBIENTAL Y PARTICIPACION CIUDADANA PARA LA GESTIÓN A TRAVES DE ESTRATEGIAS VIRTUALES Y PRESENCIALES CON ACTORES INSTITUCIONALES, GREMIOS Y COMUNIDADES QUE PROPENDAN POR UNA GESTIÓN AMBIENTAL SOSTENIBLE PARA EL MANEJO INTEGRAL DE LOS RECURSOS NATURALES Y DEL AMBIENTE, EN LOS ECOSISTEMAS ESTRATEGICOS ESTABLECIDOS EN LOS 25 MUNICIPIOS DEL DEPARTAMENTO DEL CESAR AÑO 2022",380349994,null,"8 MESES",null,"3208 01\n3208 02\n3208 03","481 JULIO 11/2022",null,1420,null,"COORDINACIÓN GIT PARA LA EDUCACION AMBIENTAL INTEGRAL Y LA PARTICIPACION CIUDADANA","SEPTIEMBRE 06/2022","DICIEMBRE 31/2022",null,null,"SUSPENDIDO"]
["19-6-0199-0-2022","SEPTIEMBRE 08/022","PRESTACION DE SERVICIOS PROFESIONALES","CLAUDIA VIVIANA GIL",31487485,"PRESTACION DE SERVICIOS DE UN ABOGADO CON ESPECIALIZACION PARA EL ACOMPAÑAMIENTO A LA ESTRATEGIA DE COBRO PERSUASIVO Y COACTIVO DE CORPOCESAR",12726000,null,"8 MESES",null,"3299 01","613 SEPTIEMBRE 02/2022",null,1450,null,"SUBDIRECTOR GENERAL ÁREA ADMINISTRATIVA Y FINANCIERA","SEPTIEMBRE 09/2022","DICIEMBRE 08/2022",null,null,"TERMINADO"]
["19-6-0200-0-2022","ANULADO","-","-","-","-","-","-","-","-","-","-","-","-","-","-","-","-","-","-","-"]
["19-6-0201-0-2022","SEPTIEMBRE 21/2022","PRESTACION DE SERVICIOS PROFESIONALES","CARLOS ALBERTO CONTREAS JAIME",1065646114,"PRESTACION DE SERVICIOS PROFESIONALES DE UN ABOGADO ESPECIALIZADO EN DERECHO PROCESAL PARA ACOMPAÑAMIENTO DE LA GESTION QUE EJECUTA Y DESARROLLA LA OFICINA JURIDICA DE LA CORPORACION, EN EL MARCO DE SUS ATRIBUCIONES LEGALES Y REGLAMENTARIAS",11783333,"-","2 MESES 19 DIAS","-","3299 03","725 SEPTIEMBRE 16/2022","-","1557 SEPTIEMBRE 20/2022","-","OFICINA JURIDICA","SEPTIEMBRE 21/2022","DICIEMBRE 29/2022","-","-","TERMINADO"]
["19-6-0202-0-2022","SEPTIEMBRE 20/2022","PRESTACION DE SERVICIOS PROFESIONALES","ALEX JOSE OSPINO SARMIENTO",77032423,"PRESTACION DE SERVICIOS PROFESIONALES DE UN INGENIERO AGRONOMO ESPECIALISTA EN GESTION AMBIENTAL COMO APOYO INGENIERIL EN LAS GESTIONES QUE EJECUTA Y DESARROLLA EL GIT PARA LA GESTION JURIDICO AMBIENTAL",11783333,null,"2 MESES 19 DIAS",null,"3299 03","704 SEPTIEMBRE 15/022",null,1561,null,"COORDINADOR DEL GIT PARA LA GESTIÓN JURIDICO AMBIENTAL","SEPTIEMBRE 21/2022","DICIEMBRE 29/2022",null,null,"TERMINADO"]
["19-6-0203-0-2022","SEPTIEMBRE 21/022","PRESTACION DE SERVICIOS PROFESIONALES","JAIRENN SAHIAN REYES OBREGON",1065901282,"PRESTACION DE SERVICIOS DE UN INGENIERO AMBIENTAL COMO APOYO INGENIERIL EN LAS GESTIÓNES QUE EJECUTA Y DESARROLLA EL GRUPO INTERNO DE TRABAJO PARA LA GESTIÓN EN LA SECCIONAL DE AGUACHICA",8246667,null,"3 MESES 10 DIAS",null,"3299 03","689 SEPTIEMBRE 14/022",null,"1560 SEPTIEMBRE 20/022",null,"COORDINADOR DEL GIT PARA LA GESTIÓN EN LA SECCIONAL AGUACHICA",null,null,null,null,"TERMINADO"]
["19-6-0204-0-2022","SEPTIEMBRE 22/022","PRESTACION DE SERVICIOS PROFESIONALES","CARLOS ANDRES OCHOA TRIANA",77181766,"EJERCER LA REVISORIA FISCAL DE LA CORPORACION AUTONOMA REGIONAL DEL CESAR \"CORPOCESR\", CON SUJECION A LAS DISPOSICIONES DEL CAPITULO VIII DEL CODIGO DE COMERCIO Y DEMAS NORMAS CONCORDANTES QUE REGULEN ESTA ACTIVIDAD, DE CONFORMIDAD CON LAS OBLIGACIONES O ALCANCES QUE SE HAN DE ESTABLECER EN LA CLAUSULA SEGUNDA DE ESTE CONTRATO",38172000,null,"12 MESES",null,"A-02","765 SEPTIEMBRE 21/022",null,"1620 SEPTIEMBRE 23/022",null,"DIRECCION GENERAL","SEPTIEMBRE 22/2022","SEPTIEMBRE 22/2023",null,null,"LIQUIDADO"]
["19-6-0205-0-2022","SEPTIEMBRE 28/2022","PRESTACION DE SERVICIOS PROFESIONALES","ASOCIACION PROTECTORA DEL MEDIO AMBIENTE METRO-AMBIENTE","900749128-4","PRESTACION DE SERVICIOS PROFESIONALES CON PERSONA NATURAL O JURIDICA, CON EXPERIENCIA EN EL TEMA DE ORDENAMIENTO TERRITORIAL, PARA ACOMPAÑAR LOS PROCESOS DE REVISION EVALUACION Y SEGUIMIENTO A LOS COMPONENTES AMBIENTALES DE LOS POT'S, EOT'S Y PBOT'S Y ASUNTOS RELACIONADOS CON ORDENAMIENTO AMBIENTAL EN EL DEPARTAMENTO DEL CESAR",19788081.600000001,"-","3 MESES","-","3205 02\n3205 03","613 SEPTIEMBRE 02/2022","-","1700 SEPTIEMBRE 30/2022","-","ADRIANA MARGARITA GARCIA AREVALO-SUBDIRECCIÓN GENERAL DEL ÁREA DE PLANEACIÓN","OCTUBRE 05/2022","DICIEMBRE 29/2022","-","-","TERMINADO"]
["19-6-0206-0-2022","OCTUBRE 06/2022","SELECCIÓN MINIMA CUANTIA","BRC SYP S.A",null,"PRESTACION SE SERVICIO DE CALIFICACION DE LA CAPACIDAD DE PAGA Y RIESGOS FINANCIERO DE LA CORPORACION AUTONOMA REGIONAL DEL CESAR",26108600,null,"2 MESES",null,"3299 01","696 SEPTIEMBRE 15/2022",null,1838,null,"SUBDIRECTOR GENERAL ÁREA ADMINISTRATIVA Y FINANCIERA","OCTUBRE 19/2022","DICIEMBRE 18/2022",null,null,"LIQUIDADO"]
["19-6-0207-0-2022","SEPTIEMBRE 29/022","PRESTACION DE SERVICIOS PROFESIONALES","MARTHA LUCIA LIMA DAZA",49729287,"PRESTACION DE SERVICIOS DE UN PROFESIONAL DEL DERECHO PARA APOYO A LA GESTION EN EL MARCO DE LAS FUNCIONES DE CORPOCESAR",7422000,null,"3 MESES",null,"3203 01","764 SEPTIEMBRE 21/022",null,"1660 SEPTIEMBRE 28/022",null,"LIBARDO RAÚL LASCARRO-COORDINADOR GIT CAMBIO CLIMATICO, POMCAS Y ORDENAMIENTO TERRRITORIAL","SEPTIEMBRE 29/2022","DICIEMBRE 28/2022",null,null,"TERMINADO"]
["19-6-0208-0-2022","OCTUBRE 03/022","SELECCIÓN MINIMA CUANTIA","GOPHER GROUP S.A.S","900425485-8  ","ADQUISICIÓN DE UN SERVICIO DE ALOJAMIENTO WEB (HOSTING) POR DOS AÑOS PARA LA CONTINUIDAD DEL SERVICIO DE LA PÁGINA WEB EN INTERNET DE LA CORPORACIÓN AUTÓNOMA REGIONAL DEL CESAR - CORPOCESAR.",8990000,"-","1 MES","-",3299,"478 JULIO 07/022","-","1712 OCTUBRE 04/22","-","PROFSIONAL ESPECIALIZADO DE SISTEMAS Y TICS","NOVIEMBRE 16/022","NOVIEMBRE 30/022","-","-","TERMINADO"]
["19-6-0209-0-2022","OCTUBRE 31/2022","CONTRATO DE CONSULTORIA","UT POMCA RIO CESAR","901635326-1","FORMULACION DEL PLAN DE ORDENACION Y MANEJO DE LA CUENCA 2802 - 02 RIO MEDIO CESAR EN LA JURIDICCION DEC ORPOCESAR, DTO DEL CESAR",3977568499,null,"15 MESES",null,"6.01.01.03.003.001.OOAR.2101.1900.20223219000001","122 JUNIO 16/2022",null,1975,null,"LIBARDO LASCARRO DITTA","DICIEMBRE 12/2022","MARZO 12/2024",null,0.3,"EJECUCION"]
["19-6-0210-0-2022","OCTUBRE 05/022","CONTRATO DE CONSULTORIA","CARLOS ENRIQUE LOPEZ MEJIA",2768341,"DIAGNOSTICO SOBRE ECONOMIA CIRCULAR HACIA UNA PRODUCCION Y CONSUMO SOSTENIBLE PARA LA CONERVACION DE LOS RECURSOS NATURALES, TENDIENTE A UNA GESTION AMBIENTAL EN RESIDUOS PROVENIENTES DEL SECTOR TURISMO URBANO Y BIOCOMERCIO DE LA CIUDAD DE VALLEDUPAR-CESAR",179954000,"-","3 MESES","-","3201 03","370 MAYO 17/022",null,"1773 OCTUBRE 10/022",null,"COORDINACIÓN GIT PARA LA GESTIÓN DE PML, RESPEL Y COP","OCTUBRE 13/2022","DICIEMBRE 31/2022",null,0.3,"LIQUIDADO"]
["19-6-0211-0-2022","OCTUBRE 10/2021","PRESTACION DE SERVICIOS PROFESIONALES","LENIN ALBERTO NUÑEZ REALES",77097582,"PRESTACION DE SERVICIOS DE UN PROFESIONAL EN INGENIERIA DE SISTEMAS PARA LA ADMINISTRACION, SEGUIMIENTO A LA DISPONIBILIDAD Y SOPORTE AL PORTAL WEB INSTITUCIONAL ACORDES A REQUERIMIENTOS CORPORATIVOS Y OBLIGATORIOS DE LEY PARA DAR CUMPLIMIENTO ENTRE OTRAS, A LA POLITICA DE TRANSPARENCIA, ACCESO A LA INFORMACION PUBLICA, LUCHA CONTRA LA CORRUPCION Y BRINDAR EL APOYO A LAAS ACTIVIDADES GENERADAS DE PROYECTOS DE LA POLITICA DE GOBIERNO DIGITAL, POLITICA DE SEGURIDAD DIGITAL GESTION DEL CONOCIMIENTO Y LA INNOVACION",7952500,null,"2 MESES 15 DIAS",null,"3299 06","809 OCTUBRE 06/022",null,"1770 OCTUBRE 10/022",null,"ADRIANA MARGARITA GARCIA AREVALO-SUBDIRECCIÓN GENERAL DEL ÁREA DE PLANEACIÓN","OCTUBRE 10/2022","DICIEMBRE 28/2022",null,null,"TERMINADO"]
["19-6-0212-0-2022","OCTUBRE 11/2022","PRESTACION DE SERVICIOS PROFESIONALES","BLANCO & DEGIOVANNI ABOGADOS Y CONSULTORES SAS","901447396-9","PRESTACION DE SERVICIOS PROFESIONALES PARA LA DEFENSA JUDICIAL Y EXTRAJUDICIAL EN TODOS LOS PROCESOS LITIGIOSOS DE CARÁCTER ADMINISTRATIVO, LABORAL, CONSTITUCIONAL, AMBIENTAL, PENAL, CIVIL, AGRARIO, ARBITRAL Y POLICIVO, ENTRE OTROS, QUE SE ADELANTEN EN CONTRA O A FAVOR DE LA CORPORACIÓN, O EN LOS QUE LA ENTIDAD INTERVENGA",21000000,"-","2 MESES","-","3299 03","820 OCTUBRE 10/022","-","1774 OCTUBRE 11/022","-","EIVYS JOHANA VEGA RODRIGUEZ-JEFE OFICINA JURÍDICA","OCTUBRE 19/2022","DICIEMBRE 28/2022","-","-","TERMINADO"]
["19-6-0213-0-2022","OCTUBRE 13/2022","PRESTACION DE SERVICIOS PROFESIONALES","LILIANA MARIA VILLALOBOS PEREZ",52712820,"PRESTACION DE SERVICIOS PROFESIONALES DE UN ABOGADO ESPECIALISTA EN DERECHO AMBIENTAL PARA EL ACOMPAÑAMIENTO EN LA GESTION QUE EJECUTA Y DESARROLLA LA COORDINACIÓN DEL GIT PARA LA GESTION JURIDICO AMBIENTAL DE LA CORPORACION AUTONOMA REGIONAL DEL CESAR",10605000,null,"2 MESES 15 DIAS",null,"3299 03","819 OCTUBRE 10/022",null,"1806 OCTUBRE 13/022",null,"COORDINADOR DEL GIT PARA LA GESTIÓN JURÍDICO AMBIENTAL","OCTUBRE 21/2022","DICIEMBRE 29/2022",null,null,"TERMINADO"]
["19-6-0214-0-2022","OCTUBRE 13/2022","PRESTACION DE SERVICIOS PROFESIONALES","JUAN ANDRES GUTIERREZ ARIAS",1148196190,"PRESTACION DE SERVICIOS PROFESIONALES DE UN INGENIERO AMBIENTAL ESPECIALIZADO EN SISTEMAS DE INFORMACION GEOGRAFICA -SIG COMO APOYO INGENIERIL EN LAS ACTIVIDADES QUE EJECUTA Y DESARROLLA EL GRUPO INTERNO DE TRABAJO PARA LA GESTION DE RECURSOS NATURALES, ECOSISTEMAS ESTRATEGICOS Y AREAS PROTEGIDAS",8837500,"-","2 MESES 15 DIAS","-","3202 03","829 OCTUBRE 11/022","-","1805 OCTUBRE 13/022","-","COORDINACIÓN GIT PARA LA GESTIÓN DE RECURSOS NATURALES, ECOSISTEMAS ESTRATEGICOS Y ÁREAS PROTEGIDAS","OCTUBRE 19/2022","DICIEMBRE 29/2022","-","-","TERMINADO"]
["19-6-0215-0-2022","OCTUBRE 14/2022","PRESTACION DE SERVICIOS PROFESIONALES","JORGE ELIECER GUTIERREZ MOLINA",77176417,"PRESTACION DE SERVICIOS DE UN INGENIERO GEOGRAFO O GEOGRAFO ESPECIALIZADO O SU EQUIVALENTE, CON EXPERIENCIA EN EL TEMA DE ORDENAMIENTO AMBIENTAL TERRITORIAL Y SISTEMAS DE INFORMACION GEOGRAFICA PARA QUUE ACOMPAÑE A LA SUBDIRECCION GENERAL AREA DE PLANEACION, EN LOS PRROCESOS DE REVISION, EVALUACION Y SEGUIMIENTO A LOS COMPONENTES AMBIENTALES DE LOS POTS, EOTS Y PBOTS Y PBPT'S Y ASUNTOS RELACIONADOS CON ORDENAMIENTO AMBIENTAL EN EL DEPARTAMENTO DEL CESAR E INSTRUMENTOS DE PLANIFICACION AMBIENTAL",8837500,"-","2 MESES 15 DIAS","-","3205 01\n3205 02","830 OCTUBRE 11/022","-","1833 OCTUBRE 14/022","-","ADRIANA MARGARITA GARCIA AREVALO-SUBDIRECCIÓN GENERAL DEL ÁREA DE PLANEACIÓN","OCTUBRE 20/2022","DICIEMBRE 29/2022","-","-","TERMINADO"]
["19-6-0216-0-2022","OCTUBRE 19/2022","PRESTACION DE SERVICIOS PROFESIONALES","HANNY CAROLINA DUQUE VILLALOBOS",1065654771,"PRESTACION DE SERVICIOS PROFESIONALES DE UN INGENIERO DE MINAS PARA ACOMPAÑAR A LA OFICINA JURIDICA EN LAS ACTIVIDADES QUE EJECUTA Y DESARROLLA EN EL MARCO DE SUS ATRIBUCIONES LEGALES Y REGLAMENTARIAS",4948000,null,"2 MESES",null,"3299 03","840 OCTUBRE 12/022",null,"1842 OCTUBRE 19/022",null,"EIVYS JOHANA VEGA RODRIGUEZ-JEFE OFICINA JURÍDICA","OCTUBRE 24/2022","DICIEMBRE 23/2022",null,null,"TERMINADO"]
["19-6-0217-0-2022","OCTUBRE 25/2022","SELECCIÓN MINIMA CUANTIA","GRUPO EMPRESARIAL FO SAS","901166543-9","PRESTACION DE SERVICIO DE APOYO LOGISTICO PARA FORTALECIMIENTO DE LA GESTION DE LOS ESPACIO DE FORMACION ORIENTADOS AL ORDENAMIENTO TERRIRORIAL EN LOS MUNICIPIOS JURISDICCION DEL DEPARTAMENTO DEL CESAR",20063400,3498600,"2 MESES","-","3205 02\n3205 03","693 SEPTIEMBRE 15/2022","933 NOVIEMBRE 23/2022",2187,"2187 DICIEMBRE 02/2022","SUBDIRECTORA GENERAL AREA DE PLANEACION ","OCTUBRE 31/2022","DICIEMBRE 30/2022","-",8025360,"LIQUIDADO"]
["19-6-0218-0-2022","OCTUBRE 24/2022","PRESTACION DE SERVICIOS PROFESIONALES","GERARDO ANTONIO BUENA VIDAL",77095578,"PRESTACION DE SERVICIOS PROFESIONALES DE UN ABOGADO COMO APOYO JURIDICO EN LAS GESTIONES QUE EJECUTA Y DESARROLLA EL GRUPO INTERNO DE TRABAJO PARA LA GESTION DE RECURSOS NATURALES, ECOSISTEMAS ESTRATEGICOS Y AREAS PROTEGIDAS",4948000,null,"2 MESES",null,"3202 04","839 OCTUBRE 12/022",null,"1854 OCTUBRE 24/022",null,"COORDINACIÓN DELL GRUPO INTERNO DE TRABAJO PARA LA GESTIÓN DEL SEGUIMIENTO AMBIENTAL","OCTUBRE 26/2022","DICIEMBRE 25/2022",null,null,"TERMINADO"]
["19-6-0219-0-2022","OCTUBRE 25/2022","PRESTACION DE SERVICIOS PROFESIONALES","JOSE JORGE GONZALEZ",1121042348,"PRESTACION DE SERVICIO PROFESIONALES DE UN ABOGADO COMO APOYO JURIDICO EN LA GESTIONES QUE EJECUTA Y DESARROLLE EL GRUPO INTERNO DE TRABAJO PARA LA GESTION DE RECURSOS NATURALES ECOSISTEMAS ESTRATEGICOS Y AREAS PROTEGIDAS",4948000,null,"2 MESES",null,3202,"853 OCTUBRE 19/2022",null,1862,null,"COORDINADOR GIT PARA LA GESTION DE RECURSOS NATURALES, ECOSISTEMAS ESTRATEGICOS Y AREAS PROTEGIDAS","OCTUBRE 27/2022","DICIEMBRE 26/2022",null,null,"TERMINADO"]
["19-6-0220-0-2022","OCTUBRE 31/2022","PRESTACION DE SERVICIOS PROFESIONALES","ANDRES JAVIER GRANADOS",79783653,"MANTENIMIENTO Y REPARACIONES LOCATIVAS DEL EDIFICIO BIOCLIMATICO Y LA SECCIONAL AGUACHICA DE CORPOCESAR",255835993,null,"2 MESES",null,"3299 02\n3299 02","535 AGOSTO 01/2022",null,1974,null,"SUBDIRECTOR GENERAL ÁREA ADMINISTRATIVA Y FINANCIERA","NOVIEMBRE 11/2022","DICIEMBRE 30/2022",null,null,"EJECUCION"]
["19-6-0221-0-2022","OCTUBRE 28/2022","PRESTACION DE SERVICIOS PROFESIONALES","ARMANDO VILLA MARENCO","7,573,283","PRESTACION DE SERVICIO DE UN PROFESIONAL EN INGNIERIA DE SISTEMA PARA EL SOPORTE TECNICO E INFORMATICO DE PRIMERA Y SEGUNDO NIVEL EN SITIO A LOS FUNCIONARIOS DE LA CORPOARACION AUTONOMA REGIONAL DEL CESAR Y APOYO A LAS ACTIVIDADES GENERADAS SOBRE LA IMPLEMENTACION DE LA POLITICA DE GOBIERNO DIGITAL, POLITICA DE SEGURIDAD DIGITAL , GESTION DEL CONOCIMIENTO Y LA INNOVACION.",4948000,null,"2 MESES",null,3299,"861 OCTUBRE 25/2022",null,"1917 OCTUBRE 28/2022",null,"SUBDIRECTORA GENERAL AREA DE PLANEACION ","OCTUBRE 31/2022","DICIEMBRE 29/2022",null,null,"TERMINADO"]
["19-6-0222-0-2022","NOVIEMBRE 03/2022","CONTRATO DE OBRA","UNION TEMPORAL REVERDECER BESOTES","901649748-5","REHABILITACION ECOLOGICA PARA LA CONSERVACION DE AREAS DE IMPORTANCIA AMBIENTAL EN LA IMPLEMENTACION DEL PM DEL PARQUE NATURAL REGIONAL \"PNR\" LOS BESOTES, UBICADO EN JURISDICCION DE LOS CORREGIMIENTOS DE LOS CORAZONES Y RIO SECO, MUNICIPIO DE VALLEDUPAR - CESAR, DE ACUERDO CON LAS ESPECIFICACIONES Y ALCANCES PLANTEADOS POR CORPOCESAR.",131974995,null,"3 MESES",null,3202,"695 SEPTIEMBRE 15/022",null,"1920 NOVIEMBRE 03/2022",null,"WILSON ROMAN MARQUEZ DAZA","NOVIEMBRE 09/2022","FEBRERO 08/2023",null,null,"EJECUCION"]
["19-6-0223-0-2022","NOVIEMBRE 08/2022","PRESTACION DE SERVICIO","APREHSI","900033859-6","PRESTACION DE SERVICIO DE SALUD PARA LA PRACTICA DE LOS EXAMENES CLINICOS, PARACLINICOS, OCUPACIONALES, ACTUALIZACION DE HISTORIA CLINICA OCUPACIONAL Y PROFESIOGRAMAS POR CARGO DE LOS EMPLEADOS DE CORPOCESAR",13632850,null,"2 MESES",null,"A-02-02-02-009-006","846 OCTUBRE 13/2022",null,"1979 NOVIEMBRE 09/2022",null,"COORDINACIÓN GIT PARA LA GESTIÓN DEL TALENTO HUMANO","NOVIEMBRE 11/2022","DICIEMBRE 29/2022",null,null,"LIQUIDADO"]
["19-6-0224-0-2022","NOVIEMBRE 10/2022","PRESTACION DE SERVICIO","FUNDACION IDEAS PARA SER FELIZ","900737597-3","PRESTACION DE SERVICIO PARA LA LOGISTICA DE LA CELEBRACIN DEL DIA DEL NIÑO Y EL DIA DE LA FAMILIA ENMARCADO EN EL PLAN DE BIENESTAR SOCIAL, ESTIMULO E INCENTIVOS DE LOS EMPLEADOS DE CORPOCESAR",22931200,null,"1 MES",null,"A-02-02-02-009-006","875 OCTUBRE 28/2022",null,"1981 NOVIEMBRE 10/2022",null,"COORDINACIÓN GIT PARA LA GESTIÓN DEL TALENTO HUMANO","NOVIEMBRE 11/2022","DICIEMBRE 10/2022",null,null,"LIQUIDADO"]
["19-6-0225-0-2022","NOVIEMBRE 16/2022","PRESTACION DE SERVICIO","WILLIAM GUILLERMO CURVELO","7,571,902","PRESTACION DE SERVICIO DE UN PROFESIONAL EN ADMINISTRACION DE EMPRESAS, O SU EQUIVALENCIA SIN EXPERIENCIA PARA REALIZAR APOYO A LA SUBDIRECCION GENERAL AREA ADMINISTRATIVA Y FINANCIERA ESPECIFICAMENTE EN LA TESORERIA PARA LOGRAR CUMPLIR CON ACTIVIDADES METAS DE DICHA AREA DE LA CORPORACION",3298666,null,"1 MES Y 10 DIAS",null,"3299 01","901 NOVIEMBRE 09/2022",null,"2060 NOVIEMBRE 16/2022",null,"TESORERA","NOVIEMBRE 18/2022","DICIEMBRE 28/2022",null,null,"LIQUIDADO"]
["19-6-0226-0-2022","NOVIEMBRE 16/2022","PRESTACION DE SERVICIO","SUSANA MARIA DIAZ MARZAL",1065602406,"PRESTACION DE SERVICIO DE UN ABOGADO COMO APOYO JURIDICO EN LA GESTIONES QUE EJECUTE Y DESARROLLE EL GRUPO INTERNO DE TRABAJO PARA LA GESTION DEL SEGUIMIENTO APROVECHAMIENTO DEL RECURSO HIDRICOS",2474000,null,"1 MES",null,"3203 01","904 NOVIEMBRE 10/2022",null,2061,null,"CORDINADOR DEL GIT PARA LA GESTION DEL SEGUIMIENTO PARA EL APROVECHAMIENTO DEL RECURSO HIDRICO","NOVIEMBRE 23/2022","DICIEMBRE 22/2022",null,null,"TERMINADO"]
["19-6-0227-0-2022","NOVIEMBRE 18/2022","PRESTACION DE SERVICIO","SEGURIDAD INDUSTRIAL MERCADEO Y CONTABILIDAD S.A.A","900348531-9","PRESTACION DE SERVICIO PARA LA ADECUACION Y EL SOPORTE TECNICO Y ELECTRONICO E INFORMATICO DE PRIMER Y SEGUNDO NIVEL DEL CIRCUITO CERRADO DE TELEVISION (CCTV), LOS CENTROS DE CABLEADOS Y GABINETES DE COMUNICACIONES Y DEL SISTEMA DE CONTROL DE ACCESO DE CORPOCESAR",69000000,"-","2 MESE","-","3299 02\n3299 06","476 JULIO 07/2022","-","2072 NOVIEMBRE 18/2022","-","PROFESIONAL ESPECIALIZADO DE SISTEMAS Y TICS","NOVIEMBRE 25/2022","DICIEMBRE 31/2022","-","-","TERMINADO"]
["19-6-0228-0-2022","NOVIEMBRE 23/2022","PRESTACION DE SERVICIO","EBED SHADAI CALDERON ROSALES",1003242540,"PRESTACION DE SERVICIO DE UN TECNICO AMBIENTAL COMO APOYO EN LA GESTIONES QUE EJECUTA Y DESARROLLA EL GRUPO INTERNO DE TRABAJO PARA LA GESTION DE RECURSOS NATURALES, COSISTEMAS ESTRATEGICOS, Y AREAS DESPROTEGIDAS",1767000,"-","1 MES",null,"3202 01","905 NOVIEMBRE 11/2022",null,"2112 NOVIEMBRE 23/2022",null,"COORDINADOR GIT PARA LA GESTION DE RECURSOS NATURALES, ECOSISTEMA ESTRATEGICOS Y AREASPROTEGIDAS","NOVIEMBRE 29/2022","DICIEMBRE 28/2022",null,null,"TERMINADO"]
["19-6-0229-0-2022","NOVIEMBRE 24/2022","CONCURSO DE MERITO ABIERTO","C.E PROJECT MANAGEMENT S.A.S","901245940-9","FOMENTO Y PROMOCION DE PROYECTODE RESILIENCIA, ECONOMIA CIRCULAR, CAMBIO CLIMATICO MEDIANTE EL DESARROLLO DE FERIA DE NEGOCIOS VERDES Y ACCIONES TENDIENTES AL FORTALECIMIENTO A LA OFERTA INSTITUCIONAL EN PRODUCTIVIDAD SOSTENIBLE",27100000,"-","1 MES",null,"3201 02\n3201 03","856 OCTUBRE 20/2022",null,2124,null,"CORDINADOR DEL GIT PARA LA GESTION DEL PML, RESPEL Y COP","DICIEMBRE 05/2022","DICIEMBRE 30/2022",null,10840000,"TERMINADO"]
["19-6-0230-0-2022","DICIEMBRE 02/2022","CONTRATO DE CONSULTORIA","AMAURY DE JESUS ARROYO OVIEDO",72141031,"ACTUALIZAR EL MAPA DE RIESGO Y EL PLAN DE PREVENCION, MITIGACION Y ATENCION DE CONTINGENCIAS POR LA OCURRENCIA DE INCENDIOS DE LA COBERTURA VEGETAL EN L AJURISDICCION DE CORPOCESAR",190816500,"-","4 MESES","-","3206 03","896 NOVIEMBRE 09/2022","-","2239 DICIEMBRE 12/2022","-","ADRIANA MARGARITA GARCIA AREVALO-SUBDIRECCIÓN GENERAL DEL ÁREA DE PLANEACIÓN","DICIEMBRE 13/2022","ABRIL 12/2023",null,57244950,"EJECUCION"]
["19-6-0231-0-2022","DICIEMBRE 21/2022","CONTRATO DE OBRA","U.T. AGROAMBIENTALES DEL CESAR 2022","901656397-2","REALIZACION DE ACCIONES PARA LA IMPLEMENTACION DEL PLAN DE ACCION REGIONAL DE LUCHA CONTRA LA DESERTIFICACION Y LA SEQUIA, Y EL MANEJO DEL BOSQUE SECO TROPICAL EN LAS CUENCAS DE LOS RIOS GARUPAL Y DILUVIO, MUNICIPIOS DE VALLEDUPAR Y EL COPEY CESAR, DE ACUERDO A LOS ALCANCES Y ESPECIFICACIONES TECNICAS CONTEMPLADAS POR CORPOCESAR",521393510,"-","6 MESES","-","3201 05\n3202 05\n3202 05","803 OCTUBRE 04/2022",null,"2316 DICIEMBRE 29/2022","-",null,null,"JUNIO 28/2023"]
["19-6-0232-0-2022","NOVIEMBRE 06/2022","PRESTACION DE SERVICIOS PROFESIONALES Y DE APOYO A LA GESTION","GOBIERNO VIGENTE","900514620-8","PRESTACION DE SERVICIOS PROFESIONALES PARA APOYAR LA ELABORACION, PRESENTACION Y APROBACION DE LOS INSTRUMENTOS DE GESTION FINANCIERA Y PRESUPUESTAL PARA LA VIGENCIA FISCAL 2023",30000000,"-","27 DIAS","-","3299 01","967 NOVIEMBRE 30/2022","-","2206 DICIEMBRE 06/2022","-","ADRIANA MARGARITA GARCIA AREVALO-SUBDIRECCIÓN GENERAL DEL ÁREA DE PLANEACIÓN","DICIEMBRE 12/2022","DICIEMBRE 29/2022","-","-"]
["19-6-0233-0-2022","DICIEMBRE 06/2022","PRESTACION DE SERVICIOS PROFESIONALES Y DE APOYO A LA GESTION","ERWIN JOSUE SANCHEZ DAZA",1122408975,"PRESTACIÓN DE SERVICIOS DE UN PROFESIONAL, ESPECIALIZADO EN SALUD OCUPACIONAL, CON RESOLUCIÓN VIGENTE, PARA APOYAR A LA SUBDIRECCIÓN GENERAL ÁREA ADMINISTRATIVA Y FINANCIERA EN LAS ACTIVIDADES DEL SISTEMA DE GESTIÓN DE SEGURIDAD Y SALUD EN EL TRABAJO EN LA CORPORACIÓN AUTÓNOMA REGIONAL DEL CESAR “CORPOCESAR”",2945833,"-","25 DIAS","-","3299 02","966 NOVIEMBRE 30/2022","-","2205 DICIEMBRE 06/2022","-","COORDINACIÓN GIT PARA LA GESTIÓN DEL TALENTO HUMANO","DICIEMBRE 09/2022","DICIEMBRE 30/2022","-","-","TERMINADO"]
["19-6-0234-0-2022","DICIEMBRE 10/2022","SUMINISTROS","GLOBAL SOLUTIONS COMPANY COLOMBIA SAS","900864956-8","ADQUISICION DE EQUIPOS DE LABORATORIO PARA LA EVALUACION, CONTROL Y SEGUIMIENTO DEL DESARROLLO DE PROYECTOS DE EXPLORACION Y PRODUCCION DE HIDROCARBUROS Y MONITOREO DE LA CALIDAD DEL AGUA SUPERFICIAL EN LA JURISDICCION DE LA CORPORACION AUTONOMA REGIONAL DEL CESAR \"CORPOCESAR\"",83036177,"-","1 MES","3 MESES","3299 01\n3299 03","823 OCTUBRE 10/2022","-","2242 DICIEMBRE 13/2022","-","COORDINADOR DEL GIT DEL LABORATORIO AMBIENTAL","DICIEMBRE 13/2022","DICIEMBRE 30/2022","MARZO 30/2023","-","EJECUCION"]
["19-6-0235-0-2022","DICIEMBRE 16/2022","PRESTACION DE SERVICIOS","JP SOLUCIONES COLOMBIA SAS","901247893-1","EJECUCION DE LAS ACTIVIDADES ENMARCADAS EN EL PLAN DE BIENESTAR SOCIAL, ESTIMULOS E INCENTIVOS DE LA CORPORACION AUTONOMA REGIONAL DEL CESAR \"CORPOCESAR\" VIGENCIA 2022",33774800,"-","1 MES","-","A-02-02-02-009-006","897 NOVIEMBRE 09/2022","-","2266 DICIEMBRE 16/2022","-","COORDINACIÓN GIT PARA LA GESTIÓN DEL TALENTO HUMANO","DICIEMBRE 16/2022","DICIEMBRE 29/2022","-","-","TERMINADO"]
["19-6-0236-0-2022","DICIEMBRE 13/2022","SEGUROS","SEGUROS GENERALES SURAMERICANA SA","890903407-9","ADQUIRIR PÓLIZAS DE SEGUROS DE BIENES E INTERESES PATRIMONIALES DE LA CORPORACIÓN AUTÓNOMA REGIONAL DEL CESAR – CORPOCESAR.",94997601,"-","1 MES","-","A-02-02-02-007-001","866 OCTUBRE 25/2022","-","2241 DICIEMBRE 13/2022","-","SUBDIRECTOR GENERAL ÁREA ADMINISTRATIVA Y FINANCIERA","DICIEMBRE 14/2022","DICIEMBRE 31/2022","-","-","TERMINADO"]
["19-6-0237-0-2022","DICIEMBRE 22/2022","CONTRATO DE CONSULTORIA","UNION TEMPORAL ASOPROASA","901665139-7","REALIZAR LA FORMULACION Y ACTUALIZACION DE PLANES Y MEDIDAS DE MANEJO AMBIENTAL DE HUMEDALES EN JURISDICCION DEL MUNICIPIO DE VALLEDUPAR-CESAR",198782113,null,"3 MESES","-","3202 05\n3202 05","881 OCTUBRE 28/2022","-","2290 DICIEMBRE 22/2022","-","ADRIAN ALBERTO IBARRA USTARIZ","DICIEMBRE 23/2022","MARZO 22/2023","-",0.3,"EJECUCION"]
["19-6-0238-0-2022","DICIEMBRE 21/2022","COMPRAVENTA","DISTRIBUIDORA DE EQUIPOS DEL CARIBE SAS","900734265-1","ADQUISICION DE BOTAS TIPO INGENIERO, PANTANERAS Y DE SEGURIDAD, COMO PARTE DE LA DOTACION Y ELEMENTOS DE PROTECCION PERSONAL, ESTABLECIDOS EN LA LEY Y EN LA RESOLUCION 0664 DE 2016 EMITIDA POR CORPOCESAR MEDIANTE LA CUAL SE ADOPTAN LOS ACUERDOS SINDICALES - PARA LOS SERVIDORES DE LA CORPORACION AUTONOMA REGIONAL DEL CESAR",9193940,"-","10 DIAS","-","A-02-02-01-002-008","986 DICIEMBRE 09/2022","-","2291 DICIEMBRE 23/2022","-","COORDINACIÓN GIT PARA LA GESTIÓN DEL TALENTO HUMANO","DICIEMBRE 23/2022","DICIEMBRE 31/2022","-","-"]
["19-6-0239-0-2022","DICIEMBRE 22/2022","SEGUROS","SEGUROS DE VIDA SURAMERICANA SA","890903790-5","ADQUIRIR PÓLIZAS DE SEGUROS VIDA GRUPO PARA LOS SERVIDORES PÚBLICOS DE LA CORPORACIÓN AUTÓNOMA REGIONAL DEL CESAR – CORPOCESAR.",89944320,"-","1 MES","-","A-02-02-02-007-001","859 OCTUBRE 25/2022","-","2288 DICIEMBRE 22/2022","-","SUBDIRECTOR GENERAL ÁREA ADMINISTRATIVA Y FINANCIERA","DICIEMBRE 23/2022","DICIEMBRE 29/2022","-","-","TERMINADO"]
["19-6-0240-0-2022","DICIEMBRE 27/2022","CONTRATO DE CONSULTORIA","U.T. EVALUACION REGIONAL DEL AGUA","901665800-8","ELABORAR LA EVALUACION REGIONAL DEL AGUA CONFORME A LOS LINEAMIENTOS TECNICOS EXPEDIDOS POR EL INSTITUTO DE HIDROLOGIA, METEOROLOGIA Y ESTUDIOS AMBIENTALES (IDEAM) Y REALIZAR ANALISIS Y ESTUDIOS ADICIONALES, PARA FORTALECER EL CONOCIMIENTO, ADMINISTRACION Y USO SOSTENIBLE DEL RECURSO HIDRICO EN LA JURISDICCION DE CORPOCESAR",1054288000,"-","8 MESES","-","3203 01\n3203 01\n3204 01\n3206 03","824 OCTUBRE 10/2022","-","2312 DICIEMBRE 29/2022","-"]
["19-6-0241-0-2022","DICIEMBRE 27/2022","CONTRATO DE OBRA","CAMILO ANDRES MENDOZA NUÑEZ",77195862,"DESARROLLO DE ACCIONES PARA LA CONSERVACION Y RESTAURACION ECOLOGICA DE AREAS DE IMPORTANCIA ESTRATEGICA EN LA CUENCA HIDROGRAFICA DEL RIO CALENTURITAS, EN EL DEPARTAMENTO DEL CESAR",458347844.63999999,"-","6 MESES","-","3202 01\n3202 02\n3202 03","799 SEPTIEMBRE 30/2022","-","2303 DICIEMBRE 27/2022","-","ADRIANA MARGARITA GARCIA AREVALO-SUBDIRECCIÓN GENERAL DEL ÁREA DE PLANEACIÓN","DICIEMBRE 28/2022","JUNIO 30/2023","-","-","EJECUCION"]
["19-6-0242-0-2022","DICIEMBRE 27/2022","CONTRATO DE INTERVENTORIA","JUAN CARLOS SARRIA AGUILERA","12647743-5","INTERVENTORIA TECNICA, ADMINISTRATIVA, FINANCIERA Y AMBIENTAL PARA EL CONTRATO CUYO OBJETO ES EL DESARROLLO DE ACCIONES PARA LA CONSERVACION Y RESTAURACION ECOLOGICA DE AREAS DE IMPORTANCIA ESTRATEGICA EN LA CUENCA HIDROGRAFICA DEL RIO CALENTURITAS, EN EL DEPARTAMENTO DEL CESAR",41492920,"-","6 MESES","-","3202 01\n3202 02\n3202 03","797 SEPTIEMBRE 30/2022","-","2304 DICIEMBRE 27/2022","-","ADRIAN ALBERTO IBARRA USTARIZ","DICIEMBRE 28/2022","JUNIO 30/2023","-","-","EJECUCION"]
["19-6-0243-0-2022","DICIEMBRE 27/2022","CONTRATO DE CONSULTORIA","FUNDACION BIOTECNOLOGICA AMBIENTAL Y TECNICA DEL CESAR (BIOAMTEC)","900368896-7","APOYO A IMPLEMENTACION DE LOS PSMV E IMPLEMENTACION DE ACCIONES PARA EL USO EFICIENTE Y DESCONTAMINACION DEL RECURSO HIDRICO A TRAVES DEL MUESTREO Y CARACTERIZACIONES PRIORIZADAS DE AGUAS RESIDUALES DOMESTICAS - ARD Y AGUAS RESIDUALES NO DOMESTICAS - ARnD. EN EL DEPARTAMENTO DEL CESAR",379910567,"-","5 MESES","-","3203 01","938 NOVIEMBRE 23/2022","-","2305 DICIEMBRE 27/2022","-","COORDINACIÓN DEL GIT PARA LA GESTIÓN DEL SANEAMIENTO BÁSICO Y CONTROL DE VERTIMIENTOS","DICIEMBRE 28/2022","MAYO 27/2023","-",0.4,"EJECUCION"]
["19-6-0244-0-2022","DICIEMBRE 27/2022","MINIMA CUANTIA","RAFAEL FRANCISCO MENDOZA MARTINEZ",12646002,"SUMINISTRO, INSTALACION Y PUESTA EN FUNCIONAMIENTO DE CAMARAS DE SEGURIDAD IP PARA AMPLIAR LA COBERTURA DE MONITOREO DEL EDIFICIO DE ARQUITECTURA BIOCLIMATICA DE CORPOCESAR EN VALLEDUPAR",28000000,"-","5 DIAS","-","3299 02\n3299 06","989 DICIEMBRE 12/2022","-","2302 DICIEMBRE 27/2022","-","MAURICIO GARCES ORDOÑEZ","DICIEMBRE 27/2022","DICIEMBRE 30/2022","-","-","LIQUIDADO"]
["19-6-0245-0-2022","DICIEMBRE 30/2022","CONTRATO DE OBRA","CONSORCIO GRAN TIERRA NUEVA","830506322-0","IMPLEMENTACION DE ACCIONES DE RESTAURACION PASIVA EN AREAS DE INTERES ESTRATEGICO EN EL MUNICIPIO DE SAN MARTIN, DEPARTAMENTO DEL CESAR",157723963,"-","6 MESES","-","3202 05","798 SEPTIEMBRE 30/2022","-",null,"-","ADRIAN ALBERTO IBARRA USTARIZ",null,null,null,0.4]
["19-6-0246-0-2022","DICIEMBRE 27/2022","CONTRATO DE INTERVENTORIA","INVERSIONES DISEÑO E INGENIERIA - INDISING SAS","900543271-4","INTERVENTORIA TECNICA, ADMINISTRATIVA, FINANCIERA Y AMBIENTAL PARA EL CONTRATO CUYO OBJETO ES LA REALIZACION DE ACCIONES PARA LA IMPLEMENTACION DEL PLAN DE ACCION REGIONAL DE LUCHA CONTRA LA DESERTIFICACION Y LA SEQUIA, Y EL MANEJO DEL BOSQUE SECO TROPICAL EN LAS CUENCAS DE LOS RIOS GARUPAL Y DILUVIO, MUNICIPIOS DE VALLEDUPAR Y EL COPEY CESAR, DE ACUERDO A LOS ALCANCES Y ESPECIFICACIONES TECNICAS CONTEMPLADAS POR CORPOCESAR",36628200,"-","6 MESES","-","3202 05\n3202 05","882 OCTUBRE 28/2022","-","2309 DICIEMBRE 28/2022","-"]
["19-6-0247-0-2022","DICIEMBRE 29/2022","CONTRATO DE OBRA","ASOCIACION DE MUNICIPIOS DE LA ZONA DE REGIMEN ESPECIAL ADUANERA DE LA GUAJIRA - AMZOREAGUA","839000724-8","IMPLEMENTACION DE UN SISTEMA DE ABASTECIMIENTO DE AGUA COMO ESTRATEGIA DE MANEJO AMBIENTAL EN LA COMUNIDAD DEL RESGUARDO INDIGENA ITTI TAKKE DE LA ETNIA ETTE ENNAKA EN EL MUNICIPIO DE EL COPEY INCORPORANDO LA COSMOVISION DE LOS PUEBLOS INDIGENAS Y EL ENFOQUE DIFERENCIAL",164164496,"-","4 MESES","-","3299 04","822 OCTUBRE 10/2022","-","2317 SEPTIEMBRE 29/2022","-","JORGE ELIECER CARPIO SANCHEZ","DICIEMBRE 30/2023",null,null,0.5,"EN EJECUCION"]
["19-6-0248-0-2022","DICIEMBRE 28/2022","CONTRATO DE INTERVENTORIA","CORPORACION PARA APOYAR EL SECTOR ECOTURISTICO Y MINERO AMBIENTAL DE LA GUAJIRA-ECOTMAG","900074248-1","INTERVENTORIA TECNICA, ADMINISTRATIVA, FINANCIERA Y AMBIENTAL PARA EL CONTRATO CUYO OBJETO ES: \"FORMULACION DEL PLAN DE ORDENACION Y MANEJO DE LA CUENCA 2802-02 RIO MEDIO CESAR EN LA JURISDICCION DE CORPOCESAR, DEPARTAMENTO DEL CESAR",333998230,"-","15 MESES","-","6.01.01.03.003.001.OOAR.2101.1900.20223219000001","739 SEPTIEMBRE 20/2022","-","2311 DICIEMBRE 29/2022","-","ADRIAN ALBERTO IBARRA USTARIZ"]
["19-6-0249-0-2022","DICIEMBRE 28/2022","CONTRATO DE INTERVENTORIA","CONSORCIO INTERCOMPLEJO CENAGOSO","901667314-9","INTERVENTORIA TECNICA, ADMINISTRATIVA, FINANCIERA Y AMBIENTAL PARA EL CONTRATO CUYO OBJETO ES \"IMPLEMENTACION DE ESTRATEGIAS PARA LA CONSERVACION, USO SOSTENIBLE DE LA BIODIVERSIDAD Y RESTAURACION DE LOS SERVICIOS ECOSISTEMICOS DEL COMPLEJO CENAGOSO DE ZAPATOSA, EN LOS MUNICIPIOS DE TAMALAMEQUE, CURUMANI Y CHIRIGUANA DEPARTAMENTO DEL CESAR\"",579063482,"-","11 MESES","-","3202 11","947 NOVIEMBRE 25/2022","-","2313 DICIEMBRE 29/2022","-",null,null,"NOVIEMBRE 29/2023",null,null,"EN EJECUCION"]
["19-6-0250-0-2022","DICIEMBRE 28/2022","CONTRATO DE OBRA","CONSORCIO SERVCIOS ECOSISTEMICOS","901667500-2","IMPLEMENTACION DE ESTRATEGIAS PARA LA CONSERVACION, USO SOSTENIBLE DE LA BIODIVERSIDAD Y RESTAURACION DE LOS SERVICIOS ECOSISTEMICOS DEL COMPLEJO CENAGOSO DE ZAPATOSA, EN LOS MUNICIPIOS DE TAMALAMEQUE, CURUMANI Y CHIRIGUANA DEPARTAMENTO DEL CESAR",10467047196,"-","11 MESES","-","3202 11","948 NOVIEMBRE 25/2022","-","2314 DICIEMBRE 29/2022","-","ADRIAN ALBERTO IBARRA USTARIZ",null,"NOVIEMBRE 29/2023",null,0.5,"EN EJECUCION"]

{"sheet":"CONVENIOS","index":2,"n_rows":7,"n_cols":20,"rows_kept":7,"cut":false,"hidden":false,"merged":[]}
["NUMERO","FECHA","NATURALEZA JURIDICA","CONTRATISTA","IDENTIFICACIÓN","OBJETO","VALOR APORTES CORPOCESAR","VALOR ADICION","PLAZO","PLAZO ADICION","RUBRO","N° Y FECHA CDP","N° Y FECHA CDP ADICION","No. REGISTRO","N° REGISTRO ADICION","SUPERVISOR","FECHA INICIO/ TERMINACION","FECHA INICIO/ TERMINACION - ADICION","ANTICIPO","ESTADO CONTRATO"]
["19-7-0001-0-2022","ENERO 26/022","CONVENIO DE ASOCIACION","ASOCIACION AGRO-AMBIENTAL DE PERIJA","900.002.603-5","AUNAR ESFUERZOS TECNICOS, ADMINISTRATIVOS Y FINANCIEROS PARA EL FORTALECIMIENTO DE  LOS NEGOCIOS VERDES Y SOSTENIBLES A TRAVES DE LA IMPLEMENTACION DE UNA ESTRATEGIA DE BIOMERCADO PARA IMPULSAR LA OFERTA Y DEMANDA DE BIENES Y SERVICIOS SOSTENIBLES EN PRO DE LA CONSERVACION DE LOS RECURSOS NATURALES Y RENOVABLES DEL DEPARTAMENTO DEL CESAR",200000000,null,"4 MESES",null,null,null,null,null,null,"COORDINADOR DEL GIT PARA LA GESTION DE PML, RESPEL Y COP","FEBRERO 08/022 JULIO 07/022",null,null,"TERMINADO"]
["19-7-0002-0-2022","FEBRERO 07/022","CONVENIO DE ASOCIACION","FUNDACION SOCIAL PARA EL DESARROLLO HUMANO MUNDIAL","900137457-","AUNAR ESFUERZOS TECNICOS, ADMINISTRATIVOS Y FINANCIEROS PARA LA PROMOCION DE ESTRATEGIAS DE GESTION AMBIENTAL URBANA Y PARTICIPACION CIUDADANA AMBIENTAL DE APOYO A LA IMPLEMENTACION DE POLITICAS LOCALES DE RESILIENCIA Y SOSTENIBILIDAD AMBIENTAL QUE FORTALECEN EL DESEMPEÑO AMBIENTAL EN EL AREA URBANA DEL MUNICIPIO DE AGUSTIN CODAZZI, CESAR",60000000,null,"4 MESES",null,"3201-3208","115 ENERO 20/2022",null,"101 ENERO 25/022","101 ENERO 25/022","ADRIANA MARGARITA GARCIA AREVALO","FEBRERO 07/022 JUNIO 07/022",null,null,"TERMINADO"]
["19-7-0003-0-2022","FEBRERO 07/022","CONVENIO INTERADMINISTRATIVO","ALIANZA COLOMBIANA DE INSTITUCIONES PUBLICAS DE EDUCACION SUPERIOR RED SUMMA","901417108-6","AUNAR ESFUERZO TECNICOS, ADMINISTRATIVOS Y FINANCIEROS PARA LA IMPLEMENTACION DE UNA ESTRATEGIA PEDAGOGICA DE CONCIENCIA AMBIENTAL FORTALECIMIENTO A LA GESTION INTEGRAL DEL RIESGO AMBIENTAL Y CLIMATICO CON APOYO A LOS PORH EN AREAS RURALES DE LOS MUNICIPIOS DE LA JAGUA DE IBIRICO, SAN DIEGO, LA PAZ Y EL PASO-CESAR",185320000,null,"4 MESES",null,3203,"152 ENERO 24/2022",null,"104 ENERO 26/2022",null,"COORDINADOR DEL GIT CAMBIO CLIMATICO, POMCAS Y ORDENAMIENTO TERRITORIAL","MARZO 01/022 JULIO 01/022",null,null,"TERMINADO"]
["19-7-0004-0-2022","JULIO 12/022","CONVENIO INTERADMINISTRATIVO","SERVICIOS POSTALES NACIONALES S.A.S","900062917-9","SERVICIOS POSTALES NACIONALES S.A.S SE COMPROMETE CON EL CLIENTE A PRESTAR LOS SERVICIOS DE RECOLECCION, CURSO Y ENTREGA DE CORRESPONDENCIA Y DEMAS ENVIOS POSTALES QUE REQUIERA; EN LAS MODALIDADES DE CORREO CERTIFICADO (URBANO, NACIONAL E INTERNACIONAL), POSTEXPRESS (URBANO Y NACIONAL), MASIVO (URBANO Y NACIONAL), ENCOMIENDA (URBANO Y NACIONAL); PAQUETERIA (URBANO Y NACIONAL) Y CUALQUIER SERVICIO QUE SE ENCUENTRE VIGENTE EN EL PORTAFOLIO DE SERVICIOS Y DOS AUXILIARES PARA LA RECEPCION DE LA DOCUMENTACION DE LA CORPORACION Y DEMAS QUE SE REQUIERAN Y HAGAN PARTE DE LA PROPUESTA DE PRODUCTOS PRESENTADOS",122713740,null,"6 MESES",null,3299,"458 JUNIO 24/2022",null,"1033 JULIO 11/2022",null,"SECRETARIO GENERAL","JULIO 13/022 DICIEMBRE 31/022",null,null,"VIGENTE"]
["19-7-0005-0-2023","JULIO 29/022","CONVENIO DE ASOCIACION","FUNDACION ORNITOLOGICA DEL ATLANTICO \"ORNIAT\"","802007742-8","AUNAR ESFUERZOS TECNICOS, ADMINISTRATIVOS Y ECONOMICOS PARA LA ADMINISTRACION Y OPERACIÓN DEL CENTRO DE ATENCION Y VALORACION DE FAUNA Y FLORA SILVESTRE (CAVFFS) DOTANDO Y FORTALECIENDO SU CAPACIDAD TECNICA Y OPERATIVA, EJECUCION DE ESTRATEGIAS EN TORNO A LA CONSERVACION DE LA BIODIVERSIDAD, Y REALIZACION DE ACCIONES PARA EL CONTROL Y VIGILANCIA DEL TRAFICO ILEGAL DE ESPECIES SILVESTRES, EN EL DEPARTAMENTO DEL CESAR",1259928000,null,"18 MESES",null,3202,"365 MAYO 16/2022",null,"1156 JULIO 29/2022",null,"SUBDIRECTOR GENERAL DEL AREA DE GESTION AMBIENTAL","AGOSTO 25/022 DICIEMBRE 30/023",null,null,"VIGENTE"]
["19-7-0005-0-2023","DICIEMBRE 30/2022","CONVENIO INTERADMINISTRATIVO","MUNICIPIO DE PELAYA","800096613-9","AUNAR ESFUERZOS TECNICOS ADMINISTRATIVOS Y FINANCIEROS PARA LA IMPLEMENTACION DE ESTRATEGIAS PARA LA CONSERVACION, USO SOSTENIBLE DE LA BIODIVERSIDAD Y RESTAURACION DE LOS SERVICIOS ECOSISTEMICOS DE LA QUEBRADA SINGARARÉ, EN EL MUNICIPIO DE PELAYA, DEPARTAMENTO DEL CESAR",573774855,null,"09 MESES",null,"3201 01\n3202 01\n3203 01\n3206 01\n3208 02","1021 DICIEMBRE 28/2022",null,"2318 DICIEMBRE 30/2022"]

{"sheet":"EJECUTADOS","index":3,"n_rows":16,"n_cols":19,"rows_kept":16,"cut":false,"hidden":true,"merged":[[10,0,10,18],[2,0,2,18],[4,0,4,18],[0,0,0,18]]}
["CONTRATOS VIGENCIAS ANTERIORES"]
["NUMERO","FECHA","NATURALEZA JURIDICA","CONTRATISTA","IDENTIFICACIÓN","OBJETO","VALOR","VALOR ADICION","PLAZO","PLAZO ADICION","RUBRO","N° Y FECHA CDP","N° Y FECHA CDP ADICION","No. REGISTRO","N° REGISTRO ADICION","SUPERVISOR","FECHA INICIO/ TERMINACION","FECHA INICIO/ TERMINACION - ADICION","ANTICIPO"]
[2020]
["19-6-0183-0-2020","DICIEMBRE 29/020","PROCESO CONCURSO DE MERITOS ABIERTO N° 002 DE 2020 CONTRATO DE CONSULTORIA","K2 INGENIERIA S.A.S.","804007055-3","OPERAR, IMPLEMENTAR Y ADMINISTRAR LAS REDES DE MONITOREO DE LOS RECURSOS NATURALES EN EL AREA DE JURISDICCION DE LA CORPORACION AUTONOMA REGIONAL DEL CESAR","$2,399,447,146","$263,925,716","12 MESES","45 DIAS","4,5 RAE","499 NOVIEMBRE 06/020","02 ENERO 07/021","981 DICIEMBRE 29/020","03 ENERO 07/021","SUBDIRECTOR DE GESTION AMBIENTAL","ENERO 07/021 ENERO 06/022","ENERO 06/022 FEBRERO 21/022"]
[2021]
["19-6-0094-0-2021","MARZO 02/021","PROCESO CONCURSO MERITOS ABIERTO N° 02 DE 2021 CONTRATO DE INTERVENTORIA","CONSORCIO INTER-REFORESTACION 2021","901,459,364-5","INTERVENTORIA TECNICA, ADMINISTRATIVA, FINANCIERA Y AMBIENTAL PARA EL CONTRATO CUYO OBJETO ES: RESTAURACION DE AREAS DEGRADADAS EN LAS MICROCUENCAS DEL RIO MAGIRIAIMO, FURISDICCION DE CORPOCESAR","$121,789,360",null,"10 MESES",null,"1,1 RAE","33 ENERO 18/021",null,"190 MARZO 02/021",null,"SUBDIRECCION GENERAL DEL AREA DE GESTION AMBIENTAL","MARZO 09/021 DICIEMBRE 31/021",null,"20% $24,357,872"]
["19-6-0098-0-2021","MARZO 03/021","PROCESO LICITACION PUBLICA N° 002 DE 2020 CONTRATO DE OBRA","UNION TEMPORAL MAGIRIAMO 2021","901,461,292-1","RESTAURACION DE AREAS DEGRADADAS EN LAS MICROCUENCAS DEL RIO MAGIRIAIMO JURISDICCION DE CORPOCESAR","$1,735,891,149,78",null,"10 MESES",null,"1,1 RAE","22 ENERO 15/021",null,"200 MARZO 03/021",null,"SUBDIRECTOR GENERAL AREA DE GESTION AMBIENTAL","MARZO 09/021 DICIEMBRE 31/021",null,"50% $867,946,574,89"]
["19-6-0147-0-2021","JUNIO 11/021","PROCESO CONCURSO DE MERITOS ABIERTO N° 003 DE 2021 CONTRATO DE CONSULTORIA","CORPORACION PROSPERAR","806,009,990-1","FORMULACION DEL PLAN DE MANEJO AMBIENTAL  DE LA MICROCUENCA (PMAM) QUEBRADA SINGARARE UBICADA EN LOS MUNICIPIOS DE PELAYA, PAILITAS Y LA GLORIA EN EL DEPARTAMENTO DEL CESAR Y EL MUNICIPIO DE EL CARMEN EN EL DEPARTAMENTO DE NORTE DE SANTANDER ","$740,000,000",null,"6 MESES","67 DIAS","2,4 RAE","96 FEBRERO 12/021",null,"657  JUNIO 11/021",null,"COORDINADOR GIT PARA LA GESTION DE ORDENAMIENTO TERRITORIAL Y POMCAS","JUNIO 23/021 DICIEMBRE 22/021",null,"10% $740,000,000"]
["19-6-0184-0-2021","DICIEMBRE 09/021","PORCESO SE LECCION LICITACION PUBLICA No 006 DE 2021","CORPORACION PARA LA INVESTIGACION Y EL FOMENTO EMPRESARIAL - CEFIN","824004351-8","IMPLEMENTACION DE ACCIONES DE RESTAURACION EN LA MICROCUENCA DEL RIO CHISKUINDJA EN EL RESGUARDO INDIGENA EN EL MUNICIPIO DE VALLEDUPAR","$2,208,354,621",null,"6 MESES",null,"1,1 RAE","589 OCTUBRE 11/021",null,"1688 DICIEMBRE 17/021",null,"SUBDIRECCION DE GESTION AMBIENTAL","DICIEMBRE 24/021 JUNIO 30/021",null,"40% $833,341,848,64"]
["19-6-0185-0-2021","DICIEMBRE 09/021","PROCESO CONCURSO DE MERITO ABIERTO No 007 DE 2021 INTERVENTORIA","SCP - SOCIEDAD CONSULTA DE PROYECTOS LTDA","900658006-3","INTERVENTORIA TECNICA, ADMINISTRATIVA, FINANCIERA, JURIDICA Y AMBIEMTAL PARA EL CONTRATO CUYO OBJETO ES: IMPLEMENTACION DE ACCIONES DE RESTAURACION DE LA MICROCUENCA DEL RIO CHISKUINDJA EN EL RESGUARDO INDIGENA KANKUAMO EN EL MUNICIPIO DE VALLEDUPAR","140,949,000",null,"6 MESES",null,"3202-01 RAE","625 OCTUBRE 20/021",null,"1689 DICIEMBRE 17/021",null,"SUBDIRECCION GENERAL DE AREA GESTION AMBIENTAL ","DICIEMBRE 24/021 JUNIO 30/021",null,"20% $28,189,800"]
["CONVENIOS 2021"]
["19-7-0002-0-2021","FEBRERO 24/021","CONVENIO DE ASOCIACION","FUNDACION SILLAS AZULES","901,186,848-5","AUNAR ESFUERZOS TECNICOS, ADMINISTRATIVOS Y FINANCIEROS PARA EL ESTABLECIMIENTO DE 16 HECTAREAS DE UNIDADES AGROFORESTALES PARA COMUNIDADES AFRODESCENDIENTES E INDIGENAS ESTABLECIDAS EN LA JURISDICCION DE LA CORPORACION AUTONOMA REGIONAL DEL CESAR","$224,000,000",null,"6 MESES",null,"7,1; 7,2 RAE","60 FEBRERO 03/021",null,"153 FEBRERO 24/021",null,"SUBDIRECCION GENERAL GESTION AMBIENTAL","FEBRERO 25/021 AGOSTO 24/021"]
["19-7-0003-0-2021","MARZO 02/021","CONVENIO INTERADMINISTRATIVO","SERVICIOS POSTALES NACIONALES","900,062,917-9","SE COMPROMETE CON EL CLIENTE A PRESTAR LOS SERVICIOS DE RECOLECCION, CURSO Y ENTREGA DE CORRESPONDENCIA Y DEMAS ENVIOS POSTALES QUE REQUIERA EN LAS MODALIDADES DE CORREO CERTIFICADO (URBANO, NACIONAL E INTERNACIONAL), POSTEXPRESS (URBANO Y NACIONAL), MASIVO (URBANO Y NACIONAL), ENCOMIENDA (URBANO Y NACIONAL), PAQUETERIA (URBANO Y NACIONAL) Y CUALQUIER SERVICIO QUE SE ENCUENTRE VIGENTE EN EL PORTAFOLIO DE SERVICIOS Y DOS AUXILIARES PARA LA RECEPCION DE LA DOCUMENTACION DE LA CORPORACION Y DEMAS QUE SE REQUIERAN Y HAGAN PARTE DE LA PROPUESTA DE PRODUCTOS PRESENTADOS ","$141,246,936",null,"8 MESES","3 MESES","8,3 RAE","147 FEBRERO 24/021",null,"361 MARZO 26/021",null,"SECRETARIO GENERAL","MARZO 25/021NOVIEMBRE 24/021"]
["19-7-0007-0-2021","SEPTIEMBRE 10/021","CONVENIO INTERADMINISTRATIVO","MUNICIPIO DE CHIMICHAGUA","892300815-1","AUNAR ESFUERZO PARA LA REALIZACION DE LA LIMPIEZA DEL CAUCE DEL CAÑO LARGO (DESPALIZADA, REMOCION Y EXTRACCION DE MATERIAL VEGETAL, ARBOLES CAIDOS Y EXTRACCION DE MATERIAL VEGETAL TIPO FILMAL), UBICADO EN EL MUNICIPIO DE CHIMICHAGUA - DEPARTAMENTO DEL CESAR",660000000,null,"3 MESES","3 MESES","3206\n3203","463 SEPTIEMBRE 03/021",null,"1128 SEPTIEMBRE 14/021",null,"COORDINADOR GIT PARA LA GESTION DEL CAMBIO CLIMATICO POMCAS Y ORDENAMIENTO TERRITORIAL","OCTUBRE 14/021 DICIEMBRE 31/021 ","MARZO 30/022"]
["19-7-0008-0-2021","SEPTIEMBRE 22/021","CONVENIO INTERADMINISTRATIVO","EL RESGUARDO INDIGENA KANKUAMO","900,874,999-7","AUNAR ESFUERZOS TECNICOS, ECONOMICOS Y/O ADMINISTRATIVOS PARA LA IMPLEMENTACION DE ACTIVIDADES AMBIENTALES CON ENFOQUE DIFERENCIAL EN EL TERRITORIO ANCESTRAL DEL PUEBLO INDIGENA KANKUAMO EN LA SIERRA NEVADA DE SANTA MARTA, DEPARTAMENTO DEL CESAR","$45,000,0000",null,"3 MESES 10 DIAS","1 MES","3206,01 - 3299,04 RAE","508 SEPTIEMBRE 16/021",null,"1162 SEPTIEMBRE 22/021",null,"SUBDIRECCION GENERAL GESTION AMBIENTAL","SEPTIEMBRE 29/021 DICIEMBRE 31/021","DICIEMBRE 31/021 ENERO 30/022"]
["19-7-0016-0-2021","DICIEMBRE 28/021","CONVENIO DE ASOCIACION","CORPORACION PARA IMPULSAR EL DESARROLLO AMBIENTAL - CIDMAG","900,077,157-3","CONVENIO DE ASOCIACION POR PROCESO COMPETITIVO PARA ENTIDADES SIN ANIMO DE LUCRO PARA LA IMPLEMENTACION DE ACCIONES DE RESTAURACION EN AREAS DE INTERES ESTRATEGICO EN LA SERRANIA DEL PERIJA","$4,347,761,000",null,"8 MESES",null,"3202-10 APN","791 DICIEMBRE 28/021",null,"1733 DICIEMBRE 28/021",null,"SUBDIRECCION GENERAL DE GESTION AMBIENTAL","ENERO 17/022 SEPTIEMBRE 16/022 "]

{"sheet":"LIQUIDADOS","index":4,"n_rows":16,"n_cols":19,"rows_kept":16,"cut":false,"hidden":true,"merged":[[0,0,0,18],[2,0,2,18],[7,0,7,18],[4,0,4,18]]}
["CONTRATOS - CONVENIOSVIGENCIAS ANTERIORES"]
["NUMERO","FECHA","NATURALEZA JURIDICA","CONTRATISTA","IDENTIFICACIÓN","OBJETO","VALOR","VALOR ADICION","PLAZO","PLAZO ADICION","RUBRO","N° Y FECHA CDP","N° Y FECHA CDP ADICION","No. REGISTRO","N° REGISTRO ADICION","SUPERVISOR","FECHA INICIO/ TERMINACION","FECHA INICIO/ TERMINACION - ADICION","ANTICIPO"]
["CONTRATOS 2019"]
["19-6-0191-0-2019","OCTUBRE 21/019","PROCESO DE LICITACION PUBLICA N° 003 DE 2019  CONTRATO DE OBRA","CONSORCIO SOLES DEL CESAR","901,332,745-1","IMPLEMENTACIÓN DE ACCIONES DE ADAPTACIÓN AL CAMBIO CLIMÁTICO EN EL EDIFICIO BIOCLIMÁTICO Y EL CAVFFS, SEDES DE CORPOCESAR EN EL MARCO DEL PIGCCT DEL DEPARTAMENTO DEL CESAR","$1,367,585,705",null,"6 MESES",null,"BPIN 20193219000002 APN","0469 AGOSTO 09/019",null,"1399 NOVIEMBRE 14/019",null,"SUBDIRECTOR GENERAL DEL AREA DE GESTION AMBIENTAL","DICIEMBRE 05/019 JUNIO 05/020",null,"ANTICIPO 50% $683,792,853"]
["CONVENIOS 2020"]
["19-7-0010-0-2020","DICIEMBRE 04/020","CONVENIO DE ASOCIACION","FUNDACION ORNITOLOGICA DEL ATLANTICO ORNIAT","802007742-8","AUNAR ESFUERZOS TECNICOS Y ECONOMICOS PARA LA PROTECCION Y CONSERVACION DE LA FAUNA SILVESTRE DEL DEPARTAMENTO DEL CESAR, MEDIANTE LA IMPLEMENTACION DE ESTRATEGIAS QUE PERMITAN MITIGAR LOS IMPACTOS ASOCIADOS A LOS DIFERENTES CAUSALES DE PERDIDA DE LA BIODIVERSIDAD EN LA REGION","$1,507,146,624",null,"1 AÑO",null,"5,5 RAE","531 NOVIEMBRE 26/020","01 ENERO 07/021","893 DICIEMBRE 07/020","01 ENERO 07/021","SUBDIRECCION GENERAL GESTION AMBIENTAL","DICIEMBRE 31/020 DICIEMBRE 30/021"]
["19-7-0012-0-2020","DICIEMBRE 17/020","CONVENIO INTERADMINISTRATIVO","MUNICIPIO DEL COPEY Y LA EMPRESA DE SERVICIOS PUBLICOS DEL COPEY-EMCOPEY E.S.P.","MUNICIPIO 800096587-5 E.S.P. 800095352-7","AUNAR ESFUERZOS TECNICOS, ADMINISTRATIVOS Y FINANCIEROS ENTRE EL MUNICIPIO DE EL COPEY, LA EMPRESA DE SERVICIOS PUBLICOS DEL COPEY EMCOPEY Y CORPOCESAR PARA REALIZAR LA OPTIMIZACION DEL SISTEMA DE TRATAMIENTO DE AGUAS RESIDUALES DOMESTICAS DEL CORREGIMIENTO DE CHIMILA, MUNICIPIO DE ELCOPEY - CESAR","$1,150,000,000",null,"7 MESES",null,"2,4 RAE","582 DICIEMBRE 11/020","03 ENERO 07/021","02 ENERO 07/021",null,"SUBDIRECCION GENERAL GESTION AMBIENTAL","DICIEMBRE 29/020 JULIO 28/021"]
["CONTRATOS 2021"]
["19-6-0053-0-2021","FEBRERO 12/021","PROCESO LICITACION PUBLICA N° 001 DE 2020 PRESTACION DE SERVICIOS","TRANSPORTES CARVAJAL LTDA - TRANSCAR LTDA","900,005,005-4","CONTRATAR LA PRESTACION DEL SERVICIO DE TRANSPORTE TERRESTRE ESPECIAL DENTRO Y FUERA DEL DEPARTAMENTO DEL CESAR, PARA MOVILIZAR EL PERSONAL DE CORPOCESAR","$1,330,466,620","$76,026,664-   $589,206,646","10 MESES","2 MESES      4 MESES","1,1; 1,2; 2,3; 2,4; 4,1; 4,3; 4,5; 5,2; 8,3; RAE","36       FEBRERO 18/021","770 DICIEMBRE 14/021           197 FEBRERO 11/022","103 FEBRERO 15/021","1714 CICIEMBRE 27/021             234 FEBRERO 23/022","SUBDIRECCION GENERAL AREA ADMINISTRATIVA Y FINANCIERA","FEBRERO 16/021 DICIEMBRE 15/021","DICIEMBRE 16/021 JUNIO 14/022"]
["19-6-0094-0-2021","MARZO 02/021","PROCESO CONCURSO MERITOS ABIERTO N° 02 DE 2021 CONTRATO DE INTERVENTORIA","CONSORCIO INTER-REFORESTACION 2021","901,459,364-5","INTERVENTORIA TECNICA, ADMINISTRATIVA, FINANCIERA Y AMBIENTAL PARA EL CONTRATO CUYO OBJETO ES: RESTAURACION DE AREAS DEGRADADAS EN LAS MICROCUENCAS DEL RIO MAGIRIAIMO, FURISDICCION DE CORPOCESAR","$121,789,360",null,"10 MESES",null,"1,1 RAE","33 ENERO 18/021",null,"190 MARZO 02/021",null,"SUBDIRECCION GENERAL DEL AREA DE GESTION AMBIENTAL","MARZO 09/021 DICIEMBRE 31/021",null,"20% $24,357,872"]
["19-6-0098-0-2021","MARZO 03/021","PROCESO LICITACION PUBLICA N° 002 DE 2020 CONTRATO DE OBRA","UNION TEMPORAL MAGIRIAMO 2021","901,461,292-1","RESTAURACION DE AREAS DEGRADADAS EN LAS MICROCUENCAS DEL RIO MAGIRIAIMO JURISDICCION DE CORPOCESAR","$1,735,891,149,78",null,"10 MESES",null,"1,1 RAE","22 ENERO 15/021",null,"200 MARZO 03/021",null,"SUBDIRECTOR GENERAL AREA DE GESTION AMBIENTAL","MARZO 09/021 DICIEMBRE 31/021",null,"50% $867,946,574,89"]
["19-6-0111-0-2021","MARZO 04/021","PROCESO LICITACION PUBLICA N° 003 DE 2021 CONTRATO PRESTACIONN DE SERVICIOS","VIPERS LTDA","800,209,088-9","PRESTACION DEL SERVICIO DE VIGILANCIA PRIVADA EN LAS SEDES DE LA CORPORACION AUTONOMA REGIONAL DEL CESAR - CORPOCESAR","$718,836,606","$143,767,322","10 MESES SIN EXCEDER 31 DE DICIEMBRE DE 2021","60 DIAS","1,1; 1,2; 2,3; 4,3; 4,5; 5,2; 8,3; RAE","39 ENERO 18/021","790 DICIEMBRE 28/021","240 MARZO 04/021","1734 DICIEMBRE 28/021","SUBDIRECTOR GENERAL AREA ADMINISTRATIVA Y FINANCIERA","MARZO 01/021 DICIEMBRE 31/021","DICIEMBRE 31/021 MARZO 02/022"]
["19-6-0147-0-2021","JUNIO 11/021","PROCESO CONCURSO DE MERITOS ABIERTO N° 003 DE 2021 CONTRATO DE CONSULTORIA","CORPORACION PROSPERAR","806,009,990-1","FORMULACION DEL PLAN DE MANEJO AMBIENTAL  DE LA MICROCUENCA (PMAM) QUEBRADA SINGARARE UBICADA EN LOS MUNICIPIOS DE PELAYA, PAILITAS Y LA GLORIA EN EL DEPARTAMENTO DEL CESAR Y EL MUNICIPIO DE EL CARMEN EN EL DEPARTAMENTO DE NORTE DE SANTANDER ","$740,000,000",null,"6 MESES","67 DIAS","2,4 RAE","96 FEBRERO 12/021",null,"657  JUNIO 11/021",null,"COORDINADOR GIT PARA LA GESTION DE ORDENAMIENTO TERRITORIAL Y POMCAS","JUNIO 23/021 DICIEMBRE 22/021",null,"10% $740,000,000"]
["19-6-0150-0-2021","JUNIO 23/021","PROCESO LICITACION PUBLICA N° 004 DE 2021 CONTRATO DE OBRA","FUNDACION AGUA LUNA","900,345,569-4","IMPLEMENTACION DE ACCIONES DE MITIGACION DEL CAMBIO CLIMATICO EN ZONAS RURALES DE LOS MUNICIPIOS DE VALLEDUPAR, LA PAZ, MANAURE, SAN DIEGO Y AGUSTIN CODAZZI  DEL DEPARTAMENTO DEL CESAR","$1,981,966,767,96",null,"4 MESES",null,"BPIN 20203219000001","269 ABRIL 19/021",null,"860 AGOSTO 02/021",null,"SUBDIRECTOR GENERAL  DEL AREA DE GESTION AMBIENTAL","AGOSTO 05/021 DICIEMBRE 04/021"]
["19-6-0158-0-2021","JULIO 22/021","PROCESO CONCURSO DE MERITOS ABIERTO N° 004 DE 2021 CONTRATO DE INTERVENTORIA","UNION TEMPORAL INTER-ESTUFAS 2021","901503528-4","INTERVENTORIA TECNICA, ADMINISTRATIVA, FINANCIERA Y AMBIENTAL PARA EL CONTRATO CUYO OBJETO ES: IMPLEMENTACION DE ACCIONES DE MITIGACION DEL CAMBIO CLIMATICO EN ZONAS RURALES DE LOS MUNICIPIOS DE VALLEDUPAR, LA PAZ, MANAURE, SAN DIEGO Y AGUSTIN CODAZZI DEL DEPARTAMENTO DEL CESAR","$132,699,457",null,"4 MESES",null,"BPIN 20203219000001","268 ABRIL 19/021",null,"883 AGOSTO 03/021",null,"SUBDIRECTOR DE GESTION AMBIENTAL","AGOSTO 05/021 DICIEMBRE 04/021"]
["19-6-0168-0-2021","OCTUBRE 20/021","PROCESO DE SELECCIÓN ABREVIADA MENOR CUANTIA No 009 DE 2021","FUNDACION SOCIAL PARA EL DESARROLLO EMPRESARIAL Y/O INSTITUTO EDUCATIVO CAPACITAR","900,255,307-5","CONTRATAR LA PRESTACION DE SERVICIO DE CAPACITACION EN EDUCACION AMBIENTAL, PROMOCION EDUCATIVA AMBIENTAL, PARA LA DINAMIZACION DE LA EDUACION RELATIVA AL AMBIENTE, DESARROLLANDO ESTRATEGIAS VIRTUALES DE FORMACION, ORGANIZACIÓN YCONSTRUCCION DE PLANES DE EDUACION AMBIENTALFORMAL, CON ACTORES GUBERNAMENTALES, EMPRSAS PRIVADAS, NO GUBERNAMENTALES Y SOCIEDAD CIVIL, QUE PROPENDAN POR UNA GESTION AMBIENTAL SOSTENIBLE PARA EL MANEJO INTEGRAL DE LOS RECURSOS NATURALES Y DEL AMBIENTE, EN LOS ECOSISTEMAS ESTRATEGICOS ESTABLECIDOS EN LOS 25 MUNICIPIOS DEL DEPARTAMENTO DEL CESAR, AÑO 2021.","190,000,000",null,"2 MESES 10 DIAS",null,"61; 62 RAE","512 SEPTIEMBRE 17/021",null,"1357 OCTUBRE 20/021",null,"COORDINADOR DEL GIT PARA LA GESTION DE LA EDUCACIN AMBIENTAL  INTEGRAL Y LA PARTICIPACION CIUDADANA","OCTUBRE 20/021 DICIEMBRE 31/021",null,"40% $76,000,000"]

{"sheet":"INVENTARIO DOCUMENTAL 1","index":5,"n_rows":32,"n_cols":13,"rows_kept":32,"cut":false,"hidden":true,"merged":[[0,0,3,1],[0,2,0,10],[0,11,0,13],[1,2,1,10],[1,11,1,13],[2,2,3,10],[2,11,3,13],[12,9,14,9],[5,9,5,12],[7,0,7,5],[7,9,7,12],[8,0,8,5],[9,0,9,5],[10,9,10,12],[12,0,14,0],[12,1,14,1],[12,2,14,2],[12,3,13,4],[12,5,13,8],[23,12,23,13],[12,10,14,10],[12,11,14,11],[12,12,14,13],[15,12,15,13],[16,12,16,13],[17,12,17,13],[18,12,18,13],[19,12,19,13],[20,12,20,13],[21,12,21,13],[22,12,22,13],[24,12,24,13],[25,12,25,13],[27,4,27,8],[27,10,27,13],[29,4,29,8],[29,10,29,13],[30,2,30,3],[30,4,30,8],[30,10,30,13],[31,4,31,8],[31,10,31,13]]}
[null,null,"SISTEMA INTEGRADO DE GESTIÓN",null,null,null,null,null,null,null,null,"PCA-04-F-02"]
[null,null,"GESTIÓN DOCUMENTAL",null,null,null,null,null,null,null,null,"VERSIÓN: 4.0"]
[null,null,"FORMATO UNICO DE INVENTARIO DOCUMENTAL",null,null,null,null,null,null,null,null,"FECHA: 20/02/2015"]
[]
[]
[null,null,null,null,null,null,null,null,null,"HOJA No___1___ DE___1___"]
[]
["UNIDAD ADMINISTRATIVA: DIRECCION GENERAL",null,null,null,null,null,null,null,null,"REGISTRO DE ENTREGA"]
["OFICINA PRODUCTORA: SUBDIRECCION ADMINISTRATIVA",null,null,null,null,null,null,null,null,"AÑO ","MES","DIA","N.T."]
[{"$f":"\"OBJETO: INVENTARIO DOCUMENTAL \"&J10","v":"OBJETO: INVENTARIO DOCUMENTAL 2022"},null,null,null,null,null,null,null,null,2022]
[null,null,null,null,null,null,null,null,null,"N.T. = Numero de Transferencia"]
[]
["Número de\nOrden","Código ","CONTRATOS DE PRESTACION DE SERVICIOS","Fechas Extremas",null,"Unidades de Conservación",null,null,null,"Número\nde Folios","Soporte","Frecuencia\n de\n consulta","Notas"]
[]
[null,null,null,"Inicial","Final","Caja","Carpeta","Tomo","Otro"]
[1,"2000-16-03","19-6-0001-0-2022 SANDRA MILENA  DAZA IBARRA","2022-01-01",null,null,1,1,null,160,"PAPEL ","ALTA"]
[2,"2000-16-03","19-6-0002-0-2022 LILIANA CECILIA CASTILLA QUIROZ","2022-01-01",null,null,1,1,null,121,"PAPEL ","ALTA"]
[3,"2000-16-03","19-6-0003-0-2022 GILARYS GUICET OSORIO CUELLAR","2022-01-01",null,null,1,1,null,73,"PAPEL ","ALTA"]
[4,"2000-16-03","19-6-0004-0-2022 ANULADO POR FECHA","2022-01-01",null,null,"N/A","N/A",null,"N/A","N/A","N/A"]
[5,"2000-16-03","19-6-0005-0-2022 VICTOR ALFONSO VALERA GUERRA","2022-01-01",null,null,1,1,null,109,"PAPEL ","ALTA"]
[6,"2000-16-03","19-6-0006-0-2022 ADRIANA MARIA ALVAREZ ALVAREZ","2022-01-01",null,null,1,1,null,173,"PAPEL ","ALTA"]
[7,"2000-16-03","19-6-0007-0-2022 UNION TEMPORAL RESTAURACION AMBIENTAL","2021-10-01",null,null,5,5,null,829,"PAPEL ","ALTA"]
[8,"2000-16-03","19-6-0008-0-2022 ANA MILENA MAESTRE ALVAREZ","2022-01-01",null,null,1,1,null,157,"PAPEL ","ALTA"]
[9,"2000-16-03","19-6-0009-0-2022 SAMIR ENRIQUE BRACHO BARCELOT","2022-01-01",null,null,1,1,null,144,"PAPEL ","ALTA"]
[10,"2000-16-03","19-6-0010-0-2022 ANULADO POR FECHA","2022-01-01",null,null,"N/A","N/A",null,"N/A","N/A","N/A"]
[11,"2000-16-03","19-6-0011-0-2022 JOSE ALFREDO HERNANDEZ ROJAS","2022-01-01",null,null,1,1,null,104,"PAPEL ","ALTA"]
[null,null,null,null,null," "]
[null,null,"ELABORADO POR: INGRIS OLIVEROS HERNÁNDEZ",null,"ENTREGADO POR: INGRIS OLIVEROS HERNÁNDEZ",null,null,null,null,null,"RECIBIDO POR:"]
[]
[null,null,"CARGO: SECRETARIA EJECUTIVA",null,"CARGO: SECRETARIA EJECUTIVA",null,null,null,null,null,"CARGO _________________________________"]
[null,null,"FIRMA________________________________",null,"FIRMA __________________________________",null,null,null,null,null,"FIRMA __________________________________"]
[null,null,"FECHA_____________  LUGAR___________",null,"    FECHA_______________ LUGAR ___________"]

{"sheet":"INVENTARIO DOCUMENTAL 2","index":6,"n_rows":32,"n_cols":13,"rows_kept":32,"cut":false,"hidden":true,"merged":[[0,0,3,1],[0,2,0,10],[0,11,0,13],[1,2,1,10],[1,11,1,13],[2,2,3,10],[2,11,3,13],[12,9,14,9],[5,9,5,12],[7,0,7,5],[7,9,7,12],[8,0,8,5],[9,0,9,5],[10,9,10,12],[12,0,14,0],[12,1,14,1],[12,2,14,2],[12,3,13,4],[12,5,13,8],[23,12,23,13],[12,10,14,10],[12,11,14,11],[12,12,14,13],[15,12,15,13],[16,12,16,13],[17,12,17,13],[18,12,18,13],[19,12,19,13],[20,12,20,13],[21,12,21,13],[22,12,22,13],[24,12,24,13],[25,12,25,13],[27,4,27,8],[27,10,27,13],[29,4,29,8],[29,10,29,13],[30,2,30,3],[30,4,30,8],[30,10,30,13],[31,4,31,8],[31,10,31,13]]}
[null,null,"SISTEMA INTEGRADO DE GESTIÓN",null,null,null,null,null,null,null,null,"PCA-04-F-02"]
[null,null,"GESTIÓN DOCUMENTAL",null,null,null,null,null,null,null,null,"VERSIÓN: 4.0"]
[null,null,"FORMATO UNICO DE INVENTARIO DOCUMENTAL",null,null,null,null,null,null,null,null,"FECHA: 20/02/2015"]
[]
[]
[null,null,null,null,null,null,null,null,null,"HOJA No___1___ DE___1___"]
[]
["UNIDAD ADMINISTRATIVA: DIRECCION GENERAL",null,null,null,null,null,null,null,null,"REGISTRO DE ENTREGA"]
["OFICINA PRODUCTORA: SUBDIRECCION ADMINISTRATIVA",null,null,null,null,null,null,null,null,"AÑO ","MES","DIA","N.T."]
[{"$f":"\"OBJETO: INVENTARIO DOCUMENTAL \"&J10","v":"OBJETO: INVENTARIO DOCUMENTAL 2022"},null,null,null,null,null,null,null,null,2022]
[null,null,null,null,null,null,null,null,null,"N.T. = Numero de Transferencia"]
[]
["Número de\nOrden","Código ","CONTRATOS DE PRESTACION DE SERVICIOS","Fechas Extremas",null,"Unidades de Conservación",null,null,null,"Número\nde Folios","Soporte","Frecuencia\n de\n consulta","Notas"]
[]
[null,null,null,"Inicial","Final","Caja","Carpeta","Tomo","Otro"]
[12,"2000-16-03","19-6-0012-0-2022 CLAUDIA MARCELA MEJIA VEGA","2022-01-01",null,null,1,1,null,183,"PAPEL ","ALTA"]
[13,"2000-16-03","19-6-0013-0-2022 NELCY ESTHER VILLALOBOS BRITO","2022-01-01",null,null,1,1,null,135,"PAPEL ","ALTA"]
[14,"2000-16-03","19-6-0014-0-2022 MARTHA YOHANNA ARAQUE BARROS","2022-01-01",null,null,1,1,null,210,"PAPEL ","ALTA"]
[15,"2000-16-03","19-6-0015-0-2022 KATIA LUZ FLOREZ MOJICA","2022-01-01",null,null,1,1,null,170,"PAPEL ","ALTA"]
[16,"2000-16-03","19-6-0016-0-2022 OMEY ARIZA VILLEGAS","2022-01-01",null,null,1,1,null,145,"PAPEL ","ALTA"]
[17,"2000-16-03","19-6-0017-0-2022 LUZ ELENA PEREZ USTARIZ","2022-01-01",null,null,1,1,null,189,"PAPEL ","ALTA"]
[18,"2000-16-03","19-6-0018-0-2022 DAILER FERNANDO QUIROGA TORRES","2022-01-01",null,null,1,1,null,186,"PAPEL ","ALTA"]
[19,"2000-16-03","19-6-0019-0-2022 IRLENA MARGARITA GUILLEN CALDERON","2022-01-01",null,null,1,1,null,183,"PAPEL ","ALTA"]
[20,"2000-16-03","19-6-0020-0-2022 JESUS ALBERTO CALDERON MARTINEZ","2022-01-01",null,null,1,1,null,120,"PAPEL ","ALTA"]
[21,"2000-16-03","19-6-0021-0-2022 JOHANA PAOLA PERALTA PALENCIA","2022-01-01",null,null,1,1,null,126,"PAPEL ","ALTA"]
[22,"2000-16-03","19-6-0022-0-2022 JOSE LUIS PEÑARANDA TORO","2022-01-01",null,null,1,1,null,200,"PAPEL ","ALTA"]
[null,null,null,null,null," "]
[null,null,"ELABORADO POR: INGRIS OLIVEROS HERNÁNDEZ",null,"ENTREGADO POR: INGRIS OLIVEROS HERNÁNDEZ",null,null,null,null,null,"RECIBIDO POR:"]
[]
[null,null,"CARGO: SECRETARIA EJECUTIVA",null,"CARGO: SECRETARIA EJECUTIVA",null,null,null,null,null,"CARGO _________________________________"]
[null,null,"FIRMA________________________________",null,"FIRMA __________________________________",null,null,null,null,null,"FIRMA __________________________________"]
[null,null,"FECHA_____________  LUGAR___________",null,"    FECHA_______________ LUGAR ___________"]

{"sheet":"INVENTARIO DOCUMENTAL 3","index":7,"n_rows":32,"n_cols":13,"rows_kept":32,"cut":false,"hidden":true,"merged":[[0,0,3,1],[0,2,0,10],[0,11,0,13],[1,2,1,10],[1,11,1,13],[2,2,3,10],[2,11,3,13],[12,9,14,9],[5,9,5,12],[7,0,7,5],[7,9,7,12],[8,0,8,5],[9,0,9,5],[10,9,10,12],[12,0,14,0],[12,1,14,1],[12,2,14,2],[12,3,13,4],[12,5,13,8],[23,12,23,13],[12,10,14,10],[12,11,14,11],[12,12,14,13],[15,12,15,13],[16,12,16,13],[17,12,17,13],[18,12,18,13],[19,12,19,13],[20,12,20,13],[21,12,21,13],[22,12,22,13],[24,12,24,13],[25,12,25,13],[27,4,27,8],[27,10,27,13],[29,4,29,8],[29,10,29,13],[30,2,30,3],[30,4,30,8],[30,10,30,13],[31,4,31,8],[31,10,31,13]]}
[null,null,"SISTEMA INTEGRADO DE GESTIÓN",null,null,null,null,null,null,null,null,"PCA-04-F-02"]
[null,null,"GESTIÓN DOCUMENTAL",null,null,null,null,null,null,null,null,"VERSIÓN: 4.0"]
[null,null,"FORMATO UNICO DE INVENTARIO DOCUMENTAL",null,null,null,null,null,null,null,null,"FECHA: 20/02/2015"]
[]
[]
[null,null,null,null,null,null,null,null,null,"HOJA No___1___ DE___1___"]
[]
["UNIDAD ADMINISTRATIVA: DIRECCION GENERAL",null,null,null,null,null,null,null,null,"REGISTRO DE ENTREGA"]
["OFICINA PRODUCTORA: SUBDIRECCION ADMINISTRATIVA",null,null,null,null,null,null,null,null,"AÑO ","MES","DIA","N.T."]
[{"$f":"\"OBJETO: INVENTARIO DOCUMENTAL \"&J10","v":"OBJETO: INVENTARIO DOCUMENTAL 2022"},null,null,null,null,null,null,null,null,2022]
[null,null,null,null,null,null,null,null,null,"N.T. = Numero de Transferencia"]
[]
["Número de\nOrden","Código ","CONTRATOS DE PRESTACION DE SERVICIOS","Fechas Extremas",null,"Unidades de Conservación",null,null,null,"Número\nde Folios","Soporte","Frecuencia\n de\n consulta","Notas"]
[]
[null,null,null,"Inicial","Final","Caja","Carpeta","Tomo","Otro"]
[23,"2000-16-03","19-6-0023-0-2022 CELIA JOHANA RUBIO NAVARRO","2022-01-01",null,null,1,1,null,190,"PAPEL ","ALTA"]
[24,"2000-16-03","19-6-0024-0-2022 ANULADO","2022-01-01",null,null,"N/A","N/A",null,"N/A","N/A","N/A"]
[25,"2000-16-03","19-6-0025-0-2022 GISELLE MARIA CALDERON QUINTERO","2022-01-01",null,null,1,1,null,181,"PAPEL ","ALTA"]
[26,"2000-16-03","19-6-0026-0-2022 VIVIAN EMILIA ARBESU MURGAS","2022-01-01",null,null,1,1,null,158,"PAPEL ","ALTA"]
[27,"2000-16-03","19-6-0027-0-2022 NELSON ENRIQUE ARGOTE MARTINEZ","2022-01-01",null,null,1,1,null,151,"PAPEL ","ALTA"]
[28,"2000-16-03","19-6-0028-0-2022 DEIBER RICARDO SOCARRAS OCHOA","2022-01-01",null,null,1,1,null,153,"PAPEL ","ALTA"]
[29,"2000-16-03","19-6-0029-0-2022 KELLY JOHANNA GALVIS ROJAS","2022-01-01",null,null,1,1,null,188,"PAPEL ","ALTA"]
[30,"2000-16-03","19-6-0030-0-2022 MONICA MARIETH SUAREZ REDONDO","2022-01-01",null,null,1,1,null,140,"PAPEL ","ALTA"]
[31,"2000-16-03","19-6-0031-0-2022 ERIKA PATRICIA RAMIREZ GUTIERREZ","2022-01-01",null,null,1,1,null,153,"PAPEL ","ALTA"]
[32,"2000-16-03","19-6-0032-0-2022 CARLOS ENRIQUE RODRIGUEZ SANTANA","2022-01-01",null,null,null,null,null,137,"PAPEL ","ALTA"]
[33,"2000-16-03","19-6-0033-0-2022 DAIRO CAMPO OSPINO","2022-01-01",null,null,1,1,null,181,"PAPEL ","ALTA"]
[null,null,null,null,null," "]
[null,null,"ELABORADO POR: INGRIS OLIVEROS HERNÁNDEZ",null,"ENTREGADO POR: INGRIS OLIVEROS HERNÁNDEZ",null,null,null,null,null,"RECIBIDO POR:"]
[]
[null,null,"CARGO: SECRETARIA EJECUTIVA",null,"CARGO: SECRETARIA EJECUTIVA",null,null,null,null,null,"CARGO _________________________________"]
[null,null,"FIRMA________________________________",null,"FIRMA __________________________________",null,null,null,null,null,"FIRMA __________________________________"]
[null,null,"FECHA_____________  LUGAR___________",null,"    FECHA_______________ LUGAR ___________"]

{"sheet":"INVENTARIO DOCUMENTAL 4","index":8,"n_rows":32,"n_cols":13,"rows_kept":32,"cut":false,"hidden":true,"merged":[[0,0,3,1],[0,2,0,10],[0,11,0,13],[1,2,1,10],[1,11,1,13],[2,2,3,10],[2,11,3,13],[12,9,14,9],[5,9,5,12],[7,0,7,5],[7,9,7,12],[8,0,8,5],[9,0,9,5],[10,9,10,12],[12,0,14,0],[12,1,14,1],[12,2,14,2],[12,3,13,4],[12,5,13,8],[23,12,23,13],[12,10,14,10],[12,11,14,11],[12,12,14,13],[15,12,15,13],[16,12,16,13],[17,12,17,13],[18,12,18,13],[19,12,19,13],[20,12,20,13],[21,12,21,13],[22,12,22,13],[24,12,24,13],[25,12,25,13],[27,4,27,8],[27,10,27,13],[29,4,29,8],[29,10,29,13],[30,2,30,3],[30,4,30,8],[30,10,30,13],[31,4,31,8],[31,10,31,13]]}
[null,null,"SISTEMA INTEGRADO DE GESTIÓN",null,null,null,null,null,null,null,null,"PCA-04-F-02"]
[null,null,"GESTIÓN DOCUMENTAL",null,null,null,null,null,null,null,null,"VERSIÓN: 4.0"]
[null,null,"FORMATO UNICO DE INVENTARIO DOCUMENTAL",null,null,null,null,null,null,null,null,"FECHA: 20/02/2015"]
[]
[]
[null,null,null,null,null,null,null,null,null,"HOJA No___1___ DE___1___"]
[]
["UNIDAD ADMINISTRATIVA: DIRECCION GENERAL",null,null,null,null,null,null,null,null,"REGISTRO DE ENTREGA"]
["OFICINA PRODUCTORA: SUBDIRECCION ADMINISTRATIVA",null,null,null,null,null,null,null,null,"AÑO ","MES","DIA","N.T."]
[{"$f":"\"OBJETO: INVENTARIO DOCUMENTAL \"&J10","v":"OBJETO: INVENTARIO DOCUMENTAL 2022"},null,null,null,null,null,null,null,null,2022]
[null,null,null,null,null,null,null,null,null,"N.T. = Numero de Transferencia"]
[]
["Número de\nOrden","Código ","CONTRATOS DE PRESTACION DE SERVICIOS","Fechas Extremas",null,"Unidades de Conservación",null,null,null,"Número\nde Folios","Soporte","Frecuencia\n de\n consulta","Notas"]
[]
[null,null,null,"Inicial","Final","Caja","Carpeta","Tomo","Otro"]
[34,"2000-16-03","19-6-0034-0-2022 MIGUEL ANGEL BOLAÑO CALDERON","2022-01-01",null,null,1,1,null,171,"PAPEL ","ALTA"]
[35,"2000-16-03","19-6-0035-0-2022 SULEYMA GOYENECHE LEON","2022-01-01",null,null,1,1,null,276,"PAPEL ","ALTA"]
[36,"2000-16-03","19-6-0036-0-2022 ORLANDO MANUEL LOBO GARCIA","2022-01-11",null,null,1,1,null,160,"PAPEL ","ALTA"]
[37,"2000-16-03","19-6-0037-0-2022 AMPARO ROCIO ALVAREZ LEON","2022-01-13",null,null,1,1,null,185,"PAPEL ","ALTA"]
[38,"2000-16-03","19-6-0038-0-2022 LEIDA ROSA CASTILLA CASTILLO","2022-01-01",null,null,1,1,null,119,"PAPEL ","ALTA"]
[39,"2000-16-03","19-6-0039-0-2022 ANAMARIA MONTERO GARCIA","2022-01-01",null,null,1,1,null,159,"PAPEL ","ALTA"]
[40,"2000-16-03","19-6-0040-0-2022 JUAN DAVID ARGUMEDO MARTINEZ","2022-01-01",null,null,1,1,null,124,"PAPEL ","ALTA"]
[41,"2000-16-03","19-6-0041-0-2022 CARLOS EDUARDO CASTILLA AVILA","2022-01-01",null,null,1,1,null,209,"PAPEL ","ALTA"]
[42,"2000-16-03","19-6-0042-0-2022 LUIS CARLOS VEGA AVILA","2022-01-01",null,null,1,1,null,187,"PAPEL ","ALTA"]
[43,"2000-16-03","19-6-0043-0-2022 ALMES JOSE GRANADOS CUELLO","2022-01-01",null,null,1,1,null,198,"PAPEL ","ALTA"]
[44,"2000-16-03","19-6-0044-0-2022 SUSAN MILENA SOTO FERNANDEZ","2022-01-01",null,null,1,1,null,115,"PAPEL ","ALTA"]
[null,null,null,null,null," "]
[null,null,"ELABORADO POR: INGRIS OLIVEROS HERNÁNDEZ",null,"ENTREGADO POR: INGRIS OLIVEROS HERNÁNDEZ",null,null,null,null,null,"RECIBIDO POR:"]
[]
[null,null,"CARGO: SECRETARIA EJECUTIVA",null,"CARGO: SECRETARIA EJECUTIVA",null,null,null,null,null,"CARGO _________________________________"]
[null,null,"FIRMA________________________________",null,"FIRMA __________________________________",null,null,null,null,null,"FIRMA __________________________________"]
[null,null,"FECHA_____________  LUGAR___________",null,"    FECHA_______________ LUGAR ___________"]

{"sheet":"INVENTARIO DOCUMENTAL 5","index":9,"n_rows":32,"n_cols":13,"rows_kept":32,"cut":false,"hidden":true,"merged":[[0,0,3,1],[0,2,0,10],[0,11,0,13],[1,2,1,10],[1,11,1,13],[2,2,3,10],[2,11,3,13],[12,9,14,9],[5,9,5,12],[7,0,7,5],[7,9,7,12],[8,0,8,5],[9,0,9,5],[10,9,10,12],[12,0,14,0],[12,1,14,1],[12,2,14,2],[12,3,13,4],[12,5,13,8],[23,12,23,13],[12,10,14,10],[12,11,14,11],[12,12,14,13],[15,12,15,13],[16,12,16,13],[17,12,17,13],[18,12,18,13],[19,12,19,13],[20,12,20,13],[21,12,21,13],[22,12,22,13],[24,12,24,13],[25,12,25,13],[27,4,27,8],[27,10,27,13],[29,4,29,8],[29,10,29,13],[30,2,30,3],[30,4,30,8],[30,10,30,13],[31,4,31,8],[31,10,31,13]]}
[null,null,"SISTEMA INTEGRADO DE GESTIÓN",null,null,null,null,null,null,null,null,"PCA-04-F-02"]
[null,null,"GESTIÓN DOCUMENTAL",null,null,null,null,null,null,null,null,"VERSIÓN: 4.0"]
[null,null,"FORMATO UNICO DE INVENTARIO DOCUMENTAL",null,null,null,null,null,null,null,null,"FECHA: 20/02/2015"]
[]
[]
[null,null,null,null,null,null,null,null,null,"HOJA No___1___ DE___1___"]
[]
["UNIDAD ADMINISTRATIVA: DIRECCION GENERAL",null,null,null,null,null,null,null,null,"REGISTRO DE ENTREGA"]
["OFICINA PRODUCTORA: SUBDIRECCION ADMINISTRATIVA",null,null,null,null,null,null,null,null,"AÑO ","MES","DIA","N.T."]
[{"$f":"\"OBJETO: INVENTARIO DOCUMENTAL \"&J10","v":"OBJETO: INVENTARIO DOCUMENTAL 2022"},null,null,null,null,null,null,null,null,2022]
[null,null,null,null,null,null,null,null,null,"N.T. = Numero de Transferencia"]
[]
["Número de\nOrden","Código ","CONTRATOS DE PRESTACION DE SERVICIOS","Fechas Extremas",null,"Unidades de Conservación",null,null,null,"Número\nde Folios","Soporte","Frecuencia\n de\n consulta","Notas"]
[]
[null,null,null,"Inicial","Final","Caja","Carpeta","Tomo","Otro"]
[45,"2000-16-03","19-6-0045-0-2022 MARIA ISABEL CAMARGO RODRIGUEZ","2022-01-01",null,null,1,1,null,157,"PAPEL ","ALTA"]
[46,"2000-16-03","19-6-0046-0-2022 ALEXANDER OVALLE MOLINA","2022-01-01",null,null,1,1,null,182,"PAPEL ","ALTA"]
[47,"2000-16-03","19-6-0047-0-2022 LUZ MARINA RODRIIGUEZ GUTIERREZ","2022-01-01",null,null,1,1,null,142,"PAPEL ","ALTA"]
[48,"2000-16-03","19-6-0048-0-2022 YOHASKY FIORELLA CABALELRON OSPINO","2022-01-01",null,null,1,1,null,176,"PAPEL ","ALTA"]
[49,"2000-16-03","19-6-0049-0-2022 KATHERINE RUIZ SARMIENTO","2022-01-01",null,null,1,1,null,182,"PAPEL ","ALTA"]
[50,"2000-16-03","19-6-0050-0-2022 JULY PAOLA FAJARDO SILVA","2022-01-01",null,null,1,1,null,212,"PAPEL ","ALTA"]
[51,"2000-16-03","19-6-0051-0-2022 PAOLA ANDREA VALVERDE CAMPOS","2022-01-01",null,null,1,1,null,200,"PAPEL ","ALTA"]
[52,"2000-16-03","19-6-0052-0-2022 GUSTAVO ARTURO CERCHIARO VASQUEZ","2022-01-01",null,null,1,1,null,184,"PAPEL ","ALTA"]
[53,"2000-16-03","19-6-0053-0-2022 ANDREA PAOLA SANCHEZ SINUCO","2022-01-01",null,null,1,1,null,176,"PAPEL ","ALTA"]
[54,"2000-16-03","19-6-0054-0-2022 MARINELA MENDOZA PEINADO","2022-01-01",null,null,1,1,null,224,"PAPEL ","ALTA"]
[55,"2000-16-03","19-6-0055-0-2022 MARWIN DAVID ARAUJO MARTINEZ","2022-01-01",null,null,1,1,null,177,"PAPEL ","ALTA"]
[null,null,null,null,null," "]
[null,null,"ELABORADO POR: INGRIS OLIVEROS HERNÁNDEZ",null,"ENTREGADO POR: INGRIS OLIVEROS HERNÁNDEZ",null,null,null,null,null,"RECIBIDO POR:"]
[]
[null,null,"CARGO: SECRETARIA EJECUTIVA",null,"CARGO: SECRETARIA EJECUTIVA",null,null,null,null,null,"CARGO _________________________________"]
[null,null,"FIRMA________________________________",null,"FIRMA __________________________________",null,null,null,null,null,"FIRMA __________________________________"]
[null,null,"FECHA_____________  LUGAR___________",null,"    FECHA_______________ LUGAR ___________"]

{"sheet":"INVENTARIO DOCUMENTAL 6","index":10,"n_rows":32,"n_cols":13,"rows_kept":32,"cut":false,"hidden":true,"merged":[[0,0,3,1],[0,2,0,10],[0,11,0,13],[1,2,1,10],[1,11,1,13],[2,2,3,10],[2,11,3,13],[12,9,14,9],[5,9,5,12],[7,0,7,5],[7,9,7,12],[8,0,8,5],[9,0,9,5],[10,9,10,12],[12,0,14,0],[12,1,14,1],[12,2,14,2],[12,3,13,4],[12,5,13,8],[23,12,23,13],[12,10,14,10],[12,11,14,11],[12,12,14,13],[15,12,15,13],[16,12,16,13],[17,12,17,13],[18,12,18,13],[19,12,19,13],[20,12,20,13],[21,12,21,13],[22,12,22,13],[24,12,24,13],[25,12,25,13],[27,4,27,8],[27,10,27,13],[29,4,29,8],[29,10,29,13],[30,2,30,3],[30,4,30,8],[30,10,30,13],[31,4,31,8],[31,10,31,13]]}
[null,null,"SISTEMA INTEGRADO DE GESTIÓN",null,null,null,null,null,null,null,null,"PCA-04-F-02"]
[null,null,"GESTIÓN DOCUMENTAL",null,null,null,null,null,null,null,null,"VERSIÓN: 4.0"]
[null,null,"FORMATO UNICO DE INVENTARIO DOCUMENTAL",null,null,null,null,null,null,null,null,"FECHA: 20/02/2015"]
[]
[]
[null,null,null,null,null,null,null,null,null,"HOJA No___1___ DE___1___"]
[]
["UNIDAD ADMINISTRATIVA: DIRECCION GENERAL",null,null,null,null,null,null,null,null,"REGISTRO DE ENTREGA"]
["OFICINA PRODUCTORA: SUBDIRECCION ADMINISTRATIVA",null,null,null,null,null,null,null,null,"AÑO ","MES","DIA","N.T."]
[{"$f":"\"OBJETO: INVENTARIO DOCUMENTAL \"&J10","v":"OBJETO: INVENTARIO DOCUMENTAL 2022"},null,null,null,null,null,null,null,null,2022]
[null,null,null,null,null,null,null,null,null,"N.T. = Numero de Transferencia"]
[]
["Número de\nOrden","Código ","CONTRATOS DE PRESTACION DE SERVICIOS","Fechas Extremas",null,"Unidades de Conservación",null,null,null,"Número\nde Folios","Soporte","Frecuencia\n de\n consulta","Notas"]
[]
[null,null,null,"Inicial","Final","Caja","Carpeta","Tomo","Otro"]
[56,"2000-16-03","19-6-0056-0-2022 LIZETH ALVARADO BELTRÁN","2022-01-01",null,null,1,1,null,202,"PAPEL ","ALTA"]
[57,"2000-16-03","19-6-0057-0-2022 MARIA DEL PILAR MAESTRE ARIZA","2022-01-01",null,null,1,1,null,165,"PAPEL ","ALTA"]
[58,"2000-16-03","19-6-0058-0-2022 MARIANO JOSE ZULETA OÑATE","2022-01-01",null,null,1,1,null,192,"PAPEL ","ALTA"]
[59,"2000-16-03","19-6-0059-0-2022 VICTOR MANUEL VASQUEZ BERNATES","2022-01-01",null,null,1,1,null,187,"PAPEL ","ALTA"]
[60,"2000-16-03","19-6-0060-0-2022 KEITHY MICHEL CABELLO LIÑAN","2022-01-01",null,null,1,1,null,180,"PAPEL ","ALTA"]
[61,"2000-16-03","19-6-0061-0-2022 NILSON OCTAVIO TAPIA LOPEZ","2022-01-01",null,null,1,1,null,148,"PAPEL ","ALTA"]
[62,"2000-16-03","19-6-0062-0-2022 JOSEFH JADYRD RAMIREZ DAVID","2022-01-01",null,null,1,1,null,166,"PAPEL ","ALTA"]
[63,"2000-16-03","19-6-0063-0-2022 KEINER DAVID RUEDA DAVILA","2022-01-01",null,null,1,1,null,173,"PAPEL ","ALTA"]
[64,"2000-16-03","19-6-0064-0-2022 HERMES MIGUEL ARAMENDIZ CANALES","2022-01-01",null,null,1,1,null,200,"PAPEL ","ALTA"]
[65,"2000-16-03","19-6-0065-0-2022 HAROLD HENRY MELO PINTO","2022-01-01",null,null,1,1,null,162,"PAPEL ","ALTA"]
[66,"2000-16-03","19-6-0066-0-2022 OOSCAR ARMANDO TOLOZA FRAGOZO","2022-01-01",null,null,1,1,null,174,"PAPEL ","ALTA"]
[null,null,null,null,null," "]
[null,null,"ELABORADO POR: INGRIS OLIVEROS HERNÁNDEZ",null,"ENTREGADO POR: INGRIS OLIVEROS HERNÁNDEZ",null,null,null,null,null,"RECIBIDO POR:"]
[]
[null,null,"CARGO: SECRETARIA EJECUTIVA",null,"CARGO: SECRETARIA EJECUTIVA",null,null,null,null,null,"CARGO _________________________________"]
[null,null,"FIRMA________________________________",null,"FIRMA __________________________________",null,null,null,null,null,"FIRMA __________________________________"]
[null,null,"FECHA_____________  LUGAR___________",null,"    FECHA_______________ LUGAR ___________"]

{"sheet":"INVENTARIO DOCUMENTAL 7","index":11,"n_rows":32,"n_cols":13,"rows_kept":32,"cut":false,"hidden":true,"merged":[[0,0,3,1],[0,2,0,10],[0,11,0,13],[1,2,1,10],[1,11,1,13],[2,2,3,10],[2,11,3,13],[12,9,14,9],[5,9,5,12],[7,0,7,5],[7,9,7,12],[8,0,8,5],[9,0,9,5],[10,9,10,12],[12,0,14,0],[12,1,14,1],[12,2,14,2],[12,3,13,4],[12,5,13,8],[23,12,23,13],[12,10,14,10],[12,11,14,11],[12,12,14,13],[15,12,15,13],[16,12,16,13],[17,12,17,13],[18,12,18,13],[19,12,19,13],[20,12,20,13],[21,12,21,13],[22,12,22,13],[24,12,24,13],[25,12,25,13],[27,4,27,8],[27,10,27,13],[29,4,29,8],[29,10,29,13],[30,2,30,3],[30,4,30,8],[30,10,30,13],[31,4,31,8],[31,10,31,13]]}
[null,null,"SISTEMA INTEGRADO DE GESTIÓN",null,null,null,null,null,null,null,null,"PCA-04-F-02"]
[null,null,"GESTIÓN DOCUMENTAL",null,null,null,null,null,null,null,null,"VERSIÓN: 4.0"]
[null,null,"FORMATO UNICO DE INVENTARIO DOCUMENTAL",null,null,null,null,null,null,null,null,"FECHA: 20/02/2015"]
[]
[]
[null,null,null,null,null,null,null,null,null,"HOJA No___1___ DE___1___"]
[]
["UNIDAD ADMINISTRATIVA: DIRECCION GENERAL",null,null,null,null,null,null,null,null,"REGISTRO DE ENTREGA"]
["OFICINA PRODUCTORA: SUBDIRECCION ADMINISTRATIVA",null,null,null,null,null,null,null,null,"AÑO ","MES","DIA","N.T."]
[{"$f":"\"OBJETO: INVENTARIO DOCUMENTAL \"&J10","v":"OBJETO: INVENTARIO DOCUMENTAL 2022"},null,null,null,null,null,null,null,null,2022]
[null,null,null,null,null,null,null,null,null,"N.T. = Numero de Transferencia"]
[]
["Número de\nOrden","Código ","CONTRATOS DE PRESTACION DE SERVICIOS","Fechas Extremas",null,"Unidades de Conservación",null,null,null,"Número\nde Folios","Soporte","Frecuencia\n de\n consulta","Notas"]
[]
[null,null,null,"Inicial","Final","Caja","Carpeta","Tomo","Otro"]
[67,"2000-16-03","19-6-0067-0-2022 TALIA MARIA BARROSO HERNANDEZ","2022-01-01",null,null,1,1,null,168,"PAPEL ","ALTA"]
[68,"2000-16-03","19-6-0068-0-2022 LUIS EDUARDO BUELVAS HERNANDEZ","2022-01-01",null,null,1,1,null,187,"PAPEL ","ALTA"]
[69,"2000-16-03","19-6-0069-0-2022 KELYS YOHANA DAZA MARTINEZ","2022-01-01",null,null,1,1,null,180,"PAPEL ","ALTA"]
[70,"2000-16-03","19-6-0070-0-2022 FABIAN LEONARDO RUIZ VELASQUEZ","2022-01-01",null,null,1,1,null,199,"PAPEL ","ALTA"]
[71,"2000-16-03","19-6-0071-0-2022 YUNIBETH GONZALEZ ROSADO","2022-01-01",null,null,1,1,null,149,"PAPEL ","ALTA"]
[72,"2000-16-03","19-6-0072-0-2022 CARLOS EDUARDO PACHECO LONDOÑO","2022-01-01",null,null,1,1,null,192,"PAPEL ","ALTA"]
[73,"2000-16-03","19-6-0073-0-2022 ANULADO","2022-01-01",null,null,"N/A","N/A",null,"N/A","N/A","N/A"]
[74,"2000-16-03","19-6-0074-0-2022 TORRES ABOGADOS Y ASOCIADOS SAS","2022-01-01",null,null,1,1,null,186,"PAPEL ","ALTA"]
[75,"2000-16-03","19-6-0075-0-2022 DELWIN JOSE MUÑOZ MENDOZA","2022-01-01",null,null,1,1,null,168,"PAPEL ","ALTA"]
[76,"2000-16-03","19-6-0076-0-2022 LUIS ARMANDO GARNICA","2022-01-01",null,null,1,1,null,137,"PAPEL ","ALTA"]
[77,"2000-16-03","19-6-0077-0-2022 FRANCISCO ALBERTO CORZO OROZCO","2022-01-01",null,null,1,1,null,120,"PAPEL ","ALTA"]
[null,null,null,null,null," "]
[null,null,"ELABORADO POR: INGRIS OLIVEROS HERNÁNDEZ",null,"ENTREGADO POR: INGRIS OLIVEROS HERNÁNDEZ",null,null,null,null,null,"RECIBIDO POR:"]
[]
[null,null,"CARGO: SECRETARIA EJECUTIVA",null,"CARGO: SECRETARIA EJECUTIVA",null,null,null,null,null,"CARGO _________________________________"]
[null,null,"FIRMA________________________________",null,"FIRMA __________________________________",null,null,null,null,null,"FIRMA __________________________________"]
[null,null,"FECHA_____________  LUGAR___________",null,"    FECHA_______________ LUGAR ___________"]

{"sheet":"INVENTARIO DOCUMENTAL 8","index":12,"n_rows":32,"n_cols":13,"rows_kept":32,"cut":false,"hidden":true,"merged":[[0,0,3,1],[0,2,0,10],[0,11,0,13],[1,2,1,10],[1,11,1,13],[2,2,3,10],[2,11,3,13],[12,9,14,9],[5,9,5,12],[7,0,7,5],[7,9,7,12],[8,0,8,5],[9,0,9,5],[10,9,10,12],[12,0,14,0],[12,1,14,1],[12,2,14,2],[12,3,13,4],[12,5,13,8],[23,12,23,13],[12,10,14,10],[12,11,14,11],[12,12,14,13],[15,12,15,13],[16,12,16,13],[17,12,17,13],[18,12,18,13],[19,12,19,13],[20,12,20,13],[21,12,21,13],[22,12,22,13],[24,12,24,13],[25,12,25,13],[27,4,27,8],[27,10,27,13],[29,4,29,8],[29,10,29,13],[30,2,30,3],[30,4,30,8],[30,10,30,13],[31,4,31,8],[31,10,31,13]]}
[null,null,"SISTEMA INTEGRADO DE GESTIÓN",null,null,null,null,null,null,null,null,"PCA-04-F-02"]
[null,null,"GESTIÓN DOCUMENTAL",null,null,null,null,null,null,null,null,"VERSIÓN: 4.0"]
[null,null,"FORMATO UNICO DE INVENTARIO DOCUMENTAL",null,null,null,null,null,null,null,null,"FECHA: 20/02/2015"]
[]
[]
[null,null,null,null,null,null,null,null,null,"HOJA No___1___ DE___1___"]
[]
["UNIDAD ADMINISTRATIVA: DIRECCION GENERAL",null,null,null,null,null,null,null,null,"REGISTRO DE ENTREGA"]
["OFICINA PRODUCTORA: SUBDIRECCION ADMINISTRATIVA",null,null,null,null,null,null,null,null,"AÑO ","MES","DIA","N.T."]
[{"$f":"\"OBJETO: INVENTARIO DOCUMENTAL \"&J10","v":"OBJETO: INVENTARIO DOCUMENTAL 2022"},null,null,null,null,null,null,null,null,2022]
[null,null,null,null,null,null,null,null,null,"N.T. = Numero de Transferencia"]
[]
["Número de\nOrden","Código ","CONTRATOS DE PRESTACION DE SERVICIOS","Fechas Extremas",null,"Unidades de Conservación",null,null,null,"Número\nde Folios","Soporte","Frecuencia\n de\n consulta","Notas"]
[]
[null,null,null,"Inicial","Final","Caja","Carpeta","Tomo","Otro"]
[78,"2000-16-03","19-6-0078-0-2022 TATIANA MARGARITA ROJAS ZULETA","2022-01-01",null,null,1,1,null,203,"PAPEL ","ALTA"]
[79,"2000-16-03","19-6-0079-0-2022 JAMES JOSE ALVAREZ MONTAÑO","2022-01-01",null,null,1,1,null,168,"PAPEL ","ALTA"]
[80,"2000-16-03","19-6-0080-0-2022 OSNAIDER ENRIQUE LINDO MORALES","2022-01-01",null,null,1,1,null,126,"PAPEL ","ALTA"]
[81,"2000-16-03","19-6-0081-0-2022 CRISTRIAN XAVIER LOPEZ HERAZO","2022-01-01",null,null,1,1,null,184,"PAPEL ","ALTA"]
[82,"2000-16-03","19-6-0082-0-2022 LUZ DARY BOTELLO SOCARRAS","2022-01-01",null,null,1,1,null,166,"PAPEL ","ALTA"]
[83,"2000-16-03","19-6-0083-0-2022 EDUARDO JOSE DE LA HOZ CASTRO","2022-01-01",null,null,1,1,null,171,"PAPEL ","ALTA"]
[84,"2000-16-03","19-6-0084-0-2022 ADRIANA PATRICIA BENITEZ CAMARGO","2022-01-01",null,null,1,1,null,228,"PAPEL ","ALTA"]
[85,"2000-16-03","19-6-0085-0-2022 DARIO JOSE MENDOZA LOPEZ","2022-01-01",null,null,1,1,null,180,"PAPEL ","ALTA"]
[86,"2000-16-03","19-6-0086-0-2022 VICTORIA ARTEAGA LACOUTURE","2022-01-01",null,null,1,1,null,169,"PAPEL ","ALTA"]
[87,"2000-16-03","19-6-0087-0-2022 DAYANA CAMPO SANTANA","2022-01-01",null,null,1,1,null,191,"PAPEL ","ALTA"]
[88,"2000-16-03","19-6-0088-0-2022 JOSE SABINO TEJEDA SANTIAGO","2022-01-01",null,null,1,1,null,187,"PAPEL ","ALTA"]
[null,null,null,null,null," "]
[null,null,"ELABORADO POR: INGRIS OLIVEROS HERNÁNDEZ",null,"ENTREGADO POR: INGRIS OLIVEROS HERNÁNDEZ",null,null,null,null,null,"RECIBIDO POR:"]
[]
[null,null,"CARGO: SECRETARIA EJECUTIVA",null,"CARGO: SECRETARIA EJECUTIVA",null,null,null,null,null,"CARGO _________________________________"]
[null,null,"FIRMA________________________________",null,"FIRMA __________________________________",null,null,null,null,null,"FIRMA __________________________________"]
[null,null,"FECHA_____________  LUGAR___________",null,"    FECHA_______________ LUGAR ___________"]

{"sheet":"INVENTARIO DOCUMENTAL 9","index":13,"n_rows":32,"n_cols":13,"rows_kept":32,"cut":false,"hidden":true,"merged":[[0,0,3,1],[0,2,0,10],[0,11,0,13],[1,2,1,10],[1,11,1,13],[2,2,3,10],[2,11,3,13],[12,9,14,9],[5,9,5,12],[7,0,7,5],[7,9,7,12],[8,0,8,5],[9,0,9,5],[10,9,10,12],[12,0,14,0],[12,1,14,1],[12,2,14,2],[12,3,13,4],[12,5,13,8],[23,12,23,13],[12,10,14,10],[12,11,14,11],[12,12,14,13],[15,12,15,13],[16,12,16,13],[17,12,17,13],[18,12,18,13],[19,12,19,13],[20,12,20,13],[21,12,21,13],[22,12,22,13],[24,12,24,13],[25,12,25,13],[27,4,27,8],[27,10,27,13],[29,4,29,8],[29,10,29,13],[30,2,30,3],[30,4,30,8],[30,10,30,13],[31,4,31,8],[31,10,31,13]]}
[null,null,"SISTEMA INTEGRADO DE GESTIÓN",null,null,null,null,null,null,null,null,"PCA-04-F-02"]
[null,null,"GESTIÓN DOCUMENTAL",null,null,null,null,null,null,null,null,"VERSIÓN: 4.0"]
[null,null,"FORMATO UNICO DE INVENTARIO DOCUMENTAL",null,null,null,null,null,null,null,null,"FECHA: 20/02/2015"]
[]
[]
[null,null,null,null,null,null,null,null,null,"HOJA No___1___ DE___1___"]
[]
["UNIDAD ADMINISTRATIVA: DIRECCION GENERAL",null,null,null,null,null,null,null,null,"REGISTRO DE ENTREGA"]
["OFICINA PRODUCTORA: SUBDIRECCION ADMINISTRATIVA",null,null,null,null,null,null,null,null,"AÑO ","MES","DIA","N.T."]
[{"$f":"\"OBJETO: INVENTARIO DOCUMENTAL \"&J10","v":"OBJETO: INVENTARIO DOCUMENTAL 2022"},null,null,null,null,null,null,null,null,2022]
[null,null,null,null,null,null,null,null,null,"N.T. = Numero de Transferencia"]
[]
["Número de\nOrden","Código ","CONTRATOS DE PRESTACION DE SERVICIOS","Fechas Extremas",null,"Unidades de Conservación",null,null,null,"Número\nde Folios","Soporte","Frecuencia\n de\n consulta","Notas"]
[]
[null,null,null,"Inicial","Final","Caja","Carpeta","Tomo","Otro"]
[89,"2000-16-03","19-6-0089-0-2022 JOSE JORGE BROCHERO HERRERA","2022-01-01",null,null,1,1,null,185,"PAPEL ","ALTA"]
[90,"2000-16-03","19-6-0090-0-2022 JANIS KARINA TARIFFA BRAVO","2022-01-01",null,null,1,1,null,246,"PAPEL ","ALTA"]
[91,"2000-16-03","19-6-0091-0-2022 JOSE ENRIQUE JIMENEZ OROZCO","2022-01-01",null,null,1,1,null,212,"PAPEL ","ALTA"]
[92,"2000-16-03","19-6-0092-0-2022 JACKELINE M GONZALEZ PADILLA","2022-01-01",null,null,1,1,null,192,"PAPEL ","ALTA"]
[93,"2000-16-03","19-6-0093-0-2022 MARBEL VILARDY BADILLO","2022-01-01",null,null,1,1,null,191,"PAPEL ","ALTA"]
[94,"2000-16-03","19-6-0094-0-2022 ENNY JOHANNA TORRES CARRILLO","2022-01-01",null,null,1,1,null,164,"PAPEL ","ALTA"]
[95,"2000-16-03","19-6-0095-0-2022 LEYDI ANDREA CORTEZ CARDENAS","2022-01-01",null,null,1,1,null,174,"PAPEL ","ALTA"]
[96,"2000-16-03","19-6-0096-0-2022 EDER ALFREDO MADARIAGA NUÑEZ","2022-01-01",null,null,1,1,null,139,"PAPEL ","ALTA"]
[97,"2000-16-03","19-6-0097-0-2022 ESTEFANIA JIMENEZ MIRANDA","2022-01-01",null,null,1,1,null,124,"PAPEL ","ALTA"]
[98,"2000-16-03","19-6-0098-0-2022 GISSETH CAROLINA URREGO VELEZ","2022-01-01",null,null,1,1,null,195,"PAPEL ","ALTA"]
[99,"2000-16-03","19-6-0099-0-2022 SORIVONNE OROZCO GONZALEZ","2022-01-01",null,null,1,1,null,244,"PAPEL ","ALTA"]
[null,null,null,null,null," "]
[null,null,"ELABORADO POR: INGRIS OLIVEROS HERNÁNDEZ",null,"ENTREGADO POR: INGRIS OLIVEROS HERNÁNDEZ",null,null,null,null,null,"RECIBIDO POR:"]
[]
[null,null,"CARGO: SECRETARIA EJECUTIVA",null,"CARGO: SECRETARIA EJECUTIVA",null,null,null,null,null,"CARGO _________________________________"]
[null,null,"FIRMA________________________________",null,"FIRMA __________________________________",null,null,null,null,null,"FIRMA __________________________________"]
[null,null,"FECHA_____________  LUGAR___________",null,"    FECHA_______________ LUGAR ___________"]

{"sheet":"INVENTARIO DOCUMENTAL 10","index":14,"n_rows":32,"n_cols":13,"rows_kept":32,"cut":false,"hidden":true,"merged":[[0,0,3,1],[0,2,0,10],[0,11,0,13],[1,2,1,10],[1,11,1,13],[2,2,3,10],[2,11,3,13],[12,9,14,9],[5,9,5,12],[7,0,7,5],[7,9,7,12],[8,0,8,5],[9,0,9,5],[10,9,10,12],[12,0,14,0],[12,1,14,1],[12,2,14,2],[12,3,13,4],[12,5,13,8],[23,12,23,13],[12,10,14,10],[12,11,14,11],[12,12,14,13],[15,12,15,13],[16,12,16,13],[17,12,17,13],[18,12,18,13],[19,12,19,13],[20,12,20,13],[21,12,21,13],[22,12,22,13],[24,12,24,13],[25,12,25,13],[27,4,27,8],[27,10,27,13],[29,4,29,8],[29,10,29,13],[30,2,30,3],[30,4,30,8],[30,10,30,13],[31,4,31,8],[31,10,31,13]]}
[null,null,"SISTEMA INTEGRADO DE GESTIÓN",null,null,null,null,null,null,null,null,"PCA-04-F-02"]
[null,null,"GESTIÓN DOCUMENTAL",null,null,null,null,null,null,null,null,"VERSIÓN: 4.0"]
[null,null,"FORMATO UNICO DE INVENTARIO DOCUMENTAL",null,null,null,null,null,null,null,null,"FECHA: 20/02/2015"]
[]
[]
[null,null,null,null,null,null,null,null,null,"HOJA No___1___ DE___1___"]
[]
["UNIDAD ADMINISTRATIVA: DIRECCION GENERAL",null,null,null,null,null,null,null,null,"REGISTRO DE ENTREGA"]
["OFICINA PRODUCTORA: SUBDIRECCION ADMINISTRATIVA",null,null,null,null,null,null,null,null,"AÑO ","MES","DIA","N.T."]
[{"$f":"\"OBJETO: INVENTARIO DOCUMENTAL \"&J10","v":"OBJETO: INVENTARIO DOCUMENTAL 2022"},null,null,null,null,null,null,null,null,2022]
[null,null,null,null,null,null,null,null,null,"N.T. = Numero de Transferencia"]
[]
["Número de\nOrden","Código ","CONTRATOS DE PRESTACION DE SERVICIOS","Fechas Extremas",null,"Unidades de Conservación",null,null,null,"Número\nde Folios","Soporte","Frecuencia\n de\n consulta","Notas"]
[]
[null,null,null,"Inicial","Final","Caja","Carpeta","Tomo","Otro"]
[100,"2000-16-03","19-6-0100-0-2022 VICTOR JULIO QUINTERO BARBOSA","2022-01-01",null,null,1,1,null,136,"PAPEL ","ALTA"]
[101,"2000-16-03","19-6-0101-0-2022 YANIRIS PATRICIA IBARRA GOMEZ","2022-01-01",null,null,1,1,null,208,"PAPEL ","ALTA"]
[102,"2000-16-03","19-6-0102-0-2022 KARINA PAOLA MARTINEZ CAÑIZARES","2022-01-01",null,null,1,1,null,189,"PAPEL ","ALTA"]
[103,"2000-16-03","19-6-0103-0-2022 JUAN CARLOS JR ROJAS MINORCA","2022-01-01",null,null,1,1,null,116,"PAPEL ","ALTA"]
[104,"2000-16-03","19-6-0104-0-2022 JORGE ARMANDO RINCONES FERNANDEZ","2022-01-01",null,null,1,1,null,140,"PAPEL ","ALTA"]
[105,"2000-16-03","19-6-0105-0-2022 MARIA FERNANDA ARAUJO YAGUNA","2022-01-01",null,null,1,1,null,218,"PAPEL ","ALTA"]
[106,"2000-16-03","19-6-0106-0-2022 YERCELIS MARIA ROMERO MORENO","2022-01-01",null,null,1,1,null,146,"PAPEL ","ALTA"]
[107,"2000-16-03","19-6-0107-0-2022 WILMAR ENRIQUE LOPEZ BELEÑO","2022-01-01",null,null,1,1,null,214,"PAPEL ","ALTA"]
[108,"2000-16-03","19-6-0108-0-2022 UNION TEMPORAL ACCIONES DE RESTAURACION","2022-01-01",null,null,2,2,null,418,"PAPEL ","ALTA"]
[109,"2000-16-03","19-6-0109-0-2022 JOSE ENRIQUE MUNIVE CHURIO","2022-01-01",null,null,1,1,null,167,"PAPEL ","ALTA"]
[110,"2000-16-03","19-6-0110-0-2022 KATHERINE MORA ROSADO","2022-01-01",null,null,1,1,null,218,"PAPEL ","ALTA"]
[null,null,null,null,null," "]
[null,null,"ELABORADO POR: INGRIS OLIVEROS HERNÁNDEZ",null,"ENTREGADO POR: INGRIS OLIVEROS HERNÁNDEZ",null,null,null,null,null,"RECIBIDO POR:"]
[]
[null,null,"CARGO: SECRETARIA EJECUTIVA",null,"CARGO: SECRETARIA EJECUTIVA",null,null,null,null,null,"CARGO _________________________________"]
[null,null,"FIRMA________________________________",null,"FIRMA __________________________________",null,null,null,null,null,"FIRMA __________________________________"]
[null,null,"FECHA_____________  LUGAR___________",null,"    FECHA_______________ LUGAR ___________"]

{"sheet":"INVENTARIO DOCUMENTAL 11","index":15,"n_rows":32,"n_cols":13,"rows_kept":32,"cut":false,"hidden":true,"merged":[[0,0,3,1],[0,2,0,10],[0,11,0,13],[1,2,1,10],[1,11,1,13],[2,2,3,10],[2,11,3,13],[12,9,14,9],[5,9,5,12],[7,0,7,5],[7,9,7,12],[8,0,8,5],[9,0,9,5],[10,9,10,12],[12,0,14,0],[12,1,14,1],[12,2,14,2],[12,3,13,4],[12,5,13,8],[23,12,23,13],[12,10,14,10],[12,11,14,11],[12,12,14,13],[15,12,15,13],[16,12,16,13],[17,12,17,13],[18,12,18,13],[19,12,19,13],[20,12,20,13],[21,12,21,13],[22,12,22,13],[24,12,24,13],[25,12,25,13],[27,4,27,8],[27,10,27,13],[29,4,29,8],[29,10,29,13],[30,2,30,3],[30,4,30,8],[30,10,30,13],[31,4,31,8],[31,10,31,13]]}
[null,null,"SISTEMA INTEGRADO DE GESTIÓN",null,null,null,null,null,null,null,null,"PCA-04-F-02"]
[null,null,"GESTIÓN DOCUMENTAL",null,null,null,null,null,null,null,null,"VERSIÓN: 4.0"]
[null,null,"FORMATO UNICO DE INVENTARIO DOCUMENTAL",null,null,null,null,null,null,null,null,"FECHA: 20/02/2015"]
[]
[]
[null,null,null,null,null,null,null,null,null,"HOJA No___1___ DE___1___"]
[]
["UNIDAD ADMINISTRATIVA: DIRECCION GENERAL",null,null,null,null,null,null,null,null,"REGISTRO DE ENTREGA"]
["OFICINA PRODUCTORA: SUBDIRECCION ADMINISTRATIVA",null,null,null,null,null,null,null,null,"AÑO ","MES","DIA","N.T."]
[{"$f":"\"OBJETO: INVENTARIO DOCUMENTAL \"&J10","v":"OBJETO: INVENTARIO DOCUMENTAL 2022"},null,null,null,null,null,null,null,null,2022]
[null,null,null,null,null,null,null,null,null,"N.T. = Numero de Transferencia"]
[]
["Número de\nOrden","Código ","CONTRATOS DE PRESTACION DE SERVICIOS","Fechas Extremas",null,"Unidades de Conservación",null,null,null,"Número\nde Folios","Soporte","Frecuencia\n de\n consulta","Notas"]
[]
[null,null,null,"Inicial","Final","Caja","Carpeta","Tomo","Otro"]
[111,"2000-16-03","19-6-0111-0-2022 CARLOS IVAN OVALLE PUMAREJO","2022-01-01",null,null,1,1,null,171,"PAPEL ","ALTA"]
[112,"2000-16-03","19-6-0112-0-2022 PCT LTDA-GERMAN ALBERTO LINARES ROMERO","2022-01-01",null,null,1,1,null,154,"PAPEL ","ALTA"]
[113,"2000-16-03","19-6-0113-0-2022 IVAN DANIEL MARTINEZ BOLIVAR","2022-01-01",null,null,1,1,null,202,"PAPEL ","ALTA"]
[114,"2000-16-03","19-6-0114-0-2022 AUGUSTO CARLOS GUERRA ANGARITA","2022-01-01",null,null,1,1,null,171,"PAPEL ","ALTA"]
[115,"2000-16-03","19-6-0115-0-2022 MAYRA DIANME ZULETA RAMIREZ","2022-01-01",null,null,1,1,null,197,"PAPEL ","ALTA"]
[116,"2000-16-03","19-6-0116-0-2022 EDUARDO JAVIER LOPEZ MERCADO","2022-01-01",null,null,1,1,null,172,"PAPEL ","ALTA"]
[117,"2000-16-03","19-6-0117-0-2022 JOSE RICARDO CAMARGO RODRIGUEZ","2022-01-01",null,null,1,1,null,98,"PAPEL ","ALTA"]
[118,"2000-16-03","19-6-0118-0-2022 CARMEN CECILIA FUENTES GONZALEZ","2022-01-01",null,null,1,1,null,155,"PAPEL ","ALTA"]
[119,"2000-16-03","19-6-0119-0-2022 JOSE RAFAEL CALDERON MORALES","2022-01-01",null,null,1,1,null,165,"PAPEL ","ALTA"]
[120,"2000-16-03","19-6-0120-0-2022 LAURA ANDREA TORRES PACHECO","2022-01-01",null,null,1,1,null,165,"PAPEL ","ALTA"]
[121,"2000-16-03","19-6-0121-0-2022 JAMES FERLEY CASTAÑEDA TORRES","2022-01-01",null,null,1,1,null,160,"PAPEL ","ALTA"]
[null,null,null,null,null," "]
[null,null,"ELABORADO POR: INGRIS OLIVEROS HERNÁNDEZ",null,"ENTREGADO POR: INGRIS OLIVEROS HERNÁNDEZ",null,null,null,null,null,"RECIBIDO POR:"]
[]
[null,null,"CARGO: SECRETARIA EJECUTIVA",null,"CARGO: SECRETARIA EJECUTIVA",null,null,null,null,null,"CARGO _________________________________"]
[null,null,"FIRMA________________________________",null,"FIRMA __________________________________",null,null,null,null,null,"FIRMA __________________________________"]
[null,null,"FECHA_____________  LUGAR___________",null,"    FECHA_______________ LUGAR ___________"]

{"sheet":"INVENTARIO DOCUMENTAL 12","index":16,"n_rows":32,"n_cols":13,"rows_kept":32,"cut":false,"hidden":true,"merged":[[0,0,3,1],[0,2,0,10],[0,11,0,13],[1,2,1,10],[1,11,1,13],[2,2,3,10],[2,11,3,13],[12,9,14,9],[5,9,5,12],[7,0,7,5],[7,9,7,12],[8,0,8,5],[9,0,9,5],[10,9,10,12],[12,0,14,0],[12,1,14,1],[12,2,14,2],[12,3,13,4],[12,5,13,8],[23,12,23,13],[12,10,14,10],[12,11,14,11],[12,12,14,13],[15,12,15,13],[16,12,16,13],[17,12,17,13],[18,12,18,13],[19,12,19,13],[20,12,20,13],[21,12,21,13],[22,12,22,13],[24,12,24,13],[25,12,25,13],[27,4,27,8],[27,10,27,13],[29,4,29,8],[29,10,29,13],[30,2,30,3],[30,4,30,8],[30,10,30,13],[31,4,31,8],[31,10,31,13]]}
[null,null,"SISTEMA INTEGRADO DE GESTIÓN",null,null,null,null,null,null,null,null,"PCA-04-F-02"]
[null,null,"GESTIÓN DOCUMENTAL",null,null,null,null,null,null,null,null,"VERSIÓN: 4.0"]
[null,null,"FORMATO UNICO DE INVENTARIO DOCUMENTAL",null,null,null,null,null,null,null,null,"FECHA: 20/02/2015"]
[]
[]
[null,null,null,null,null,null,null,null,null,"HOJA No___1___ DE___1___"]
[]
["UNIDAD ADMINISTRATIVA: DIRECCION GENERAL",null,null,null,null,null,null,null,null,"REGISTRO DE ENTREGA"]
["OFICINA PRODUCTORA: SUBDIRECCION ADMINISTRATIVA",null,null,null,null,null,null,null,null,"AÑO ","MES","DIA","N.T."]
[{"$f":"\"OBJETO: INVENTARIO DOCUMENTAL \"&J10","v":"OBJETO: INVENTARIO DOCUMENTAL 2022"},null,null,null,null,null,null,null,null,2022]
[null,null,null,null,null,null,null,null,null,"N.T. = Numero de Transferencia"]
[]
["Número de\nOrden","Código ","CONTRATOS DE PRESTACION DE SERVICIOS","Fechas Extremas",null,"Unidades de Conservación",null,null,null,"Número\nde Folios","Soporte","Frecuencia\n de\n consulta","Notas"]
[]
[null,null,null,"Inicial","Final","Caja","Carpeta","Tomo","Otro"]
[122,"2000-16-03","19-6-0122-0-2022 CARLOS ANDRES AÑEZ MAESTRE","2022-01-01",null,null,1,1,null,195,"PAPEL ","ALTA"]
[123,"2000-16-03","19-6-0123-0-2022 SOLREDES SAS-JOSE FILEMON PALACIOS GONZALEZ","2022-01-01",null,null,1,1,null,121,"PAPEL ","ALTA"]
[124,"2000-16-03","19-6-0124-0-2022 NATALIA PEÑATE MEJIA","2022-01-01",null,null,1,1,null,171,"PAPEL ","ALTA"]
[125,"2000-16-03","19-6-0125-0-2022 KATIA INES MANJARRES GRANADOS","2022-01-01",null,null,1,1,null,125,"PAPEL ","ALTA"]
[126,"2000-16-03","19-6-0126-0-2022 ARTURO JOSE SERJE YANCY","2022-01-01",null,null,1,1,null,151,"PAPEL ","ALTA"]
[127,"2000-16-03","19-6-0127-0-2022 ERNESTO RAFAEL ARZUAGA MORENO","2022-01-01",null,null,1,1,null,160,"PAPEL ","ALTA"]
[128,"2000-16-03","19-6-0128-0-2022 RUBEN DARIO BERMUIDEZ CLAVIJO","2022-01-01",null,null,1,1,null,164,"PAPEL ","ALTA"]
[129,"2000-16-03","19-6-0129-0-2022 YARELIS ROCIO OLIVELLA GOMEZ","2022-01-01",null,null,1,1,null,182,"PAPEL ","ALTA"]
[130,"2000-16-03","19-6-0130-0-2022 WILSON ENRIQUE PEREZ PADILLA","2022-01-01",null,null,1,1,null,163,"PAPEL ","ALTA"]
[131,"2000-16-03","19-6-0131-0-2022 JOSE DAVID VIDAL CACERES","2022-01-01",null,null,1,1,null,190,"PAPEL ","ALTA"]
[132,"2000-16-03","19-6-0132-0-2022 JOSE JULIO MEJIA LOPEZ","2022-01-01",null,null,1,1,null,121,"PAPEL ","ALTA"]
[null,null,null,null,null," "]
[null,null,"ELABORADO POR: INGRIS OLIVEROS HERNÁNDEZ",null,"ENTREGADO POR: INGRIS OLIVEROS HERNÁNDEZ",null,null,null,null,null,"RECIBIDO POR:"]
[]
[null,null,"CARGO: SECRETARIA EJECUTIVA",null,"CARGO: SECRETARIA EJECUTIVA",null,null,null,null,null,"CARGO _________________________________"]
[null,null,"FIRMA________________________________",null,"FIRMA __________________________________",null,null,null,null,null,"FIRMA __________________________________"]
[null,null,"FECHA_____________  LUGAR___________",null,"    FECHA_______________ LUGAR ___________"]

{"sheet":"INVENTARIO DOCUMENTAL 13","index":17,"n_rows":32,"n_cols":13,"rows_kept":32,"cut":false,"hidden":true,"merged":[[0,0,3,1],[0,2,0,10],[0,11,0,13],[1,2,1,10],[1,11,1,13],[2,2,3,10],[2,11,3,13],[12,9,14,9],[5,9,5,12],[7,0,7,5],[7,9,7,12],[8,0,8,5],[9,0,9,5],[10,9,10,12],[12,0,14,0],[12,1,14,1],[12,2,14,2],[12,3,13,4],[12,5,13,8],[23,12,23,13],[12,10,14,10],[12,11,14,11],[12,12,14,13],[15,12,15,13],[16,12,16,13],[17,12,17,13],[18,12,18,13],[19,12,19,13],[20,12,20,13],[21,12,21,13],[22,12,22,13],[24,12,24,13],[25,12,25,13],[27,4,27,8],[27,10,27,13],[29,4,29,8],[29,10,29,13],[30,2,30,3],[30,4,30,8],[30,10,30,13],[31,4,31,8],[31,10,31,13]]}
[null,null,"SISTEMA INTEGRADO DE GESTIÓN",null,null,null,null,null,null,null,null,"PCA-04-F-02"]
[null,null,"GESTIÓN DOCUMENTAL",null,null,null,null,null,null,null,null,"VERSIÓN: 4.0"]
[null,null,"FORMATO UNICO DE INVENTARIO DOCUMENTAL",null,null,null,null,null,null,null,null,"FECHA: 20/02/2015"]
[]
[]
[null,null,null,null,null,null,null,null,null,"HOJA No___1___ DE___1___"]
[]
["UNIDAD ADMINISTRATIVA: DIRECCION GENERAL",null,null,null,null,null,null,null,null,"REGISTRO DE ENTREGA"]
["OFICINA PRODUCTORA: SUBDIRECCION ADMINISTRATIVA",null,null,null,null,null,null,null,null,"AÑO ","MES","DIA","N.T."]
[{"$f":"\"OBJETO: INVENTARIO DOCUMENTAL \"&J10","v":"OBJETO: INVENTARIO DOCUMENTAL 2022"},null,null,null,null,null,null,null,null,2022]
[null,null,null,null,null,null,null,null,null,"N.T. = Numero de Transferencia"]
[]
["Número de\nOrden","Código ","CONTRATOS DE PRESTACION DE SERVICIOS","Fechas Extremas",null,"Unidades de Conservación",null,null,null,"Número\nde Folios","Soporte","Frecuencia\n de\n consulta","Notas"]
[]
[null,null,null,"Inicial","Final","Caja","Carpeta","Tomo","Otro"]
[133,"2000-16-03","19-6-0133-0-2022 JESUS ALBERTO ORTIZ RODRIGUEZ","2022-01-01",null,null,1,1,null,117,"PAPEL ","ALTA"]
[134,"2000-16-03","19-6-0134-0-2022 RAFAEL MAURICIO ROCHA JACOME","2022-01-01",null,null,1,1,null,186,"PAPEL ","ALTA"]
[135,"2000-16-03","19-6-0135-0-2022 EDUARDO SANTOS CONTRERAS","2022-01-01",null,null,1,1,null,123,"PAPEL ","ALTA"]
[136,"2000-16-03","19-6-0136-0-2022 MARIA CAMILA SALCEDO DUARTE","2022-01-01",null,null,1,1,null,151,"PAPEL ","ALTA"]
[137,"2000-16-03","19-6-0137-0-2022 ALVARO JAVIER MARTINEZ MENDOZA","2022-01-01",null,null,1,1,null,186,"PAPEL ","ALTA"]
[138,"2000-16-03","19-6-0138-0-2022 KATERIN KARINA OÑATE DIAZ","2022-01-01",null,null,1,1,null,143,"PAPEL ","ALTA"]
[139,"2000-16-03","19-6-0139-0-2022 JOSE ALFREDO OVALLE PALACIO","2022-01-01",null,null,1,1,null,150,"PAPEL ","ALTA"]
[140,"2000-16-03","19-6-0140-0-2022 JESUS DAVID BARRRANCO LOPERENA","2022-01-01",null,null,1,1,null,185,"PAPEL ","ALTA"]
[141,"2000-16-03","19-6-0141-0-2022 IVAN ALBERTO HERNANDEZ COORDOBA","2022-01-01",null,null,1,1,null,99,"PAPEL ","ALTA"]
[142,"2000-16-03","19-6-0142-0-2022 ALVARO ANDRES LOPEZ PEÑA","2022-01-01",null,null,1,1,null,146,"PAPEL ","ALTA"]
[143,"2000-16-03","19-6-0143-0-2022 JAILIN FERNANDA ATUESTA SALAS","2022-01-01",null,null,1,1,null,155,"PAPEL ","ALTA"]
[null,null,null,null,null," "]
[null,null,"ELABORADO POR: INGRIS OLIVEROS HERNÁNDEZ",null,"ENTREGADO POR: INGRIS OLIVEROS HERNÁNDEZ",null,null,null,null,null,"RECIBIDO POR:"]
[]
[null,null,"CARGO: SECRETARIA EJECUTIVA",null,"CARGO: SECRETARIA EJECUTIVA",null,null,null,null,null,"CARGO _________________________________"]
[null,null,"FIRMA________________________________",null,"FIRMA __________________________________",null,null,null,null,null,"FIRMA __________________________________"]
[null,null,"FECHA_____________  LUGAR___________",null,"    FECHA_______________ LUGAR ___________"]

{"sheet":"INVENTARIO DOCUMENTAL 14","index":18,"n_rows":32,"n_cols":13,"rows_kept":32,"cut":false,"hidden":true,"merged":[[0,0,3,1],[0,2,0,10],[0,11,0,13],[1,2,1,10],[1,11,1,13],[2,2,3,10],[2,11,3,13],[12,9,14,9],[5,9,5,12],[7,0,7,5],[7,9,7,12],[8,0,8,5],[9,0,9,5],[10,9,10,12],[12,0,14,0],[12,1,14,1],[12,2,14,2],[12,3,13,4],[12,5,13,8],[23,12,23,13],[12,10,14,10],[12,11,14,11],[12,12,14,13],[15,12,15,13],[16,12,16,13],[17,12,17,13],[18,12,18,13],[19,12,19,13],[20,12,20,13],[21,12,21,13],[22,12,22,13],[24,12,24,13],[25,12,25,13],[27,4,27,8],[27,10,27,13],[29,4,29,8],[29,10,29,13],[30,2,30,3],[30,4,30,8],[30,10,30,13],[31,4,31,8],[31,10,31,13]]}
[null,null,"SISTEMA INTEGRADO DE GESTIÓN",null,null,null,null,null,null,null,null,"PCA-04-F-02"]
[null,null,"GESTIÓN DOCUMENTAL",null,null,null,null,null,null,null,null,"VERSIÓN: 4.0"]
[null,null,"FORMATO UNICO DE INVENTARIO DOCUMENTAL",null,null,null,null,null,null,null,null,"FECHA: 20/02/2015"]
[]
[]
[null,null,null,null,null,null,null,null,null,"HOJA No___1___ DE___1___"]
[]
["UNIDAD ADMINISTRATIVA: DIRECCION GENERAL",null,null,null,null,null,null,null,null,"REGISTRO DE ENTREGA"]
["OFICINA PRODUCTORA: SUBDIRECCION ADMINISTRATIVA",null,null,null,null,null,null,null,null,"AÑO ","MES","DIA","N.T."]
[{"$f":"\"OBJETO: INVENTARIO DOCUMENTAL \"&J10","v":"OBJETO: INVENTARIO DOCUMENTAL 2022"},null,null,null,null,null,null,null,null,2022]
[null,null,null,null,null,null,null,null,null,"N.T. = Numero de Transferencia"]
[]
["Número de\nOrden","Código ","CONTRATOS DE PRESTACION DE SERVICIOS","Fechas Extremas",null,"Unidades de Conservación",null,null,null,"Número\nde Folios","Soporte","Frecuencia\n de\n consulta","Notas"]
[]
[null,null,null,"Inicial","Final","Caja","Carpeta","Tomo","Otro"]
[144,"2000-16-03","19-6-0144-0-2022 ANGELICA DEL CARMEN PINEDA AMARIS","2022-01-01",null,null,1,1,null,165,"PAPEL ","ALTA"]
[145,"2000-16-03","19-6-0145-0-2022 TULIO EDUARDO MAESTRE ARIAS","2022-01-01",null,null,1,1,null,149,"PAPEL ","ALTA"]
[146,"2000-16-03","19-6-0146-0-2022 ERIKA MARIA AGUANCHA ANGARITA","2022-01-01",null,null,1,1,null,152,"PAPEL ","ALTA"]
[147,"2000-16-03","19-6-0147-0-2022 BIBIANA ISABEL TRIANA ACEVEDO","2022-01-01",null,null,1,1,null,198,"PAPEL ","ALTA"]
[148,"2000-16-03","19-6-0148-0-2022 MARIA ELISA VALERA MOJICA","2022-01-01",null,null,1,1,null,128,"PAPEL ","ALTA"]
[149,"2000-16-03","19-6-0149-0-2022 JAIRENN SAHIAN REYES OBREGON","2022-01-01",null,null,1,1,null,98,"PAPEL ","ALTA"]
[150,"2000-16-03","19-6-0150-0-2022 RAFAEL RICARDO RIOS QUINTERO","2022-01-01",null,null,1,1,null,165,"PAPEL ","ALTA"]
[151,"2000-16-03","19-6-0151-0-2022 LUZ MILA BONILLA GUTIERREZ","2022-01-01",null,null,1,1,null,139,"PAPEL ","ALTA"]
[152,"2000-16-03","19-6-0152-0-2022 ELBERT JOSE BRITO ARAUJO","2022-01-01",null,null,1,1,null,118,"PAPEL ","ALTA"]
[153,"2000-16-03","19-6-0153-0-2022 LILIAN SILVANA MURCIA LOBO","2022-01-01",null,null,1,1,null,134,"PAPEL ","ALTA"]
[154,"2000-16-03","19-6-0154-0-2022 MIGUEL DAVID BRUGES CADENA","2022-01-01",null,null,1,1,null,199,"PAPEL ","ALTA"]
[null,null,null,null,null," "]
[null,null,"ELABORADO POR: INGRIS OLIVEROS HERNÁNDEZ",null,"ENTREGADO POR: INGRIS OLIVEROS HERNÁNDEZ",null,null,null,null,null,"RECIBIDO POR:"]
[]
[null,null,"CARGO: SECRETARIA EJECUTIVA",null,"CARGO: SECRETARIA EJECUTIVA",null,null,null,null,null,"CARGO _________________________________"]
[null,null,"FIRMA________________________________",null,"FIRMA __________________________________",null,null,null,null,null,"FIRMA __________________________________"]
[null,null,"FECHA_____________  LUGAR___________",null,"    FECHA_______________ LUGAR ___________"]

{"sheet":"INVENTARIO DOCUMENTAL 15","index":19,"n_rows":32,"n_cols":13,"rows_kept":32,"cut":false,"hidden":true,"merged":[[0,0,3,1],[0,2,0,10],[0,11,0,13],[1,2,1,10],[1,11,1,13],[2,2,3,10],[2,11,3,13],[12,9,14,9],[5,9,5,12],[7,0,7,5],[7,9,7,12],[8,0,8,5],[9,0,9,5],[10,9,10,12],[12,0,14,0],[12,1,14,1],[12,2,14,2],[12,3,13,4],[12,5,13,8],[23,12,23,13],[12,10,14,10],[12,11,14,11],[12,12,14,13],[15,12,15,13],[16,12,16,13],[17,12,17,13],[18,12,18,13],[19,12,19,13],[20,12,20,13],[21,12,21,13],[22,12,22,13],[24,12,24,13],[25,12,25,13],[27,4,27,8],[27,10,27,13],[29,4,29,8],[29,10,29,13],[30,2,30,3],[30,4,30,8],[30,10,30,13],[31,4,31,8],[31,10,31,13]]}
[null,null,"SISTEMA INTEGRADO DE GESTIÓN",null,null,null,null,null,null,null,null,"PCA-04-F-02"]
[null,null,"GESTIÓN DOCUMENTAL",null,null,null,null,null,null,null,null,"VERSIÓN: 4.0"]
[null,null,"FORMATO UNICO DE INVENTARIO DOCUMENTAL",null,null,null,null,null,null,null,null,"FECHA: 20/02/2015"]
[]
[]
[null,null,null,null,null,null,null,null,null,"HOJA No___1___ DE___1___"]
[]
["UNIDAD ADMINISTRATIVA: DIRECCION GENERAL",null,null,null,null,null,null,null,null,"REGISTRO DE ENTREGA"]
["OFICINA PRODUCTORA: SUBDIRECCION ADMINISTRATIVA",null,null,null,null,null,null,null,null,"AÑO ","MES","DIA","N.T."]
[{"$f":"\"OBJETO: INVENTARIO DOCUMENTAL \"&J10","v":"OBJETO: INVENTARIO DOCUMENTAL 2022"},null,null,null,null,null,null,null,null,2022]
[null,null,null,null,null,null,null,null,null,"N.T. = Numero de Transferencia"]
[]
["Número de\nOrden","Código ","CONTRATOS DE PRESTACION DE SERVICIOS","Fechas Extremas",null,"Unidades de Conservación",null,null,null,"Número\nde Folios","Soporte","Frecuencia\n de\n consulta","Notas"]
[]
[null,null,null,"Inicial","Final","Caja","Carpeta","Tomo","Otro"]
[155,"2000-16-03","19-6-0155-0-2022 HERNAN TORRRES MARTINEZ","2022-01-01",null,null,1,1,null,116,"PAPEL ","ALTA"]
[156,"2000-16-03","19-6-0156-0-2022 LINDA DANIELA CASTILLA BRITO","2022-01-01",null,null,1,1,null,171,"PAPEL ","ALTA"]
[157,"2000-16-03","19-6-0157-0-2022 CARLOS MIGUEL PEINADO MENDOZA","2022-01-01",null,null,1,1,null,184,"PAPEL ","ALTA"]
[158,"2000-16-03","19-6-0158-0-2022 LUIS ARMANDO LORA SARMIENTO","2022-01-01",null,null,1,1,null,153,"PAPEL ","ALTA"]
[159,"2000-16-03","19-6-0159-0-2022 WENDY LIZETTE GONZALEZ VELASQUEZ","2022-01-01",null,null,1,1,null,136,"PAPEL ","ALTA"]
[160,"2000-16-03","19-6-0160-0-2022 JOSE ARTURO PABA VASQUEZ","2022-01-21",null,null,1,1,null,97,"PAPEL ","ALTA"]
[161,"2000-16-03","19-6-0161-0-2022 ELKIN JOSE VILLALOBOS OROZCO","2022-01-01",null,null,1,1,null,135,"PAPEL ","ALTA"]
[162,"2000-16-03","19-6-0162-0-2022 CARLOS MARIO MENDOZA PALMEZANO","2022-01-01",null,null,1,1,null,115,"PAPEL ","ALTA"]
[163,"2000-16-03","19-6-0163-0-2022 JHON JAMES CASTILLA ROCHA","2022-01-01",null,null,1,1,null,165,"PAPEL ","ALTA"]
[164,"2000-16-03","19-6-0164-0-2022 ADRIANA MARCELA GUERRA VILLA","2022-01-01",null,null,1,1,null,117,"PAPEL ","ALTA"]
[165,"2000-16-03","19-6-0165-0-2022 ELLIUTH MARCELA CAAMAÑO FONSECA","2022-01-01",null,null,1,1,null,168,"PAPEL ","ALTA"]
[null,null,null,null,null," "]
[null,null,"ELABORADO POR: INGRIS OLIVEROS HERNÁNDEZ",null,"ENTREGADO POR: INGRIS OLIVEROS HERNÁNDEZ",null,null,null,null,null,"RECIBIDO POR:"]
[]
[null,null,"CARGO: SECRETARIA EJECUTIVA",null,"CARGO: SECRETARIA EJECUTIVA",null,null,null,null,null,"CARGO _________________________________"]
[null,null,"FIRMA________________________________",null,"FIRMA __________________________________",null,null,null,null,null,"FIRMA __________________________________"]
[null,null,"FECHA_____________  LUGAR___________",null,"    FECHA_______________ LUGAR ___________"]

{"sheet":"INVENTARIO DOCUMENTAL 16","index":20,"n_rows":32,"n_cols":13,"rows_kept":32,"cut":false,"hidden":true,"merged":[[0,0,3,1],[0,2,0,10],[0,11,0,13],[1,2,1,10],[1,11,1,13],[2,2,3,10],[2,11,3,13],[12,9,14,9],[5,9,5,12],[7,0,7,5],[7,9,7,12],[8,0,8,5],[9,0,9,5],[10,9,10,12],[12,0,14,0],[12,1,14,1],[12,2,14,2],[12,3,13,4],[12,5,13,8],[23,12,23,13],[12,10,14,10],[12,11,14,11],[12,12,14,13],[15,12,15,13],[16,12,16,13],[17,12,17,13],[18,12,18,13],[19,12,19,13],[20,12,20,13],[21,12,21,13],[22,12,22,13],[24,12,24,13],[25,12,25,13],[27,4,27,8],[27,10,27,13],[29,4,29,8],[29,10,29,13],[30,2,30,3],[30,4,30,8],[30,10,30,13],[31,4,31,8],[31,10,31,13]]}
[null,null,"SISTEMA INTEGRADO DE GESTIÓN",null,null,null,null,null,null,null,null,"PCA-04-F-02"]
[null,null,"GESTIÓN DOCUMENTAL",null,null,null,null,null,null,null,null,"VERSIÓN: 4.0"]
[null,null,"FORMATO UNICO DE INVENTARIO DOCUMENTAL",null,null,null,null,null,null,null,null,"FECHA: 20/02/2015"]
[]
[]
[null,null,null,null,null,null,null,null,null,"HOJA No___1___ DE___1___"]
[]
["UNIDAD ADMINISTRATIVA: DIRECCION GENERAL",null,null,null,null,null,null,null,null,"REGISTRO DE ENTREGA"]
["OFICINA PRODUCTORA: SUBDIRECCION ADMINISTRATIVA",null,null,null,null,null,null,null,null,"AÑO ","MES","DIA","N.T."]
[{"$f":"\"OBJETO: INVENTARIO DOCUMENTAL \"&J10","v":"OBJETO: INVENTARIO DOCUMENTAL 2022"},null,null,null,null,null,null,null,null,2022]
[null,null,null,null,null,null,null,null,null,"N.T. = Numero de Transferencia"]
[]
["Número de\nOrden","Código ","CONTRATOS DE PRESTACION DE SERVICIOS","Fechas Extremas",null,"Unidades de Conservación",null,null,null,"Número\nde Folios","Soporte","Frecuencia\n de\n consulta","Notas"]
[]
[null,null,null,"Inicial","Final","Caja","Carpeta","Tomo","Otro"]
[166,"2000-16-03","19-6-0166-0-2022 LAURIE GISSETTE FUENTES GUILLOT","2022-01-01",null,null,1,1,null,145,"PAPEL ","ALTA"]
[167,"2000-16-03","19-6-0167-0-2022 JOSE GUILLERMO YAMIN CASTRO","2022-01-01",null,null,1,1,null,181,"PAPEL ","ALTA"]
[168,"2000-16-03","19-6-0168-0-2022 DIEGO RAUL ARRREDONDO DAZA","2022-01-01",null,null,1,1,null,128,"PAPEL ","ALTA"]
[169,"2000-16-03","19-6-0169-0-2022 LEVEL EDUARDO VERGARA BENITEZ","2022-01-01",null,null,1,1,null,122,"PAPEL ","ALTA"]
[170,"2000-16-03","19-6-0170-0-2022 FUNDACION SIN DIFERENCIAS-FUNSIND","2022-01-01",null,null,2,2,null,285,"PAPEL ","ALTA"]
[171,"2000-16-03","19-6-0171-0-2022 MAIRA ALEJANDRA SUAREZ ALBOR","2022-01-01",null,null,1,1,null,126,"PAPEL ","ALTA"]
[172,"2000-16-03","19-6-0172-0-2022 EL PILON S.A.","2022-01-01",null,null,1,1,null,208,"PAPEL ","ALTA"]
[173,"2000-16-03","19-6-0173-0-2022 MILTON RAFAEL AVENDAÑO ESCOBAR/AGENCIA Y ACADEMIA MILTON AVENDAÑO","2022-03-15",null,null,1,1,null,122,"PAPEL ","ALTA"]
[174,"2000-16-03","19-6-0174-0-2022 INNOVACION ATL SAS","2022-01-01",null,null,1,1,null,106,"PAPEL ","ALTA"]
[175,"2000-16-03","19-6-0175-0-2022 DONALDO VILORIA JIMENEZ-ASESORIAS Y SERVICIOS CONTINENTAL","2022-01-01",null,null,2,2,null,232,"PAPEL ","ALTA"]
[176,"2000-16-03","19-6-0176-0-2022 ISABEL CRISTINA CAMPO-DISTRIBUCIONES Y SUMINISTROS VALLEDUPAR","2022-01-01",null,null,1,1,null,null,"PAPEL ","ALTA"]
[null,null,null,null,null," "]
[null,null,"ELABORADO POR: INGRIS OLIVEROS HERNÁNDEZ",null,"ENTREGADO POR: INGRIS OLIVEROS HERNÁNDEZ",null,null,null,null,null,"RECIBIDO POR:"]
[]
[null,null,"CARGO: SECRETARIA EJECUTIVA",null,"CARGO: SECRETARIA EJECUTIVA",null,null,null,null,null,"CARGO _________________________________"]
[null,null,"FIRMA________________________________",null,"FIRMA __________________________________",null,null,null,null,null,"FIRMA __________________________________"]
[null,null,"FECHA_____________  LUGAR___________",null,"    FECHA_______________ LUGAR ___________"]

{"sheet":"INVENTARIO DOCUMENTAL 17","index":21,"n_rows":32,"n_cols":13,"rows_kept":32,"cut":false,"hidden":true,"merged":[[0,0,3,1],[0,2,0,10],[0,11,0,13],[1,2,1,10],[1,11,1,13],[2,2,3,10],[2,11,3,13],[12,9,14,9],[5,9,5,12],[7,0,7,5],[7,9,7,12],[8,0,8,5],[9,0,9,5],[10,9,10,12],[12,0,14,0],[12,1,14,1],[12,2,14,2],[12,3,13,4],[12,5,13,8],[23,12,23,13],[12,10,14,10],[12,11,14,11],[12,12,14,13],[15,12,15,13],[16,12,16,13],[17,12,17,13],[18,12,18,13],[19,12,19,13],[20,12,20,13],[21,12,21,13],[22,12,22,13],[24,12,24,13],[25,12,25,13],[27,4,27,8],[27,10,27,13],[29,4,29,8],[29,10,29,13],[30,2,30,3],[30,4,30,8],[30,10,30,13],[31,4,31,8],[31,10,31,13]]}
[null,null,"SISTEMA INTEGRADO DE GESTIÓN",null,null,null,null,null,null,null,null,"PCA-04-F-02"]
[null,null,"GESTIÓN DOCUMENTAL",null,null,null,null,null,null,null,null,"VERSIÓN: 4.0"]
[null,null,"FORMATO UNICO DE INVENTARIO DOCUMENTAL",null,null,null,null,null,null,null,null,"FECHA: 20/02/2015"]
[]
[]
[null,null,null,null,null,null,null,null,null,"HOJA No___1___ DE___1___"]
[]
["UNIDAD ADMINISTRATIVA: DIRECCION GENERAL",null,null,null,null,null,null,null,null,"REGISTRO DE ENTREGA"]
["OFICINA PRODUCTORA: SUBDIRECCION ADMINISTRATIVA",null,null,null,null,null,null,null,null,"AÑO ","MES","DIA","N.T."]
[{"$f":"\"OBJETO: INVENTARIO DOCUMENTAL \"&J10","v":"OBJETO: INVENTARIO DOCUMENTAL 2022"},null,null,null,null,null,null,null,null,2022]
[null,null,null,null,null,null,null,null,null,"N.T. = Numero de Transferencia"]
[]
["Número de\nOrden","Código ","CONTRATOS DE PRESTACION DE SERVICIOS","Fechas Extremas",null,"Unidades de Conservación",null,null,null,"Número\nde Folios","Soporte","Frecuencia\n de\n consulta","Notas"]
[]
[null,null,null,"Inicial","Final","Caja","Carpeta","Tomo","Otro"]
[177,"2000-16-03","19-6-0177-0-2022 JAMES ALBEIRO MONTOYA RAMIREZ-REP LEGAL AUTOCHEVROLET","2022-01-01",null,null,1,1,null,101,"PAPEL ","ALTA"]
[178,"2000-16-03","19-6-0178-0-2022 CARLOS DANIEL QUINTERO OBREGON-ESTACION DE SERVICIO LA ESMERALDA No.3","2022-05-01",null,null,1,1,null,161,"PAPEL ","ALTA"]
[179,"2000-16-03","19-6-0179-0-2022 UNION TEMPORAL 2022","2022-01-12",null,null,1,1,null,197,"PAPEL ","ALTA"]
[180,"2000-16-03","19-6-0180-0-2022 VALLENATOS ASOCIADOS LTDA","2022-04-01",null,null,1,1,null,173,"PAPEL ","ALTA"]
[181,"2000-16-03","19-6-0181-0-2022 CONSORCIO RIO ANIME. RL ANDRES PEREA SANCHEZ","2022-04-01",null,null,1,1,null,150,"PAPEL ","ALTA"]
[182,"2000-16-03","19-6-0182-0-2022 ANA BEATRIZ MIELES DAZA REP LEGAL ALIANZA CREATIVA PLUS LTDA","2022-05-01",null,null,1,1,null,68,"PAPEL ","ALTA"]
[183,"2000-16-03","19-6-0183-0-2022 REFRIFAMA SAS","2022-01-01",null,null,1,1,null,173,"PAPEL ","ALTA"]
[184,"2000-16-03","19-6-0184-0-2022 CONSORCIO INTER OBRAS ANIME","2022-01-01",null,null,1,1,null,82,"PAPEL ","ALTA"]
[185,"2000-16-03","19-6-0185-0-2022 VIPERS LTDA","2022-01-01",null,null,1,1,null,65,"PAPEL ","ALTA"]
[186,"2000-16-03","19-6-0186-0-2022 UNION TEMPORAL READCOL LTDA Y SEGURIDAD COMUNERA LTDA","2022-01-01",null,null,1,1,null,149,"PAPEL ","ALTA"]
[187,"2000-16-03","19-6-0187-0-2022 UNION TEMPORAL BERACA SERRANIA","2022-01-01",null,null,1,1,null,127,"PAPEL ","ALTA"]
[null,null,null,null,null," "]
[null,null,"ELABORADO POR: INGRIS OLIVEROS HERNÁNDEZ",null,"ENTREGADO POR: INGRIS OLIVEROS HERNÁNDEZ",null,null,null,null,null,"RECIBIDO POR:"]
[]
[null,null,"CARGO: SECRETARIA EJECUTIVA",null,"CARGO: SECRETARIA EJECUTIVA",null,null,null,null,null,"CARGO _________________________________"]
[null,null,"FIRMA________________________________",null,"FIRMA __________________________________",null,null,null,null,null,"FIRMA __________________________________"]
[null,null,"FECHA_____________  LUGAR___________",null,"    FECHA_______________ LUGAR ___________"]

{"sheet":"INVENTARIO DOCUMENTAL 18","index":22,"n_rows":32,"n_cols":13,"rows_kept":32,"cut":false,"hidden":true,"merged":[[30,2,30,3],[30,4,30,8],[30,10,30,13],[31,4,31,8],[31,10,31,13],[24,12,24,13],[25,12,25,13],[27,4,27,8],[27,10,27,13],[29,4,29,8],[29,10,29,13],[23,12,23,13],[12,10,14,10],[12,11,14,11],[12,12,14,13],[15,12,15,13],[16,12,16,13],[17,12,17,13],[18,12,18,13],[19,12,19,13],[20,12,20,13],[21,12,21,13],[22,12,22,13],[12,9,14,9],[5,9,5,12],[7,0,7,5],[7,9,7,12],[8,0,8,5],[9,0,9,5],[10,9,10,12],[12,0,14,0],[12,1,14,1],[12,2,14,2],[12,3,13,4],[12,5,13,8],[0,0,3,1],[0,2,0,10],[0,11,0,13],[1,2,1,10],[1,11,1,13],[2,2,3,10],[2,11,3,13]]}
[null,null,"SISTEMA INTEGRADO DE GESTIÓN",null,null,null,null,null,null,null,null,"PCA-04-F-02"]
[null,null,"GESTIÓN DOCUMENTAL",null,null,null,null,null,null,null,null,"VERSIÓN: 4.0"]
[null,null,"FORMATO UNICO DE INVENTARIO DOCUMENTAL",null,null,null,null,null,null,null,null,"FECHA: 20/02/2015"]
[]
[]
[null,null,null,null,null,null,null,null,null,"HOJA No___1___ DE___1___"]
[]
["UNIDAD ADMINISTRATIVA: DIRECCION GENERAL",null,null,null,null,null,null,null,null,"REGISTRO DE ENTREGA"]
["OFICINA PRODUCTORA: SUBDIRECCION ADMINISTRATIVA",null,null,null,null,null,null,null,null,"AÑO ","MES","DIA","N.T."]
[{"$f":"\"OBJETO: INVENTARIO DOCUMENTAL \"&J10","v":"OBJETO: INVENTARIO DOCUMENTAL 2022"},null,null,null,null,null,null,null,null,2022]
[null,null,null,null,null,null,null,null,null,"N.T. = Numero de Transferencia"]
[]
["Número de\nOrden","Código ","CONTRATOS DE PRESTACION DE SERVICIOS","Fechas Extremas",null,"Unidades de Conservación",null,null,null,"Número\nde Folios","Soporte","Frecuencia\n de\n consulta","Notas"]
[]
[null,null,null,"Inicial","Final","Caja","Carpeta","Tomo","Otro"]
[188,"2000-16-03","19-6-0188-0-2022 BLANCO & DEGIOVANNI ABOGADOS Y CONSULTORES SAS","2022-06-01",null,null,1,1,null,95,"PAPEL ","ALTA"]
[189,"2000-16-03","19-6-0189-0-2022 TRANSPORTES CARVAJAL LTDA","2022-07-01",null,null,1,1,null,183,"PAPEL ","ALTA"]
[190,"2000-16-03","19-6-0190-0-2022 ICONTEC","2022-06-01",null,null,1,1,null,170,"PAPEL ","ALTA"]
[191,"2000-16-03","19-6-0191-0-2022 CONSORCIO INTERVENTORIA PERIJA","2022-07-01",null,null,1,1,null,74,"PAPEL ","ALTA"]
[192,"2000-16-03","19-6-0192-0-2022 J&M ELECTRONIC SAS","2022-05-01",null,null,1,1,null,153,"PAPEL ","ALTA"]
[193,"2000-16-03","19-6-0193-0-2022 ROSA CAROLINA DE BRIGARD CUELLO","2022-01-01",null,null,1,1,null,120,"PAPEL ","ALTA"]
[194,"2000-16-03","19-6-0194-0-2022 GLEIDYS ELIANA RAMIREZ ARRIETA","2022-08-01",null,null,1,1,null,89,"PAPEL ","ALTA"]
[195,"2000-16-03","19-6-0195-0-2022 K2 INGENIERIA SAS","2022-05-01",null,null,1,1,null,129,"PAPEL ","ALTA"]
[196,"2000-16-03","19-6-0196-0-2022 DMO GESTIÓN SAS","2022-04-01",null,null,1,1,null,131,"PAPEL ","ALTA"]
[197,"2000-16-03","19-6-0197-0-2022 CORPORACION PROSPERAR","2022-06-01",null,null,1,1,null,112,"PAPEL ","ALTA"]
[198,"2000-16-03","19-6-0198-0-2022 FUNDACION PARA EL DESARROLLO EMPRESARIAL-CAPACITAR","2022-06-01",null,null,1,1,null,115,"PAPEL ","ALTA"]
[null,null,null,null,null," "]
[null,null,"ELABORADO POR: INGRIS OLIVEROS HERNÁNDEZ",null,"ENTREGADO POR: INGRIS OLIVEROS HERNÁNDEZ",null,null,null,null,null,"RECIBIDO POR:"]
[]
[null,null,"CARGO: SECRETARIA EJECUTIVA",null,"CARGO: SECRETARIA EJECUTIVA",null,null,null,null,null,"CARGO _________________________________"]
[null,null,"FIRMA________________________________",null,"FIRMA __________________________________",null,null,null,null,null,"FIRMA __________________________________"]
[null,null,"FECHA_____________  LUGAR___________",null,"    FECHA_______________ LUGAR ___________"]

{"sheet":"INVENTARIO DOCUMENTAL 19","index":23,"n_rows":32,"n_cols":13,"rows_kept":32,"cut":false,"hidden":true,"merged":[[0,0,3,1],[0,2,0,10],[0,11,0,13],[1,2,1,10],[1,11,1,13],[2,2,3,10],[2,11,3,13],[12,9,14,9],[5,9,5,12],[7,0,7,5],[7,9,7,12],[8,0,8,5],[9,0,9,5],[10,9,10,12],[12,0,14,0],[12,1,14,1],[12,2,14,2],[12,3,13,4],[12,5,13,8],[23,12,23,13],[12,10,14,10],[12,11,14,11],[12,12,14,13],[15,12,15,13],[16,12,16,13],[17,12,17,13],[18,12,18,13],[19,12,19,13],[20,12,20,13],[21,12,21,13],[22,12,22,13],[24,12,24,13],[25,12,25,13],[27,4,27,8],[27,10,27,13],[29,4,29,8],[29,10,29,13],[30,2,30,3],[30,4,30,8],[30,10,30,13],[31,4,31,8],[31,10,31,13]]}
[null,null,"SISTEMA INTEGRADO DE GESTIÓN",null,null,null,null,null,null,null,null,"PCA-04-F-02"]
[null,null,"GESTIÓN DOCUMENTAL",null,null,null,null,null,null,null,null,"VERSIÓN: 4.0"]
[null,null,"FORMATO UNICO DE INVENTARIO DOCUMENTAL",null,null,null,null,null,null,null,null,"FECHA: 20/02/2015"]
[]
[]
[null,null,null,null,null,null,null,null,null,"HOJA No___1___ DE___1___"]
[]
["UNIDAD ADMINISTRATIVA: DIRECCION GENERAL",null,null,null,null,null,null,null,null,"REGISTRO DE ENTREGA"]
["OFICINA PRODUCTORA: SUBDIRECCION ADMINISTRATIVA",null,null,null,null,null,null,null,null,"AÑO ","MES","DIA","N.T."]
[{"$f":"\"OBJETO: INVENTARIO DOCUMENTAL \"&J10","v":"OBJETO: INVENTARIO DOCUMENTAL 2022"},null,null,null,null,null,null,null,null,2022]
[null,null,null,null,null,null,null,null,null,"N.T. = Numero de Transferencia"]
[]
["Número de\nOrden","Código ","CONTRATOS DE PRESTACION DE SERVICIOS","Fechas Extremas",null,"Unidades de Conservación",null,null,null,"Número\nde Folios","Soporte","Frecuencia\n de\n consulta","Notas"]
[]
[null,null,null,"Inicial","Final","Caja","Carpeta","Tomo","Otro"]
[199,"2000-16-03","19-6-0199-0-2022 CLAUDIA VIVIANA GIL","2022-09-01",null,null,null,null,null,120,"PAPEL ","ALTA"]
[200,"2000-16-03","19-6-0200-0-2022 ANULADO",null,null,null,"N/A","N/A",null,"N/A","N/A","N/A"]
[201,"2000-16-03","19-6-0201-0-2022 CARLOS ALBERTO CONTRERAS JAIME","2022-09-01",null,null,1,1,null,73,"PAPEL ","ALTA"]
[202,"2000-16-03","19-6-0202-0-2022 ALEX JOSE OSPINO SARMIENTO","2022-09-01",null,null,1,1,null,98,"PAPEL ","ALTA"]
[203,"2000-16-03","19-6-0203-0-2022 JAIRENN SAHIAN REYES OBREGON","2022-09-01",null,null,1,1,null,68,"PAPEL ","ALTA"]
[204,"2000-16-03","19-6-0204-0-2022 CARLOS ANDRES OCHOA TRIANA","2022-09-01",null,null,null,null,null,91,"PAPEL ","ALTA"]
[205,"2000-16-03","19-6-0205-0-2022 ASOCIACION PROTECTORA DEL MEDIO AMBIENTE","2022-09-01",null,null,1,1,null,85,"PAPEL ","ALTA"]
[206,"2000-16-03","19-6-0206-0-2022 BRC SYP S.A","2022-09-01",null,null,null,null,null,null,"PAPEL ","ALTA"]
[207,"2000-16-03","19-6-0207-0-2022 MARTHA LUCIA LIMA DAZA","2022-09-01",null,null,1,1,null,71,"PAPEL ","ALTA"]
[208,"2000-16-03","19-6-0208-0-2022 GOPHER GROUP SAS","2022-09-01",null,null,null,null,null,108,"PAPEL ","ALTA"]
[209,"2000-16-03","19-6-0209-0-2022 UT POMCA RIO CESAR","2022-09-01",null,null,null,null,null,253,"PAPEL ","ALTA"]
[null,null,null,null,null," "]
[null,null,"ELABORADO POR: INGRIS OLIVEROS HERNÁNDEZ",null,"ENTREGADO POR: INGRIS OLIVEROS HERNÁNDEZ",null,null,null,null,null,"RECIBIDO POR:"]
[]
[null,null,"CARGO: SECRETARIA EJECUTIVA",null,"CARGO: SECRETARIA EJECUTIVA",null,null,null,null,null,"CARGO _________________________________"]
[null,null,"FIRMA________________________________",null,"FIRMA __________________________________",null,null,null,null,null,"FIRMA __________________________________"]
[null,null,"FECHA_____________  LUGAR___________",null,"    FECHA_______________ LUGAR ___________"]

{"sheet":"INVENTARIO DOCUMENTAL 20","index":24,"n_rows":32,"n_cols":13,"rows_kept":32,"cut":false,"hidden":true,"merged":[[0,0,3,1],[0,2,0,10],[0,11,0,13],[1,2,1,10],[1,11,1,13],[2,2,3,10],[2,11,3,13],[12,9,14,9],[5,9,5,12],[7,0,7,5],[7,9,7,12],[8,0,8,5],[9,0,9,5],[10,9,10,12],[12,0,14,0],[12,1,14,1],[12,2,14,2],[12,3,13,4],[12,5,13,8],[23,12,23,13],[12,10,14,10],[12,11,14,11],[12,12,14,13],[15,12,15,13],[16,12,16,13],[17,12,17,13],[18,12,18,13],[19,12,19,13],[20,12,20,13],[21,12,21,13],[22,12,22,13],[24,12,24,13],[25,12,25,13],[27,4,27,8],[27,10,27,13],[29,4,29,8],[29,10,29,13],[30,2,30,3],[30,4,30,8],[30,10,30,13],[31,4,31,8],[31,10,31,13]]}
[null,null,"SISTEMA INTEGRADO DE GESTIÓN",null,null,null,null,null,null,null,null,"PCA-04-F-02"]
[null,null,"GESTIÓN DOCUMENTAL",null,null,null,null,null,null,null,null,"VERSIÓN: 4.0"]
[null,null,"FORMATO UNICO DE INVENTARIO DOCUMENTAL",null,null,null,null,null,null,null,null,"FECHA: 20/02/2015"]
[]
[]
[null,null,null,null,null,null,null,null,null,"HOJA No___1___ DE___1___"]
[]
["UNIDAD ADMINISTRATIVA: DIRECCION GENERAL",null,null,null,null,null,null,null,null,"REGISTRO DE ENTREGA"]
["OFICINA PRODUCTORA: SUBDIRECCION ADMINISTRATIVA",null,null,null,null,null,null,null,null,"AÑO ","MES","DIA","N.T."]
[{"$f":"\"OBJETO: INVENTARIO DOCUMENTAL \"&J10","v":"OBJETO: INVENTARIO DOCUMENTAL 2022"},null,null,null,null,null,null,null,null,2022]
[null,null,null,null,null,null,null,null,null,"N.T. = Numero de Transferencia"]
[]
["Número de\nOrden","Código ","CONTRATOS DE PRESTACION DE SERVICIOS","Fechas Extremas",null,"Unidades de Conservación",null,null,null,"Número\nde Folios","Soporte","Frecuencia\n de\n consulta","Notas"]
[]
[null,null,null,"Inicial","Final","Caja","Carpeta","Tomo","Otro"]
[210,"2000-16-03","19-6-0210-0-2022 CARLOS ENRIQUE LOPEZ MEJIA","2022-09-01",null,null,1,1,null,177,"PAPEL ","ALTA"]
[211,"2000-16-03","19-6-0211-0-2022 LENIN ALBERTO NUÑEZ REALES","2022-09-01",null,null,1,1,null,115,"PAPEL ","ALTA"]
[212,"2000-16-03","19-6-0212-0-2022 BLANCO & DEGIOVANNII ABOGADOS Y CONSULTORES SAS","2022-10-01",null,null,1,1,null,205,"PAPEL ","ALTA"]
[213,"2000-16-03","19-6-0213-0-2022 LILIANA MARIA VILLALOBOS PEREZ","2022-09-01",null,null,1,1,null,109,"PAPEL ","ALTA"]
[214,"2000-16-03","19-6-0214-0-2022 JUAN ANDRES GUTIERREZ ARIAS","2022-09-01",null,null,1,1,null,98,"PAPEL ","ALTA"]
[215,"2000-16-03","19-6-0215-0-2022 JORGE ELIECER GUTIERREZ MOLINA","2022-09-01",null,null,1,1,null,112,"PAPEL ","ALTA"]
[216,"2000-16-03","199-6-0216-0-2022 HANNY CAROLINA DUQUE VILLALOBOS","2022-10-01",null,null,1,1,null,92,"PAPEL ","ALTA"]
[217,"2000-16-03","199-6-0217-0-2022 GRUPO EMPRESARIAL FO SAS","2022-10-01",null,null,1,1,null,64,"PAPEL ","ALTA"]
[218,"2000-16-03","199-6-0218-0-2022 GERARDO ANTONIO BUENA VIDAL","2022-10-01",null,null,1,1,null,71,"PAPEL ","ALTA"]
[219]
[220]
[null,null,null,null,null," "]
[null,null,"ELABORADO POR: INGRIS OLIVEROS HERNÁNDEZ",null,"ENTREGADO POR: INGRIS OLIVEROS HERNÁNDEZ",null,null,null,null,null,"RECIBIDO POR:"]
[]
[null,null,"CARGO: SECRETARIA EJECUTIVA",null,"CARGO: SECRETARIA EJECUTIVA",null,null,null,null,null,"CARGO _________________________________"]
[null,null,"FIRMA________________________________",null,"FIRMA __________________________________",null,null,null,null,null,"FIRMA __________________________________"]
[null,null,"FECHA_____________  LUGAR___________",null,"    FECHA_______________ LUGAR ___________"]

{"sheet":"INVENTARIO DOCUMENTAL 21","index":25,"n_rows":32,"n_cols":13,"rows_kept":32,"cut":false,"hidden":true,"merged":[[30,2,30,3],[30,4,30,8],[30,10,30,13],[31,4,31,8],[31,10,31,13],[24,12,24,13],[25,12,25,13],[27,4,27,8],[27,10,27,13],[29,4,29,8],[29,10,29,13],[23,12,23,13],[12,10,14,10],[12,11,14,11],[12,12,14,13],[15,12,15,13],[16,12,16,13],[17,12,17,13],[18,12,18,13],[19,12,19,13],[20,12,20,13],[21,12,21,13],[22,12,22,13],[12,9,14,9],[5,9,5,12],[7,0,7,5],[7,9,7,12],[8,0,8,5],[9,0,9,5],[10,9,10,12],[12,0,14,0],[12,1,14,1],[12,2,14,2],[12,3,13,4],[12,5,13,8],[0,0,3,1],[0,2,0,10],[0,11,0,13],[1,2,1,10],[1,11,1,13],[2,2,3,10],[2,11,3,13]]}
[null,null,"SISTEMA INTEGRADO DE GESTIÓN",null,null,null,null,null,null,null,null,"PCA-04-F-02"]
[null,null,"GESTIÓN DOCUMENTAL",null,null,null,null,null,null,null,null,"VERSIÓN: 4.0"]
[null,null,"FORMATO UNICO DE INVENTARIO DOCUMENTAL",null,null,null,null,null,null,null,null,"FECHA: 20/02/2015"]
[]
[]
[null,null,null,null,null,null,null,null,null,"HOJA No___1___ DE___1___"]
[]
["UNIDAD ADMINISTRATIVA: DIRECCION GENERAL",null,null,null,null,null,null,null,null,"REGISTRO DE ENTREGA"]
["OFICINA PRODUCTORA: SUBDIRECCION ADMINISTRATIVA",null,null,null,null,null,null,null,null,"AÑO ","MES","DIA","N.T."]
[{"$f":"\"OBJETO: INVENTARIO DOCUMENTAL \"&J10","v":"OBJETO: INVENTARIO DOCUMENTAL 2022"},null,null,null,null,null,null,null,null,2022]
[null,null,null,null,null,null,null,null,null,"N.T. = Numero de Transferencia"]
[]
["Número de\nOrden","Código ","CONTRATOS DE PRESTACION DE SERVICIOS","Fechas Extremas",null,"Unidades de Conservación",null,null,null,"Número\nde Folios","Soporte","Frecuencia\n de\n consulta","Notas"]
[]
[null,null,null,"Inicial","Final","Caja","Carpeta","Tomo","Otro"]
[221,null,"19-6-0221-0-2022 "]
[222,null,"19-6-0222-0-2022 UNION TEMPORAL REVERDECER BESOTES",null,null,null,null,null,null,204]
[null,null," "]
[null,null," "]
[null,null," "]
[null,null," "]
[null,null," "]
[null,null," "]
[null,null," "]
[null,null," "]
[null,null," "]
[null,null,null,null,null," "]
[null,null,"ELABORADO POR: INGRIS OLIVEROS HERNÁNDEZ",null,"ENTREGADO POR: INGRIS OLIVEROS HERNÁNDEZ",null,null,null,null,null,"RECIBIDO POR:"]
[]
[null,null,"CARGO: SECRETARIA EJECUTIVA",null,"CARGO: SECRETARIA EJECUTIVA",null,null,null,null,null,"CARGO _________________________________"]
[null,null,"FIRMA________________________________",null,"FIRMA __________________________________",null,null,null,null,null,"FIRMA __________________________________"]
[null,null,"FECHA_____________  LUGAR___________",null,"    FECHA_______________ LUGAR ___________"]